ORGANISATION_NAME,SERVICE_RESPONSIBLE,SUPPLIER_NAME,SUPPLIER_CODE,PAYMENT_DATE,TRANSACTION_REF,NET_AMOUNT_BY_LINE_ITEM,IRRECOVERABLE_VAT,PURPOSE_OF_SPEND,PROCUREMENT_CATEGORY_NAME,TRANSACTION_TYPE,PAYMENT_TYPE,CARD_TRANS,INVOICE_DATE,FINANCIAL_YEAR,FINANCIAL_PERIOD,SUPPLIERS_INVOICE_REFERENCE,COST_CENTRE_CODE,COST_CENTRE_DESC,ACCOUNT_CODE,ACCOUNT_DESC
GUILDFORD BOROUGH COUNCIL,PROCUREMENT,CIPS GROUP,8021,30-Apr-19,2056552,187.00 ,0,PROFESSIONAL SUBSCRIPTIONS,THIRD PARTY SUPPLIER,Invoice,BACS,None,23-Apr-19,2019,1,PFHD1122,G3593,PROCUREMENT SERVICES,A7136,PROFESSIONAL SUBSCRIPTIONS
GUILDFORD BOROUGH COUNCIL,CORPORATE FINANCIAL,CIPFA BUSINESS LIMITED,2581,16-Apr-19,2054477,"1,479.40 ",0,GENERAL SUBSCRIPTIONS,PROFESSIONAL ASSOCIATIONS,Invoice,BACS,None,02-Apr-19,2019,1,3143869,F1135,TREASURY MANAGEMENT ADMIN,D7497,GENERAL SUBSCRIPTIONS
GUILDFORD BOROUGH COUNCIL,STRATEGIC SUPPORT,CIPFA BUSINESS LIMITED,2581,16-Apr-19,2054477,"1,721.47 ",0,GENERAL SUBSCRIPTIONS,PROFESSIONAL ASSOCIATIONS,Invoice,BACS,None,02-Apr-19,2019,1,3143869,M8121,STRATEGIC SUPPORT (SHS),D7497,GENERAL SUBSCRIPTIONS
GUILDFORD BOROUGH COUNCIL,REFUSE AND RECYCLING,COMENSURA LTD,32435,04-Apr-19,2054091,365.16 ,0,AGENCY STAFF,OTHER RECRUITMENT AGENCIES AND SERVICE PROVIDERS,Invoice,BACS,None,02-Apr-19,2019,1,1024405,B7766,KERBSIDE RECYCLING,A5191,AGENCY STAFF
GUILDFORD BOROUGH COUNCIL,STREET CLEANSING,COMENSURA LTD,32435,18-Apr-19,2056010,550.17 ,0,AGENCY STAFF,OTHER RECRUITMENT AGENCIES AND SERVICE PROVIDERS,Invoice,BACS,None,16-Apr-19,2019,1,1025156,K4551,STREET CLEANSING,A5191,AGENCY STAFF
GUILDFORD BOROUGH COUNCIL,EQUITY SHARE ADMINISTRATION,CLARKE GAMMON WELLERS,15029,04-Apr-19,2054026,285.00 ,0,VALUERS FEES,PROPERTY LETTING AND ESTATE AGENTS,Invoice,BACS,None,23-Oct-18,2019,1,14132,M1181,SALE OF COUNCIL HOUSES (BHS),D4493,VALUERS FEES
GUILDFORD BOROUGH COUNCIL,CREMATORIUM,CHAMBERS WASTE MANAGEMENT PLC,1275,04-Apr-19,2053314,27.58 ,0,EQUIP. & TOOLS HIRE,OTHER WASTE DISPOSAL SUPPLIERS,Invoice,BACS,None,26-Jan-19,2019,1,P317920,A1500,GUILDFORD CREMATORIUM,D1430,EQUIP. & TOOLS HIRE
GUILDFORD BOROUGH COUNCIL,LEISURE PLAY DEVELOPMENT,CHIEF LEISURE OFFICERS ASSOCIATION,20958,18-Apr-19,2055403,150.00 ,0,PLAY AND YOUTH INITIATIVES,THIRD PARTY SUPPLIER,Invoice,BACS,None,09-Apr-19,2019,1,2472,A7211,PLAY DEVELOPMENT,D4527,PLAY AND YOUTH INITIATIVES
GUILDFORD BOROUGH COUNCIL,LEISURE ART DEVELOPMENT,CHIEF LEISURE OFFICERS ASSOCIATION,20958,18-Apr-19,2055403,150.00 ,0,GENERAL SUBSCRIPTIONS,THIRD PARTY SUPPLIER,Invoice,BACS,None,09-Apr-19,2019,1,2472,A3511,ARTS DEVELOPMENT,D7497,GENERAL SUBSCRIPTIONS
GUILDFORD BOROUGH COUNCIL,LEISURE SPORT DEVELOPMENT,CHIEF LEISURE OFFICERS ASSOCIATION,20958,18-Apr-19,2055403,150.00 ,0,GENERAL SUBSCRIPTIONS,THIRD PARTY SUPPLIER,Invoice,BACS,None,09-Apr-19,2019,1,2472,A7311,SPORTS DEVELOPMENT OFFICER,D7497,GENERAL SUBSCRIPTIONS
GUILDFORD BOROUGH COUNCIL,CARELINE SERVICE,CHICHESTER DISTRICT COUNCIL,43163,25-Apr-19,2055791,"3,653.83 ",0,ALARM MONITORING CONTRACT,LOCAL GOVERNMENT [UK ONLY],Invoice,BACS,None,10-Apr-19,2019,1,100199863,C2511,CARELINE,D4541,ALARM MONITORING CONTRACT
GUILDFORD BOROUGH COUNCIL,CREMATORIUM,CHEM CLEAR LTD,94098,04-Apr-19,2053935,54.50 ,0,REMOVAL OF CONFIDENTIAL WASTE,THIRD PARTY SUPPLIER,Invoice,BACS,None,02-Apr-19,2019,1,CC796,A1500,GUILDFORD CREMATORIUM,D4490,REMOVAL OF CONFIDENTIAL WASTE
GUILDFORD BOROUGH COUNCIL,DAY SERVICES,CHEESMAN BROTHERS LIMITED,1291,04-Apr-19,2053389,365.86 ,0,FOOD PURCHASES,FRUIT AND VEGETABLE SUPPLIERS,Invoice,BACS,None,29-Mar-19,2019,1,790505,C8189,CENTRAL HUB PARK BARN,D1832,FOOD PURCHASES
GUILDFORD BOROUGH COUNCIL,DAY SERVICES,CHEESMAN BROTHERS LIMITED,1291,02-Apr-19,2053390,379.19 ,0,FOOD PURCHASES,FRUIT AND VEGETABLE SUPPLIERS,Invoice,BACS,None,29-Mar-19,2019,1,790503,C8188,WEST HUB SHAWFIELD,D1832,FOOD PURCHASES
GUILDFORD BOROUGH COUNCIL,HOMELESSNESS,CHASE INVENTORY SERVICES LTD,42781,02-Apr-19,2053111,85.00 ,0,BUILDING CONDITION SURVEYS,THIRD PARTY SUPPLIER,Invoice,BACS,None,27-Mar-19,2019,1,97017,C3316,EMERGENCY ACCOMMODATION,D4420,BUILDING CONDITION SURVEYS
GUILDFORD BOROUGH COUNCIL,HOMELESSNESS,CHASE INVENTORY SERVICES LTD,42781,02-Apr-19,2053110,75.00 ,0,BUILDING CONDITION SURVEYS,THIRD PARTY SUPPLIER,Invoice,BACS,None,27-Mar-19,2019,1,97018,C3316,EMERGENCY ACCOMMODATION,D4420,BUILDING CONDITION SURVEYS
GUILDFORD BOROUGH COUNCIL,BUILDING MAINTENANCE,CINNAMON CONSTRUCTION LIMITED,92186,30-Apr-19,2057259,"5,274.00 ",0,PAYMENT TO CONTRACTORS,GENERAL BUILDERS,Invoice,BACS,None,23-Apr-19,2019,1,3,K1515,BUILDING MAINTENANCE,D4468,PAYMENT TO CONTRACTORS
GUILDFORD BOROUGH COUNCIL,REFUSE AND RECYCLING,COMENSURA LTD,32435,04-Apr-19,2054091,546.84 ,0,AGENCY STAFF,OTHER RECRUITMENT AGENCIES AND SERVICE PROVIDERS,Invoice,BACS,None,02-Apr-19,2019,1,1024405,B7766,KERBSIDE RECYCLING,A5191,AGENCY STAFF
GUILDFORD BOROUGH COUNCIL,REFUSE AND RECYCLING,COMENSURA LTD,32435,04-Apr-19,2054091,197.10 ,0,AGENCY STAFF,OTHER RECRUITMENT AGENCIES AND SERVICE PROVIDERS,Invoice,BACS,None,02-Apr-19,2019,1,1024405,B7766,KERBSIDE RECYCLING,A5191,AGENCY STAFF
GUILDFORD BOROUGH COUNCIL,REFUSE AND RECYCLING,COMENSURA LTD,32435,04-Apr-19,2054091,-1.00 ,0,AGENCY STAFF,OTHER RECRUITMENT AGENCIES AND SERVICE PROVIDERS,Invoice,BACS,None,02-Apr-19,2019,1,1024405,B7766,KERBSIDE RECYCLING,A5191,AGENCY STAFF
GUILDFORD BOROUGH COUNCIL,REFUSE AND RECYCLING,COMENSURA LTD,32435,25-Apr-19,2056555,525.10 ,0,AGENCY STAFF,OTHER RECRUITMENT AGENCIES AND SERVICE PROVIDERS,Invoice,BACS,None,24-Apr-19,2019,1,1025574,K3551,REFUSE COLLECTION,A5191,AGENCY STAFF
GUILDFORD BOROUGH COUNCIL,REFUSE AND RECYCLING,COMENSURA LTD,32435,25-Apr-19,2056555,-1.36 ,0,AGENCY STAFF,OTHER RECRUITMENT AGENCIES AND SERVICE PROVIDERS,Invoice,BACS,None,24-Apr-19,2019,1,1025574,K3551,REFUSE COLLECTION,A5191,AGENCY STAFF
GUILDFORD BOROUGH COUNCIL,STREET CLEANSING,COMENSURA LTD,32435,25-Apr-19,2056555,-1.21 ,0,AGENCY STAFF,OTHER RECRUITMENT AGENCIES AND SERVICE PROVIDERS,Invoice,BACS,None,24-Apr-19,2019,1,1025574,K4551,STREET CLEANSING,A5191,AGENCY STAFF
GUILDFORD BOROUGH COUNCIL,ENVIRONMENTAL CONTROL,COMENSURA LTD,32435,25-Apr-19,2056555,398.32 ,0,AGENCY STAFF,OTHER RECRUITMENT AGENCIES AND SERVICE PROVIDERS,Invoice,BACS,None,24-Apr-19,2019,1,1025574,C1113,ENVIRONMENTAL CONTROL,A5191,AGENCY STAFF
GUILDFORD BOROUGH COUNCIL,ACCOUNTANCY,CIPFA BUSINESS LIMITED,2581,16-Apr-19,2054477,"6,011.90 ",0,GENERAL SUBSCRIPTIONS,PROFESSIONAL ASSOCIATIONS,Invoice,BACS,None,02-Apr-19,2019,1,3143869,G3565,ACCOUNTANCY SERVICES,D7497,GENERAL SUBSCRIPTIONS
GUILDFORD BOROUGH COUNCIL,COUNCIL TAX,CIPFA BUSINESS LIMITED,2581,16-Apr-19,2054477,855.97 ,0,GENERAL SUBSCRIPTIONS,PROFESSIONAL ASSOCIATIONS,Invoice,BACS,None,02-Apr-19,2019,1,3143869,F6141,COUNCIL TAX COLLECTN EXPENSES,D7497,GENERAL SUBSCRIPTIONS
GUILDFORD BOROUGH COUNCIL,HOUSING BENEFITS,CIPFA BUSINESS LIMITED,2581,16-Apr-19,2054477,"1,069.96 ",0,GENERAL SUBSCRIPTIONS,PROFESSIONAL ASSOCIATIONS,Invoice,BACS,None,02-Apr-19,2019,1,3143869,C4511,HOUSING BENEFITS ADMIN.,D7497,GENERAL SUBSCRIPTIONS
GUILDFORD BOROUGH COUNCIL,BUSINESS RATES,CIPFA BUSINESS LIMITED,2581,16-Apr-19,2054477,215.05 ,0,GENERAL SUBSCRIPTIONS,PROFESSIONAL ASSOCIATIONS,Invoice,BACS,None,02-Apr-19,2019,1,3143869,F6151,BUSINESS RATES COLLECTION EXPS,D7497,GENERAL SUBSCRIPTIONS
GUILDFORD BOROUGH COUNCIL,BUILDING MAINTENANCE,CINNAMON CONSTRUCTION LIMITED,92186,30-Apr-19,2057259,126.80 ,0,MATERIALS; SUB CONTRACTOR,GENERAL BUILDERS,Invoice,BACS,None,23-Apr-19,2019,1,3,K1515,BUILDING MAINTENANCE,D1542,MATERIALS; SUB CONTRACTOR
GUILDFORD BOROUGH COUNCIL,REFUSE AND RECYCLING,COMENSURA LTD,32435,18-Apr-19,2056010,326.87 ,0,AGENCY STAFF,OTHER RECRUITMENT AGENCIES AND SERVICE PROVIDERS,Invoice,BACS,None,16-Apr-19,2019,1,1025156,B7766,KERBSIDE RECYCLING,A5191,AGENCY STAFF
GUILDFORD BOROUGH COUNCIL,BUILDING MAINTENANCE,CINNAMON CONSTRUCTION LIMITED,92186,09-Apr-19,2054805,"7,625.00 ",0,PAYMENT TO CONTRACTORS,GENERAL BUILDERS,Invoice,BACS,None,01-Apr-19,2019,1,1,K1515,BUILDING MAINTENANCE,D4468,PAYMENT TO CONTRACTORS
GUILDFORD BOROUGH COUNCIL,STREET CLEANSING,COMENSURA LTD,32435,04-Apr-19,2054091,391.46 ,0,AGENCY STAFF,OTHER RECRUITMENT AGENCIES AND SERVICE PROVIDERS,Invoice,BACS,None,02-Apr-19,2019,1,1024405,K4551,STREET CLEANSING,A5191,AGENCY STAFF
GUILDFORD BOROUGH COUNCIL,STREET CLEANSING,COMENSURA LTD,32435,04-Apr-19,2054091,483.96 ,0,AGENCY STAFF,OTHER RECRUITMENT AGENCIES AND SERVICE PROVIDERS,Invoice,BACS,None,02-Apr-19,2019,1,1024405,K4551,STREET CLEANSING,A5191,AGENCY STAFF
GUILDFORD BOROUGH COUNCIL,REFUSE AND RECYCLING,COMENSURA LTD,32435,04-Apr-19,2054091,232.76 ,0,AGENCY STAFF,OTHER RECRUITMENT AGENCIES AND SERVICE PROVIDERS,Invoice,BACS,None,02-Apr-19,2019,1,1024405,K3551,REFUSE COLLECTION,A5191,AGENCY STAFF
GUILDFORD BOROUGH COUNCIL,DEVELOPMENT CONTROL,COMENSURA LTD,32435,04-Apr-19,2054091,-1.12 ,0,AGENCY STAFF,OTHER RECRUITMENT AGENCIES AND SERVICE PROVIDERS,Invoice,BACS,None,02-Apr-19,2019,1,1024405,D5100,DEVELOPMENT CONTROL - FEE EARN,A5191,AGENCY STAFF
GUILDFORD BOROUGH COUNCIL,PROCUREMENT,COMENSURA LTD,32435,04-Apr-19,2054091,"1,081.33 ",0,AGENCY STAFF,OTHER RECRUITMENT AGENCIES AND SERVICE PROVIDERS,Invoice,BACS,None,02-Apr-19,2019,1,1024405,G3593,PROCUREMENT SERVICES,A5191,AGENCY STAFF
GUILDFORD BOROUGH COUNCIL,LEGAL SERVICES,COMENSURA LTD,32435,25-Apr-19,2056555,441.28 ,0,AGENCY STAFF,OTHER RECRUITMENT AGENCIES AND SERVICE PROVIDERS,Invoice,BACS,None,24-Apr-19,2019,1,1025574,G4525,LEGAL SERVICES,A5191,AGENCY STAFF
GUILDFORD BOROUGH COUNCIL,OFF STREET PARKING,COMENSURA LTD,32435,25-Apr-19,2056555,550.30 ,0,AGENCY STAFF,OTHER RECRUITMENT AGENCIES AND SERVICE PROVIDERS,Invoice,BACS,None,24-Apr-19,2019,1,1025574,B2111,CAR PARKS - ADMINISTRATION,A5191,AGENCY STAFF
GUILDFORD BOROUGH COUNCIL,STREET CLEANSING,COMENSURA LTD,32435,25-Apr-19,2056555,446.08 ,0,AGENCY STAFF,OTHER RECRUITMENT AGENCIES AND SERVICE PROVIDERS,Invoice,BACS,None,24-Apr-19,2019,1,1025574,K4551,STREET CLEANSING,A5191,AGENCY STAFF
GUILDFORD BOROUGH COUNCIL,STREET CLEANSING,COMENSURA LTD,32435,25-Apr-19,2056555,-1.20 ,0,AGENCY STAFF,OTHER RECRUITMENT AGENCIES AND SERVICE PROVIDERS,Invoice,BACS,None,24-Apr-19,2019,1,1025574,K4551,STREET CLEANSING,A5191,AGENCY STAFF
GUILDFORD BOROUGH COUNCIL,REFUSE AND RECYCLING,COMENSURA LTD,32435,25-Apr-19,2056555,-1.00 ,0,AGENCY STAFF,OTHER RECRUITMENT AGENCIES AND SERVICE PROVIDERS,Invoice,BACS,None,24-Apr-19,2019,1,1025574,K3551,REFUSE COLLECTION,A5191,AGENCY STAFF
GUILDFORD BOROUGH COUNCIL,STREET CLEANSING,COMENSURA LTD,32435,25-Apr-19,2056555,434.18 ,0,AGENCY STAFF,OTHER RECRUITMENT AGENCIES AND SERVICE PROVIDERS,Invoice,BACS,None,24-Apr-19,2019,1,1025574,K4551,STREET CLEANSING,A5191,AGENCY STAFF
GUILDFORD BOROUGH COUNCIL,MAJOR PROJECTS,COMENSURA LTD,32435,25-Apr-19,2056555,381.75 ,0,AGENCY STAFF,OTHER RECRUITMENT AGENCIES AND SERVICE PROVIDERS,Invoice,BACS,None,24-Apr-19,2019,1,1025574,F5530,MAJOR PROJECTS,A5191,AGENCY STAFF
GUILDFORD BOROUGH COUNCIL,BUILDING MAINTENANCE,CHAMBERS WASTE MANAGEMENT PLC,1275,23-Apr-19,2054458,64.32 ,0,TIPPING FEES,OTHER WASTE DISPOSAL SUPPLIERS,Invoice,BACS,None,23-Mar-19,2019,1,P329716,K1515,BUILDING MAINTENANCE,D4489,TIPPING FEES
GUILDFORD BOROUGH COUNCIL,BUILDING MAINTENANCE,CINNAMON CONSTRUCTION LIMITED,92186,16-Apr-19,2055614,"4,064.00 ",0,PAYMENT TO CONTRACTORS,GENERAL BUILDERS,Invoice,BACS,None,09-Apr-19,2019,1,2,K1515,BUILDING MAINTENANCE,D4468,PAYMENT TO CONTRACTORS
GUILDFORD BOROUGH COUNCIL,CORPORATE PROPERTY SERVICES,CLARKE GAMMON WELLERS,15029,02-Apr-19,2053315,750.00 ,0,VALUERS FEES,PROPERTY LETTING AND ESTATE AGENTS,Invoice,BACS,None,28-Mar-19,2019,1,14242,G4575,CORPORATE PROPERTY SERVICES,D4493,VALUERS FEES
GUILDFORD BOROUGH COUNCIL,REFUSE AND RECYCLING,COMENSURA LTD,32435,18-Apr-19,2056010,-1.68 ,0,AGENCY STAFF,OTHER RECRUITMENT AGENCIES AND SERVICE PROVIDERS,Invoice,BACS,None,16-Apr-19,2019,1,1025156,B7744,GREEN WASTE,A5191,AGENCY STAFF
GUILDFORD BOROUGH COUNCIL,STREET CLEANSING,COMENSURA LTD,32435,18-Apr-19,2056010,-1.49 ,0,AGENCY STAFF,OTHER RECRUITMENT AGENCIES AND SERVICE PROVIDERS,Invoice,BACS,None,16-Apr-19,2019,1,1025156,K4551,STREET CLEANSING,A5191,AGENCY STAFF
GUILDFORD BOROUGH COUNCIL,STREET CLEANSING,COMENSURA LTD,32435,18-Apr-19,2056010,534.28 ,0,AGENCY STAFF,OTHER RECRUITMENT AGENCIES AND SERVICE PROVIDERS,Invoice,BACS,None,16-Apr-19,2019,1,1025156,K4551,STREET CLEANSING,A5191,AGENCY STAFF
GUILDFORD BOROUGH COUNCIL,STREET CLEANSING,COMENSURA LTD,32435,18-Apr-19,2056010,-0.45 ,0,AGENCY STAFF,OTHER RECRUITMENT AGENCIES AND SERVICE PROVIDERS,Invoice,BACS,None,16-Apr-19,2019,1,1025156,K4551,STREET CLEANSING,A5191,AGENCY STAFF
GUILDFORD BOROUGH COUNCIL,STREET CLEANSING,COMENSURA LTD,32435,18-Apr-19,2056010,248.16 ,0,AGENCY STAFF,OTHER RECRUITMENT AGENCIES AND SERVICE PROVIDERS,Invoice,BACS,None,16-Apr-19,2019,1,1025156,K4551,STREET CLEANSING,A5191,AGENCY STAFF
GUILDFORD BOROUGH COUNCIL,OFF STREET PARKING,REDACTED,0,09-Apr-19,2054052,"21,377.08 ",0,PHONE&PAY INC AWAITING ANLYSIS,OTHER IT SERVICE PROVIDERS,Invoice,BACS,None,31-Mar-19,2019,1,REDACTED,B2111,CAR PARKS - ADMINISTRATION,K4939,PHONE&PAY INC AWAITING ANLYSIS
GUILDFORD BOROUGH COUNCIL,WOKING ROAD DEPOT,CLUSKEYS CCP LTD,1160,30-Apr-19,2056792,36.13 ,0,CLEANING MATERIALS,CLEANING AND JANITORIAL EQUIPMENT AND SUPPLIES PROVIDERS,Invoice,BACS,None,17-Apr-19,2019,1,51535,B4452,WOKING ROAD DEPOT,B6231,CLEANING MATERIALS
GUILDFORD BOROUGH COUNCIL,SPECTRUM,CLIMATE INTEGRATED SOLUTIONS LTD,89298,09-Apr-19,2054622,"14,766.75 ",0,CONSULTANTS FEES - PROJECTS,ENERGY EFFICIENT PRODUCT AND SERVICE PROVIDERS,Invoice,BACS,None,01-Apr-19,2019,1,1904_001,P22064,SPECTRUM CHP,1221,CONSULTANTS FEES - PROJECTS
GUILDFORD BOROUGH COUNCIL,RESPONSIVE & PLANNED MAINTENAN,CLEARWAY ENVIRONMENTAL SERVICES (UK) LTD,44277,23-Apr-19,2056212,885.00 ,0,DISINFESTATION,OTHER WASTE DISPOSAL SUPPLIERS,Invoice,BACS,None,18-Feb-19,2019,1,411479,M5113,REPAIRS-RESPONSIVE (BHS),B6246,DISINFESTATION
GUILDFORD BOROUGH COUNCIL,RESPONSIVE & PLANNED MAINTENAN,CLEARWAY ENVIRONMENTAL SERVICES (UK) LTD,44277,16-Apr-19,2055554,68.00 ,0,SECURITY FENCING,OTHER WASTE DISPOSAL SUPPLIERS,Invoice,BACS,None,31-Mar-19,2019,1,415100,M5115,REPAIRS-OTHER REPONSIVE (BHS),B9797,SECURITY FENCING
GUILDFORD BOROUGH COUNCIL,RESPONSIVE & PLANNED MAINTENAN,CLEARWAY ENVIRONMENTAL SERVICES (UK) LTD,44277,16-Apr-19,2055555,140.00 ,0,SECURITY FENCING,OTHER WASTE DISPOSAL SUPPLIERS,Invoice,BACS,None,31-Mar-19,2019,1,415390,M5115,REPAIRS-OTHER REPONSIVE (BHS),B9797,SECURITY FENCING
GUILDFORD BOROUGH COUNCIL,EQUITY SHARE ADMINISTRATION,CLARKE GAMMON WELLERS,15029,04-Apr-19,2054024,300.00 ,0,VALUERS FEES,PROPERTY LETTING AND ESTATE AGENTS,Invoice,BACS,None,09-Jan-19,2019,1,14171,M1181,SALE OF COUNCIL HOUSES (BHS),D4493,VALUERS FEES
GUILDFORD BOROUGH COUNCIL,REFUSE AND RECYCLING,COMENSURA LTD,32435,04-Apr-19,2054091,614.84 ,0,AGENCY STAFF,OTHER RECRUITMENT AGENCIES AND SERVICE PROVIDERS,Invoice,BACS,None,02-Apr-19,2019,1,1024405,B7766,KERBSIDE RECYCLING,A5191,AGENCY STAFF
GUILDFORD BOROUGH COUNCIL,EQUITY SHARE ADMINISTRATION,CLARKE GAMMON WELLERS,15029,09-Apr-19,2054580,285.00 ,0,VALUERS FEES,PROPERTY LETTING AND ESTATE AGENTS,Invoice,BACS,None,03-Apr-19,2019,1,14247,M1181,SALE OF COUNCIL HOUSES (BHS),D4493,VALUERS FEES
GUILDFORD BOROUGH COUNCIL,REFUSE AND RECYCLING,COMENSURA LTD,32435,04-Apr-19,2054091,-1.82 ,0,AGENCY STAFF,OTHER RECRUITMENT AGENCIES AND SERVICE PROVIDERS,Invoice,BACS,None,02-Apr-19,2019,1,1024405,B7766,KERBSIDE RECYCLING,A5191,AGENCY STAFF
GUILDFORD BOROUGH COUNCIL,EQUITY SHARE ADMINISTRATION,CLARKE GAMMON WELLERS,15029,04-Apr-19,2054023,285.00 ,0,VALUERS FEES,PROPERTY LETTING AND ESTATE AGENTS,Invoice,BACS,None,29-Mar-19,2019,1,14243,M1182,EQUITY SHARE ADMIN (BHS),D4493,VALUERS FEES
GUILDFORD BOROUGH COUNCIL,EQUITY SHARE ADMINISTRATION,CLARKE GAMMON WELLERS,15029,04-Apr-19,2054025,285.00 ,0,VALUERS FEES,PROPERTY LETTING AND ESTATE AGENTS,Invoice,BACS,None,19-Dec-18,2019,1,14162,M1181,SALE OF COUNCIL HOUSES (BHS),D4493,VALUERS FEES
GUILDFORD BOROUGH COUNCIL,EQUITY SHARE ADMINISTRATION,CLARKE GAMMON WELLERS,15029,09-Apr-19,2054582,285.00 ,0,VALUERS FEES,PROPERTY LETTING AND ESTATE AGENTS,Invoice,BACS,None,03-Apr-19,2019,1,14248,M1181,SALE OF COUNCIL HOUSES (BHS),D4493,VALUERS FEES
GUILDFORD BOROUGH COUNCIL,HOUSING BENEFITS,CIVICA UK LTD,9631,30-Apr-19,2056452,"4,400.00 ",0,AGENCY STAFF,COMPUTER SYSTEMS INTEGRATORS,Invoice,BACS,None,12-Apr-19,2019,1,C/BN178674,C4511,HOUSING BENEFITS ADMIN.,A5191,AGENCY STAFF
GUILDFORD BOROUGH COUNCIL,COMMUNITY DEVELOPMENT,CITIZENS ADVICE WAVERLEY,96665,09-Apr-19,2054630,"2,000.00 ",0,GENERAL GRANTS,THIRD PARTY SUPPLIER,Invoice,BACS,None,02-Apr-19,2019,1,333,F5724,SAFER GUILDFORD PARTNERSHIP,D7441,GENERAL GRANTS
GUILDFORD BOROUGH COUNCIL,GRANTS TO VOLUNTARY ORGS: H&C,CITIZENS ADVICE GUILDFORD,41150,18-Apr-19,2036398,"10,550.00 ",0,VOL ASSOC GRANT - PARTNERS,COUNSELLING SERVICE PROVIDERS,Invoice,BACS,None,27-Sep-18,2019,1,1009,C3111,COMMUNITY GRANT SCHEME,D7487,VOL ASSOC GRANT - PARTNERS
GUILDFORD BOROUGH COUNCIL,ENVIRONMENTAL CONTROL,CIRRUS RESEARCH PLC,47633,22-May-19,2052535,907.20 ,0,NEW / REPLACE EQUIP. & TOOLS;,OTHER ENVIRONMENTAL EQUIPMENT AND SERVICE PROVIDERS,Invoice,,None,14-Feb-19,2019,1,28274,C1113,ENVIRONMENTAL CONTROL,D1428,NEW / REPLACE EQUIP. & TOOLS;
GUILDFORD BOROUGH COUNCIL,ENVIRONMENTAL CONTROL,CIRRUS RESEARCH PLC,47633,16-Apr-19,2055526,756.00 ,0,NEW / REPLACE EQUIP. & TOOLS;,OTHER ENVIRONMENTAL EQUIPMENT AND SERVICE PROVIDERS,Invoice,BACS,None,28-Mar-19,2019,1,61583,C1113,ENVIRONMENTAL CONTROL,D1428,NEW / REPLACE EQUIP. & TOOLS;
GUILDFORD BOROUGH COUNCIL,GUILDFORD HOUSE,REDACTED,0,09-Apr-19,2054560,18.00 ,0,CRAFTWORK - SALE OR RETURN,,Invoice,BACS,None,03-Apr-19,2019,1,REDACTED,A4511,GUILDFORD HOUSE ADMINISTRATION,K3931,CRAFTWORK - SALE OR RETURN
GUILDFORD BOROUGH COUNCIL,GUILDFORD HOUSE,REDACTED,0,09-Apr-19,2054560,-6.30 ,0,COMMISSION ON CRAFTWORK SALES,,Invoice,BACS,None,03-Apr-19,2019,1,REDACTED,A4511,GUILDFORD HOUSE ADMINISTRATION,K5918,COMMISSION ON CRAFTWORK SALES
GUILDFORD BOROUGH COUNCIL,BUILDING MAINTENANCE,CHAMBERS WASTE MANAGEMENT PLC,1275,11-Apr-19,2054450,316.24 ,0,TIPPING FEES,OTHER WASTE DISPOSAL SUPPLIERS,Invoice,BACS,None,16-Mar-19,2019,1,P329181,K1515,BUILDING MAINTENANCE,D4489,TIPPING FEES
GUILDFORD BOROUGH COUNCIL,REFUSE AND RECYCLING,COMENSURA LTD,32435,18-Apr-19,2056010,222.68 ,0,AGENCY STAFF,OTHER RECRUITMENT AGENCIES AND SERVICE PROVIDERS,Invoice,BACS,None,16-Apr-19,2019,1,1025156,B7744,GREEN WASTE,A5191,AGENCY STAFF
GUILDFORD BOROUGH COUNCIL,CREMATORIUM,CHAMBERS WASTE MANAGEMENT PLC,1275,25-Apr-19,2055803,27.58 ,0,EQUIP. & TOOLS HIRE,OTHER WASTE DISPOSAL SUPPLIERS,Invoice,BACS,None,06-Apr-19,2019,1,P333841,A1500,GUILDFORD CREMATORIUM,D1430,EQUIP. & TOOLS HIRE
GUILDFORD BOROUGH COUNCIL,PARKS & COUNTRYSIDE,CHUBB FIRE & SECURITY LTD,18602,09-Apr-19,2052329,40.00 ,0,SECURITY SYSTEMS MAINTENANCE,FIRE FIGHTING AND RESCUE EQUIPMENT SUPPLIERS,Invoice,BACS,None,22-Mar-19,2019,1,7486775,A1600,STOKE NURSERY DEPOT,B1292,SECURITY SYSTEMS MAINTENANCE
GUILDFORD BOROUGH COUNCIL,BUILDING MAINTENANCE,CHAMBERS WASTE MANAGEMENT PLC,1275,11-Apr-19,2054447,52.30 ,0,TIPPING FEES,OTHER WASTE DISPOSAL SUPPLIERS,Invoice,BACS,None,16-Mar-19,2019,1,P328717,K1515,BUILDING MAINTENANCE,D4489,TIPPING FEES
GUILDFORD BOROUGH COUNCIL,POLICY,COMENSURA LTD,32435,18-Apr-19,2056010,248.43 ,0,AGENCY STAFF,OTHER RECRUITMENT AGENCIES AND SERVICE PROVIDERS,Invoice,BACS,None,16-Apr-19,2019,1,1025156,D5300,POLICY,A5191,AGENCY STAFF
GUILDFORD BOROUGH COUNCIL,REFUSE AND RECYCLING,COMENSURA LTD,32435,18-Apr-19,2056010,84.60 ,0,AGENCY STAFF,OTHER RECRUITMENT AGENCIES AND SERVICE PROVIDERS,Invoice,BACS,None,16-Apr-19,2019,1,1025156,B7766,KERBSIDE RECYCLING,A5191,AGENCY STAFF
GUILDFORD BOROUGH COUNCIL,REFUSE AND RECYCLING,COMENSURA LTD,32435,18-Apr-19,2056010,345.39 ,0,AGENCY STAFF,OTHER RECRUITMENT AGENCIES AND SERVICE PROVIDERS,Invoice,BACS,None,16-Apr-19,2019,1,1025156,B7744,GREEN WASTE,A5191,AGENCY STAFF
GUILDFORD BOROUGH COUNCIL,CREMATORIUM,CHAMBERS WASTE MANAGEMENT PLC,1275,04-Apr-19,2054071,27.58 ,0,EQUIP. & TOOLS HIRE,OTHER WASTE DISPOSAL SUPPLIERS,Invoice,BACS,None,31-Mar-19,2019,1,P330142,A1500,GUILDFORD CREMATORIUM,D1430,EQUIP. & TOOLS HIRE
GUILDFORD BOROUGH COUNCIL,BUILDING MAINTENANCE,CHAMBERS WASTE MANAGEMENT PLC,1275,11-Apr-19,2054451,"1,134.45 ",0,TIPPING FEES,OTHER WASTE DISPOSAL SUPPLIERS,Invoice,BACS,None,23-Mar-19,2019,1,P329344,K1515,BUILDING MAINTENANCE,D4489,TIPPING FEES
GUILDFORD BOROUGH COUNCIL,MOT BAY,COMENSURA LTD,32435,18-Apr-19,2056010,611.20 ,0,AGENCY STAFF,OTHER RECRUITMENT AGENCIES AND SERVICE PROVIDERS,Invoice,BACS,None,16-Apr-19,2019,1,1025156,V8598,MOT STATION,A5191,AGENCY STAFF
GUILDFORD BOROUGH COUNCIL,MOT BAY,COMENSURA LTD,32435,18-Apr-19,2056010,695.96 ,0,AGENCY STAFF,OTHER RECRUITMENT AGENCIES AND SERVICE PROVIDERS,Invoice,BACS,None,16-Apr-19,2019,1,1025156,V8598,MOT STATION,A5191,AGENCY STAFF
GUILDFORD BOROUGH COUNCIL,REFUSE AND RECYCLING,COMENSURA LTD,32435,11-Apr-19,2055200,84.15 ,0,AGENCY STAFF,OTHER RECRUITMENT AGENCIES AND SERVICE PROVIDERS,Invoice,BACS,None,09-Apr-19,2019,1,1024843,B7744,GREEN WASTE,A5191,AGENCY STAFF
GUILDFORD BOROUGH COUNCIL,STREET CLEANSING,COMENSURA LTD,32435,11-Apr-19,2055200,855.99 ,0,AGENCY STAFF,OTHER RECRUITMENT AGENCIES AND SERVICE PROVIDERS,Invoice,BACS,None,09-Apr-19,2019,1,1024843,K4551,STREET CLEANSING,A5191,AGENCY STAFF
GUILDFORD BOROUGH COUNCIL,BUILDING MAINTENANCE,COMENSURA LTD,32435,11-Apr-19,2055200,465.83 ,0,AGENCY STAFF,OTHER RECRUITMENT AGENCIES AND SERVICE PROVIDERS,Invoice,BACS,None,09-Apr-19,2019,1,1024843,K1515,BUILDING MAINTENANCE,A5191,AGENCY STAFF
GUILDFORD BOROUGH COUNCIL,REFUSE AND RECYCLING,COMENSURA LTD,32435,11-Apr-19,2055200,129.84 ,0,AGENCY STAFF,OTHER RECRUITMENT AGENCIES AND SERVICE PROVIDERS,Invoice,BACS,None,09-Apr-19,2019,1,1024843,K3551,REFUSE COLLECTION,A5191,AGENCY STAFF
GUILDFORD BOROUGH COUNCIL,BUILDING MAINTENANCE,CHAMBERS WASTE MANAGEMENT PLC,1275,11-Apr-19,2054453,52.30 ,0,TIPPING FEES,OTHER WASTE DISPOSAL SUPPLIERS,Invoice,BACS,None,23-Mar-19,2019,1,P329346,K1515,BUILDING MAINTENANCE,D4489,TIPPING FEES
GUILDFORD BOROUGH COUNCIL,REFUSE AND RECYCLING,COMENSURA LTD,32435,11-Apr-19,2055200,431.57 ,0,AGENCY STAFF,OTHER RECRUITMENT AGENCIES AND SERVICE PROVIDERS,Invoice,BACS,None,09-Apr-19,2019,1,1024843,K3551,REFUSE COLLECTION,A5191,AGENCY STAFF
GUILDFORD BOROUGH COUNCIL,MOT BAY,COMENSURA LTD,32435,18-Apr-19,2056010,-2.20 ,0,AGENCY STAFF,OTHER RECRUITMENT AGENCIES AND SERVICE PROVIDERS,Invoice,BACS,None,16-Apr-19,2019,1,1025156,V8598,MOT STATION,A5191,AGENCY STAFF
GUILDFORD BOROUGH COUNCIL,REFUSE AND RECYCLING,COMENSURA LTD,32435,18-Apr-19,2056010,570.27 ,0,AGENCY STAFF,OTHER RECRUITMENT AGENCIES AND SERVICE PROVIDERS,Invoice,BACS,None,16-Apr-19,2019,1,1025156,B7766,KERBSIDE RECYCLING,A5191,AGENCY STAFF
GUILDFORD BOROUGH COUNCIL,MOT BAY,COMENSURA LTD,32435,18-Apr-19,2056010,-2.00 ,0,AGENCY STAFF,OTHER RECRUITMENT AGENCIES AND SERVICE PROVIDERS,Invoice,BACS,None,16-Apr-19,2019,1,1025156,V8598,MOT STATION,A5191,AGENCY STAFF
GUILDFORD BOROUGH COUNCIL,REFUSE AND RECYCLING,COMENSURA LTD,32435,11-Apr-19,2055200,78.54 ,0,AGENCY STAFF,OTHER RECRUITMENT AGENCIES AND SERVICE PROVIDERS,Invoice,BACS,None,09-Apr-19,2019,1,1024843,K3551,REFUSE COLLECTION,A5191,AGENCY STAFF
GUILDFORD BOROUGH COUNCIL,REFUSE AND RECYCLING,COMENSURA LTD,32435,11-Apr-19,2055200,436.05 ,0,AGENCY STAFF,OTHER RECRUITMENT AGENCIES AND SERVICE PROVIDERS,Invoice,BACS,None,09-Apr-19,2019,1,1024843,K3551,REFUSE COLLECTION,A5191,AGENCY STAFF
GUILDFORD BOROUGH COUNCIL,STREET CLEANSING,COMENSURA LTD,32435,11-Apr-19,2055200,493.58 ,0,AGENCY STAFF,OTHER RECRUITMENT AGENCIES AND SERVICE PROVIDERS,Invoice,BACS,None,09-Apr-19,2019,1,1024843,K4551,STREET CLEANSING,A5191,AGENCY STAFF
GUILDFORD BOROUGH COUNCIL,REFUSE AND RECYCLING,COMENSURA LTD,32435,11-Apr-19,2055200,110.79 ,0,AGENCY STAFF,OTHER RECRUITMENT AGENCIES AND SERVICE PROVIDERS,Invoice,BACS,None,09-Apr-19,2019,1,1024843,B7744,GREEN WASTE,A5191,AGENCY STAFF
GUILDFORD BOROUGH COUNCIL,POLICY,COMENSURA LTD,32435,11-Apr-19,2055200,624.10 ,0,AGENCY STAFF,OTHER RECRUITMENT AGENCIES AND SERVICE PROVIDERS,Invoice,BACS,None,09-Apr-19,2019,1,1024843,D5300,POLICY,A5191,AGENCY STAFF
GUILDFORD BOROUGH COUNCIL,POLICY,COMENSURA LTD,32435,04-Apr-19,2054091,237.18 ,0,AGENCY STAFF,OTHER RECRUITMENT AGENCIES AND SERVICE PROVIDERS,Invoice,BACS,None,02-Apr-19,2019,1,1024405,D5300,POLICY,A5191,AGENCY STAFF
GUILDFORD BOROUGH COUNCIL,MUSEUM,COMENSURA LTD,32435,18-Apr-19,2056010,532.80 ,0,AGENCY STAFF,OTHER RECRUITMENT AGENCIES AND SERVICE PROVIDERS,Invoice,BACS,None,16-Apr-19,2019,1,1025156,A5511,MUSEUM,A5191,AGENCY STAFF
GUILDFORD BOROUGH COUNCIL,BUILDING MAINTENANCE,COMENSURA LTD,32435,11-Apr-19,2055200,385.54 ,0,AGENCY STAFF,OTHER RECRUITMENT AGENCIES AND SERVICE PROVIDERS,Invoice,BACS,None,09-Apr-19,2019,1,1024843,K1515,BUILDING MAINTENANCE,A5191,AGENCY STAFF
GUILDFORD BOROUGH COUNCIL,DEVELOPMENT CONTROL,COMENSURA LTD,32435,11-Apr-19,2055200,-1.16 ,0,AGENCY STAFF,OTHER RECRUITMENT AGENCIES AND SERVICE PROVIDERS,Invoice,BACS,None,09-Apr-19,2019,1,1024843,D5100,DEVELOPMENT CONTROL - FEE EARN,A5191,AGENCY STAFF
GUILDFORD BOROUGH COUNCIL,OTHER ST DEBTORS,REDACTED,0,16-Apr-19,2055643,950.00 ,0,CASH PAID,,Invoice,BACS,None,16-Apr-19,2019,1,REDACTED,J01064,HOUSING H4U SCHEME,2175,CASH PAID
GUILDFORD BOROUGH COUNCIL,STREET CLEANSING,COMENSURA LTD,32435,11-Apr-19,2055200,201.16 ,0,AGENCY STAFF,OTHER RECRUITMENT AGENCIES AND SERVICE PROVIDERS,Invoice,BACS,None,09-Apr-19,2019,1,1024843,K4551,STREET CLEANSING,A5191,AGENCY STAFF
GUILDFORD BOROUGH COUNCIL,MUSEUM,CHUBB FIRE & SECURITY LTD,18602,23-Apr-19,2056204,135.80 ,0,SECURITY SYSTEMS MAINTENANCE,FIRE FIGHTING AND RESCUE EQUIPMENT SUPPLIERS,Invoice,BACS,None,07-Apr-19,2019,1,7520103,A5511,MUSEUM,B1292,SECURITY SYSTEMS MAINTENANCE
GUILDFORD BOROUGH COUNCIL,OFF STREET PARKING,COMENSURA LTD,32435,11-Apr-19,2055200,617.04 ,0,AGENCY STAFF,OTHER RECRUITMENT AGENCIES AND SERVICE PROVIDERS,Invoice,BACS,None,09-Apr-19,2019,1,1024843,B2111,CAR PARKS - ADMINISTRATION,A5191,AGENCY STAFF
GUILDFORD BOROUGH COUNCIL,PARKS & COUNTRYSIDE,CHUBB FIRE & SECURITY LTD,18602,23-Apr-19,2056205,158.60 ,0,SECURITY SYSTEMS MAINTENANCE,FIRE FIGHTING AND RESCUE EQUIPMENT SUPPLIERS,Invoice,BACS,None,06-Apr-19,2019,1,7520102,A1275,STOKE PARK VISITOR POINT,B1292,SECURITY SYSTEMS MAINTENANCE
GUILDFORD BOROUGH COUNCIL,REFUSE AND RECYCLING,COMENSURA LTD,32435,04-Apr-19,2054091,203.64 ,0,AGENCY STAFF,OTHER RECRUITMENT AGENCIES AND SERVICE PROVIDERS,Invoice,BACS,None,02-Apr-19,2019,1,1024405,B7744,GREEN WASTE,A5191,AGENCY STAFF
GUILDFORD BOROUGH COUNCIL,STREET CLEANSING,COMENSURA LTD,32435,04-Apr-19,2054091,198.44 ,0,AGENCY STAFF,OTHER RECRUITMENT AGENCIES AND SERVICE PROVIDERS,Invoice,BACS,None,02-Apr-19,2019,1,1024405,K4551,STREET CLEANSING,A5191,AGENCY STAFF
GUILDFORD BOROUGH COUNCIL,MOT BAY,COMENSURA LTD,32435,25-Apr-19,2056555,528.24 ,0,AGENCY STAFF,OTHER RECRUITMENT AGENCIES AND SERVICE PROVIDERS,Invoice,BACS,None,24-Apr-19,2019,1,1025574,V8598,MOT STATION,A5191,AGENCY STAFF
GUILDFORD BOROUGH COUNCIL,REFUSE AND RECYCLING,COMENSURA LTD,32435,25-Apr-19,2056555,709.22 ,0,AGENCY STAFF,OTHER RECRUITMENT AGENCIES AND SERVICE PROVIDERS,Invoice,BACS,None,24-Apr-19,2019,1,1025574,K3551,REFUSE COLLECTION,A5191,AGENCY STAFF
GUILDFORD BOROUGH COUNCIL,REFUSE AND RECYCLING,COMENSURA LTD,32435,25-Apr-19,2056555,309.57 ,0,AGENCY STAFF,OTHER RECRUITMENT AGENCIES AND SERVICE PROVIDERS,Invoice,BACS,None,24-Apr-19,2019,1,1025574,K3551,REFUSE COLLECTION,A5191,AGENCY STAFF
GUILDFORD BOROUGH COUNCIL,REFUSE AND RECYCLING,COMENSURA LTD,32435,25-Apr-19,2056555,84.60 ,0,AGENCY STAFF,OTHER RECRUITMENT AGENCIES AND SERVICE PROVIDERS,Invoice,BACS,None,24-Apr-19,2019,1,1025574,K3551,REFUSE COLLECTION,A5191,AGENCY STAFF
GUILDFORD BOROUGH COUNCIL,BUILDING MAINTENANCE,COMENSURA LTD,32435,25-Apr-19,2056555,-0.90 ,0,AGENCY STAFF,OTHER RECRUITMENT AGENCIES AND SERVICE PROVIDERS,Invoice,BACS,None,24-Apr-19,2019,1,1025574,K1515,BUILDING MAINTENANCE,A5191,AGENCY STAFF
GUILDFORD BOROUGH COUNCIL,POLICY,COMENSURA LTD,32435,25-Apr-19,2056555,252.50 ,0,AGENCY STAFF,OTHER RECRUITMENT AGENCIES AND SERVICE PROVIDERS,Invoice,BACS,None,24-Apr-19,2019,1,1025574,D5300,POLICY,A5191,AGENCY STAFF
GUILDFORD BOROUGH COUNCIL,DEVELOPMENT CONTROL,COMENSURA LTD,32435,25-Apr-19,2056555,445.88 ,0,AGENCY STAFF,OTHER RECRUITMENT AGENCIES AND SERVICE PROVIDERS,Invoice,BACS,None,24-Apr-19,2019,1,1025574,D5100,DEVELOPMENT CONTROL - FEE EARN,A5191,AGENCY STAFF
GUILDFORD BOROUGH COUNCIL,DEVELOPMENT CONTROL,COMENSURA LTD,32435,25-Apr-19,2056555,433.16 ,0,AGENCY STAFF,OTHER RECRUITMENT AGENCIES AND SERVICE PROVIDERS,Invoice,BACS,None,24-Apr-19,2019,1,1025574,D5100,DEVELOPMENT CONTROL - FEE EARN,A5191,AGENCY STAFF
GUILDFORD BOROUGH COUNCIL,REFUSE AND RECYCLING,COMENSURA LTD,32435,11-Apr-19,2055200,191.60 ,0,AGENCY STAFF,OTHER RECRUITMENT AGENCIES AND SERVICE PROVIDERS,Invoice,BACS,None,09-Apr-19,2019,1,1024843,K3551,REFUSE COLLECTION,A5191,AGENCY STAFF
GUILDFORD BOROUGH COUNCIL,STREET CLEANSING,COMENSURA LTD,32435,11-Apr-19,2055200,-2.04 ,0,AGENCY STAFF,OTHER RECRUITMENT AGENCIES AND SERVICE PROVIDERS,Invoice,BACS,None,09-Apr-19,2019,1,1024843,K4551,STREET CLEANSING,A5191,AGENCY STAFF
GUILDFORD BOROUGH COUNCIL,STREET CLEANSING,COMENSURA LTD,32435,04-Apr-19,2054091,576.06 ,0,AGENCY STAFF,OTHER RECRUITMENT AGENCIES AND SERVICE PROVIDERS,Invoice,BACS,None,02-Apr-19,2019,1,1024405,K4551,STREET CLEANSING,A5191,AGENCY STAFF
GUILDFORD BOROUGH COUNCIL,REFUSE AND RECYCLING,COMENSURA LTD,32435,11-Apr-19,2055200,325.26 ,0,AGENCY STAFF,OTHER RECRUITMENT AGENCIES AND SERVICE PROVIDERS,Invoice,BACS,None,09-Apr-19,2019,1,1024843,B7744,GREEN WASTE,A5191,AGENCY STAFF
GUILDFORD BOROUGH COUNCIL,DEVELOPMENT CONTROL,COMENSURA LTD,32435,11-Apr-19,2055200,513.60 ,0,AGENCY STAFF,OTHER RECRUITMENT AGENCIES AND SERVICE PROVIDERS,Invoice,BACS,None,09-Apr-19,2019,1,1024843,D5100,DEVELOPMENT CONTROL - FEE EARN,A5191,AGENCY STAFF
GUILDFORD BOROUGH COUNCIL,REFUSE AND RECYCLING,COMENSURA LTD,32435,11-Apr-19,2055200,332.37 ,0,AGENCY STAFF,OTHER RECRUITMENT AGENCIES AND SERVICE PROVIDERS,Invoice,BACS,None,09-Apr-19,2019,1,1024843,K3551,REFUSE COLLECTION,A5191,AGENCY STAFF
GUILDFORD BOROUGH COUNCIL,REFUSE AND RECYCLING,COMENSURA LTD,32435,11-Apr-19,2055200,349.87 ,0,AGENCY STAFF,OTHER RECRUITMENT AGENCIES AND SERVICE PROVIDERS,Invoice,BACS,None,09-Apr-19,2019,1,1024843,B7711,RECYCLING ADMINISTRATION,A5191,AGENCY STAFF
GUILDFORD BOROUGH COUNCIL,ENVIRONMENTAL CONTROL,COMENSURA LTD,32435,18-Apr-19,2056010,-1.04 ,0,AGENCY STAFF,OTHER RECRUITMENT AGENCIES AND SERVICE PROVIDERS,Invoice,BACS,None,16-Apr-19,2019,1,1025156,C1113,ENVIRONMENTAL CONTROL,A5191,AGENCY STAFF
GUILDFORD BOROUGH COUNCIL,REFUSE AND RECYCLING,COMENSURA LTD,32435,18-Apr-19,2056010,163.56 ,0,AGENCY STAFF,OTHER RECRUITMENT AGENCIES AND SERVICE PROVIDERS,Invoice,BACS,None,16-Apr-19,2019,1,1025156,B7766,KERBSIDE RECYCLING,A5191,AGENCY STAFF
GUILDFORD BOROUGH COUNCIL,REFUSE AND RECYCLING,COMENSURA LTD,32435,18-Apr-19,2056010,215.53 ,0,AGENCY STAFF,OTHER RECRUITMENT AGENCIES AND SERVICE PROVIDERS,Invoice,BACS,None,16-Apr-19,2019,1,1025156,B7766,KERBSIDE RECYCLING,A5191,AGENCY STAFF
GUILDFORD BOROUGH COUNCIL,BUILDING MAINTENANCE,COMENSURA LTD,32435,18-Apr-19,2056010,471.38 ,0,AGENCY STAFF,OTHER RECRUITMENT AGENCIES AND SERVICE PROVIDERS,Invoice,BACS,None,16-Apr-19,2019,1,1025156,K1515,BUILDING MAINTENANCE,A5191,AGENCY STAFF
GUILDFORD BOROUGH COUNCIL,STREET CLEANSING,COMENSURA LTD,32435,04-Apr-19,2054091,873.97 ,0,AGENCY STAFF,OTHER RECRUITMENT AGENCIES AND SERVICE PROVIDERS,Invoice,BACS,None,02-Apr-19,2019,1,1024405,K4551,STREET CLEANSING,A5191,AGENCY STAFF
GUILDFORD BOROUGH COUNCIL,MUSEUM,COMENSURA LTD,32435,04-Apr-19,2054091,521.26 ,0,AGENCY STAFF,OTHER RECRUITMENT AGENCIES AND SERVICE PROVIDERS,Invoice,BACS,None,02-Apr-19,2019,1,1024405,A5511,MUSEUM,A5191,AGENCY STAFF
GUILDFORD BOROUGH COUNCIL,STREET CLEANSING,COMENSURA LTD,32435,04-Apr-19,2054091,878.02 ,0,AGENCY STAFF,OTHER RECRUITMENT AGENCIES AND SERVICE PROVIDERS,Invoice,BACS,None,02-Apr-19,2019,1,1024405,K4551,STREET CLEANSING,A5191,AGENCY STAFF
GUILDFORD BOROUGH COUNCIL,REFUSE AND RECYCLING,COMENSURA LTD,32435,04-Apr-19,2054091,370.74 ,0,AGENCY STAFF,OTHER RECRUITMENT AGENCIES AND SERVICE PROVIDERS,Invoice,BACS,None,02-Apr-19,2019,1,1024405,B7766,KERBSIDE RECYCLING,A5191,AGENCY STAFF
GUILDFORD BOROUGH COUNCIL,REFUSE AND RECYCLING,COMENSURA LTD,32435,11-Apr-19,2055200,168.30 ,0,AGENCY STAFF,OTHER RECRUITMENT AGENCIES AND SERVICE PROVIDERS,Invoice,BACS,None,09-Apr-19,2019,1,1024843,K3551,REFUSE COLLECTION,A5191,AGENCY STAFF
GUILDFORD BOROUGH COUNCIL,STREET CLEANSING,COMENSURA LTD,32435,04-Apr-19,2054091,489.49 ,0,AGENCY STAFF,OTHER RECRUITMENT AGENCIES AND SERVICE PROVIDERS,Invoice,BACS,None,02-Apr-19,2019,1,1024405,K4551,STREET CLEANSING,A5191,AGENCY STAFF
GUILDFORD BOROUGH COUNCIL,REFUSE AND RECYCLING,COMENSURA LTD,32435,11-Apr-19,2055200,-1.68 ,0,AGENCY STAFF,OTHER RECRUITMENT AGENCIES AND SERVICE PROVIDERS,Invoice,BACS,None,09-Apr-19,2019,1,1024843,B7744,GREEN WASTE,A5191,AGENCY STAFF
GUILDFORD BOROUGH COUNCIL,REFUSE AND RECYCLING,COMENSURA LTD,32435,04-Apr-19,2054091,391.46 ,0,AGENCY STAFF,OTHER RECRUITMENT AGENCIES AND SERVICE PROVIDERS,Invoice,BACS,None,02-Apr-19,2019,1,1024405,B7766,KERBSIDE RECYCLING,A5191,AGENCY STAFF
GUILDFORD BOROUGH COUNCIL,LEGAL SERVICES,COMENSURA LTD,32435,04-Apr-19,2054091,"1,723.26 ",0,AGENCY STAFF,OTHER RECRUITMENT AGENCIES AND SERVICE PROVIDERS,Invoice,BACS,None,02-Apr-19,2019,1,1024405,G4525,LEGAL SERVICES,A5191,AGENCY STAFF
GUILDFORD BOROUGH COUNCIL,FOOD AND SAFETY SERVICES,COMENSURA LTD,32435,04-Apr-19,2054091,769.92 ,0,AGENCY STAFF,OTHER RECRUITMENT AGENCIES AND SERVICE PROVIDERS,Invoice,BACS,None,02-Apr-19,2019,1,1024405,C1111,FOOD AND SAFETY SERVICES,A5191,AGENCY STAFF
GUILDFORD BOROUGH COUNCIL,REFUSE AND RECYCLING,COMENSURA LTD,32435,25-Apr-19,2056555,219.94 ,0,AGENCY STAFF,OTHER RECRUITMENT AGENCIES AND SERVICE PROVIDERS,Invoice,BACS,None,24-Apr-19,2019,1,1025574,B7744,GREEN WASTE,A5191,AGENCY STAFF
GUILDFORD BOROUGH COUNCIL,MOT BAY,COMENSURA LTD,32435,25-Apr-19,2056555,-1.68 ,0,AGENCY STAFF,OTHER RECRUITMENT AGENCIES AND SERVICE PROVIDERS,Invoice,BACS,None,24-Apr-19,2019,1,1025574,V8598,MOT STATION,A5191,AGENCY STAFF
GUILDFORD BOROUGH COUNCIL,STREET CLEANSING,COMENSURA LTD,32435,25-Apr-19,2056555,253.80 ,0,AGENCY STAFF,OTHER RECRUITMENT AGENCIES AND SERVICE PROVIDERS,Invoice,BACS,None,24-Apr-19,2019,1,1025574,K4551,STREET CLEANSING,A5191,AGENCY STAFF
GUILDFORD BOROUGH COUNCIL,REFUSE AND RECYCLING,COMENSURA LTD,32435,25-Apr-19,2056555,640.08 ,0,AGENCY STAFF,OTHER RECRUITMENT AGENCIES AND SERVICE PROVIDERS,Invoice,BACS,None,24-Apr-19,2019,1,1025574,K3551,REFUSE COLLECTION,A5191,AGENCY STAFF
GUILDFORD BOROUGH COUNCIL,REFUSE AND RECYCLING,COMENSURA LTD,32435,25-Apr-19,2056555,526.89 ,0,AGENCY STAFF,OTHER RECRUITMENT AGENCIES AND SERVICE PROVIDERS,Invoice,BACS,None,24-Apr-19,2019,1,1025574,B7744,GREEN WASTE,A5191,AGENCY STAFF
GUILDFORD BOROUGH COUNCIL,BUILDING MAINTENANCE,COMENSURA LTD,32435,25-Apr-19,2056555,382.20 ,0,AGENCY STAFF,OTHER RECRUITMENT AGENCIES AND SERVICE PROVIDERS,Invoice,BACS,None,24-Apr-19,2019,1,1025574,K1515,BUILDING MAINTENANCE,A5191,AGENCY STAFF
GUILDFORD BOROUGH COUNCIL,PROCUREMENT,COMENSURA LTD,32435,25-Apr-19,2056555,937.80 ,0,AGENCY STAFF,OTHER RECRUITMENT AGENCIES AND SERVICE PROVIDERS,Invoice,BACS,None,24-Apr-19,2019,1,1025574,G3593,PROCUREMENT SERVICES,A5191,AGENCY STAFF
GUILDFORD BOROUGH COUNCIL,BUILDING MAINTENANCE,COMENSURA LTD,32435,18-Apr-19,2056010,157.20 ,0,AGENCY STAFF,OTHER RECRUITMENT AGENCIES AND SERVICE PROVIDERS,Invoice,BACS,None,16-Apr-19,2019,1,1025156,K1515,BUILDING MAINTENANCE,A5191,AGENCY STAFF
GUILDFORD BOROUGH COUNCIL,STREET CLEANSING,COMENSURA LTD,32435,18-Apr-19,2056010,-1.48 ,0,AGENCY STAFF,OTHER RECRUITMENT AGENCIES AND SERVICE PROVIDERS,Invoice,BACS,None,16-Apr-19,2019,1,1025156,K4551,STREET CLEANSING,A5191,AGENCY STAFF
GUILDFORD BOROUGH COUNCIL,STREET CLEANSING,COMENSURA LTD,32435,04-Apr-19,2054091,548.58 ,0,AGENCY STAFF,OTHER RECRUITMENT AGENCIES AND SERVICE PROVIDERS,Invoice,BACS,None,02-Apr-19,2019,1,1024405,K4551,STREET CLEANSING,A5191,AGENCY STAFF
GUILDFORD BOROUGH COUNCIL,REFUSE AND RECYCLING,COMENSURA LTD,32435,04-Apr-19,2054091,323.08 ,0,AGENCY STAFF,OTHER RECRUITMENT AGENCIES AND SERVICE PROVIDERS,Invoice,BACS,None,02-Apr-19,2019,1,1024405,B7766,KERBSIDE RECYCLING,A5191,AGENCY STAFF
GUILDFORD BOROUGH COUNCIL,PARKS & COUNTRYSIDE,CASTLE WATER LIMITED,89638,25-Apr-19,2056559,181.68 ,0,WATER BY METER,MAINS WATER SUPPLIERS,Invoice,BACS,None,16-Apr-19,2019,1,01912268,A1385,PIRBIRGHT HEATHLANDS,B4221,WATER BY METER
GUILDFORD BOROUGH COUNCIL,DEVELOPMENT CONTROL,COMENSURA LTD,32435,25-Apr-19,2056555,-1.00 ,0,AGENCY STAFF,OTHER RECRUITMENT AGENCIES AND SERVICE PROVIDERS,Invoice,BACS,None,24-Apr-19,2019,1,1025574,D5100,DEVELOPMENT CONTROL - FEE EARN,A5191,AGENCY STAFF
GUILDFORD BOROUGH COUNCIL,REFUSE AND RECYCLING,COMENSURA LTD,32435,25-Apr-19,2056555,266.42 ,0,AGENCY STAFF,OTHER RECRUITMENT AGENCIES AND SERVICE PROVIDERS,Invoice,BACS,None,24-Apr-19,2019,1,1025574,K3551,REFUSE COLLECTION,A5191,AGENCY STAFF
GUILDFORD BOROUGH COUNCIL,STREET CLEANSING,COMENSURA LTD,32435,25-Apr-19,2056555,301.74 ,0,AGENCY STAFF,OTHER RECRUITMENT AGENCIES AND SERVICE PROVIDERS,Invoice,BACS,None,24-Apr-19,2019,1,1025574,K4551,STREET CLEANSING,A5191,AGENCY STAFF
GUILDFORD BOROUGH COUNCIL,STREET CLEANSING,COMENSURA LTD,32435,25-Apr-19,2056555,402.32 ,0,AGENCY STAFF,OTHER RECRUITMENT AGENCIES AND SERVICE PROVIDERS,Invoice,BACS,None,24-Apr-19,2019,1,1025574,K4551,STREET CLEANSING,A5191,AGENCY STAFF
GUILDFORD BOROUGH COUNCIL,REFUSE AND RECYCLING,COMENSURA LTD,32435,25-Apr-19,2056555,417.87 ,0,AGENCY STAFF,OTHER RECRUITMENT AGENCIES AND SERVICE PROVIDERS,Invoice,BACS,None,24-Apr-19,2019,1,1025574,K3551,REFUSE COLLECTION,A5191,AGENCY STAFF
GUILDFORD BOROUGH COUNCIL,REFUSE AND RECYCLING,COMENSURA LTD,32435,25-Apr-19,2056555,640.55 ,0,AGENCY STAFF,OTHER RECRUITMENT AGENCIES AND SERVICE PROVIDERS,Invoice,BACS,None,24-Apr-19,2019,1,1025574,B7744,GREEN WASTE,A5191,AGENCY STAFF
GUILDFORD BOROUGH COUNCIL,REFUSE AND RECYCLING,COMENSURA LTD,32435,25-Apr-19,2056555,-1.68 ,0,AGENCY STAFF,OTHER RECRUITMENT AGENCIES AND SERVICE PROVIDERS,Invoice,BACS,None,24-Apr-19,2019,1,1025574,B7744,GREEN WASTE,A5191,AGENCY STAFF
GUILDFORD BOROUGH COUNCIL,REFUSE AND RECYCLING,COMENSURA LTD,32435,25-Apr-19,2056555,342.26 ,0,AGENCY STAFF,OTHER RECRUITMENT AGENCIES AND SERVICE PROVIDERS,Invoice,BACS,None,24-Apr-19,2019,1,1025574,B7744,GREEN WASTE,A5191,AGENCY STAFF
GUILDFORD BOROUGH COUNCIL,REFUSE AND RECYCLING,COMENSURA LTD,32435,04-Apr-19,2054091,153.41 ,0,AGENCY STAFF,OTHER RECRUITMENT AGENCIES AND SERVICE PROVIDERS,Invoice,BACS,None,02-Apr-19,2019,1,1024405,B7744,GREEN WASTE,A5191,AGENCY STAFF
GUILDFORD BOROUGH COUNCIL,REFUSE AND RECYCLING,COMENSURA LTD,32435,04-Apr-19,2054091,-1.68 ,0,AGENCY STAFF,OTHER RECRUITMENT AGENCIES AND SERVICE PROVIDERS,Invoice,BACS,None,02-Apr-19,2019,1,1024405,B7744,GREEN WASTE,A5191,AGENCY STAFF
GUILDFORD BOROUGH COUNCIL,REFUSE AND RECYCLING,COMENSURA LTD,32435,04-Apr-19,2054091,433.13 ,0,AGENCY STAFF,OTHER RECRUITMENT AGENCIES AND SERVICE PROVIDERS,Invoice,BACS,None,02-Apr-19,2019,1,1024405,B7766,KERBSIDE RECYCLING,A5191,AGENCY STAFF
GUILDFORD BOROUGH COUNCIL,LEGAL SERVICES,COMENSURA LTD,32435,11-Apr-19,2055200,540.96 ,0,AGENCY STAFF,OTHER RECRUITMENT AGENCIES AND SERVICE PROVIDERS,Invoice,BACS,None,09-Apr-19,2019,1,1024843,G4525,LEGAL SERVICES,A5191,AGENCY STAFF
GUILDFORD BOROUGH COUNCIL,REFUSE AND RECYCLING,COMENSURA LTD,32435,04-Apr-19,2054091,578.29 ,0,AGENCY STAFF,OTHER RECRUITMENT AGENCIES AND SERVICE PROVIDERS,Invoice,BACS,None,02-Apr-19,2019,1,1024405,B7744,GREEN WASTE,A5191,AGENCY STAFF
GUILDFORD BOROUGH COUNCIL,REFUSE AND RECYCLING,COMENSURA LTD,32435,11-Apr-19,2055200,78.54 ,0,AGENCY STAFF,OTHER RECRUITMENT AGENCIES AND SERVICE PROVIDERS,Invoice,BACS,None,09-Apr-19,2019,1,1024843,B7744,GREEN WASTE,A5191,AGENCY STAFF
GUILDFORD BOROUGH COUNCIL,REFUSE AND RECYCLING,COMENSURA LTD,32435,04-Apr-19,2054091,543.18 ,0,AGENCY STAFF,OTHER RECRUITMENT AGENCIES AND SERVICE PROVIDERS,Invoice,BACS,None,02-Apr-19,2019,1,1024405,B7766,KERBSIDE RECYCLING,A5191,AGENCY STAFF
GUILDFORD BOROUGH COUNCIL,STREET CLEANSING,COMENSURA LTD,32435,18-Apr-19,2056010,338.70 ,0,AGENCY STAFF,OTHER RECRUITMENT AGENCIES AND SERVICE PROVIDERS,Invoice,BACS,None,16-Apr-19,2019,1,1025156,K4551,STREET CLEANSING,A5191,AGENCY STAFF
GUILDFORD BOROUGH COUNCIL,REFUSE AND RECYCLING,COMENSURA LTD,32435,18-Apr-19,2056010,509.32 ,0,AGENCY STAFF,OTHER RECRUITMENT AGENCIES AND SERVICE PROVIDERS,Invoice,BACS,None,16-Apr-19,2019,1,1025156,B7766,KERBSIDE RECYCLING,A5191,AGENCY STAFF
GUILDFORD BOROUGH COUNCIL,REFUSE AND RECYCLING,COMENSURA LTD,32435,18-Apr-19,2056010,221.18 ,0,AGENCY STAFF,OTHER RECRUITMENT AGENCIES AND SERVICE PROVIDERS,Invoice,BACS,None,16-Apr-19,2019,1,1025156,B7766,KERBSIDE RECYCLING,A5191,AGENCY STAFF
GUILDFORD BOROUGH COUNCIL,FOOD AND SAFETY SERVICES,COMENSURA LTD,32435,18-Apr-19,2056010,451.09 ,0,AGENCY STAFF,OTHER RECRUITMENT AGENCIES AND SERVICE PROVIDERS,Invoice,BACS,None,16-Apr-19,2019,1,1025156,C1111,FOOD AND SAFETY SERVICES,A5191,AGENCY STAFF
GUILDFORD BOROUGH COUNCIL,MAJOR PROJECTS,COMENSURA LTD,32435,18-Apr-19,2056010,394.48 ,0,AGENCY STAFF,OTHER RECRUITMENT AGENCIES AND SERVICE PROVIDERS,Invoice,BACS,None,16-Apr-19,2019,1,1025156,F5530,MAJOR PROJECTS,A5191,AGENCY STAFF
GUILDFORD BOROUGH COUNCIL,REFUSE AND RECYCLING,COMENSURA LTD,32435,11-Apr-19,2055200,546.84 ,0,AGENCY STAFF,OTHER RECRUITMENT AGENCIES AND SERVICE PROVIDERS,Invoice,BACS,None,09-Apr-19,2019,1,1024843,K3551,REFUSE COLLECTION,A5191,AGENCY STAFF
GUILDFORD BOROUGH COUNCIL,REFUSE AND RECYCLING,COMENSURA LTD,32435,11-Apr-19,2055200,-1.02 ,0,AGENCY STAFF,OTHER RECRUITMENT AGENCIES AND SERVICE PROVIDERS,Invoice,BACS,None,09-Apr-19,2019,1,1024843,K3551,REFUSE COLLECTION,A5191,AGENCY STAFF
GUILDFORD BOROUGH COUNCIL,STREET CLEANSING,COMENSURA LTD,32435,11-Apr-19,2055200,84.15 ,0,AGENCY STAFF,OTHER RECRUITMENT AGENCIES AND SERVICE PROVIDERS,Invoice,BACS,None,09-Apr-19,2019,1,1024843,K4551,STREET CLEANSING,A5191,AGENCY STAFF
GUILDFORD BOROUGH COUNCIL,REFUSE AND RECYCLING,COMENSURA LTD,32435,11-Apr-19,2055200,546.84 ,0,AGENCY STAFF,OTHER RECRUITMENT AGENCIES AND SERVICE PROVIDERS,Invoice,BACS,None,09-Apr-19,2019,1,1024843,B7744,GREEN WASTE,A5191,AGENCY STAFF
GUILDFORD BOROUGH COUNCIL,REFUSE AND RECYCLING,COMENSURA LTD,32435,11-Apr-19,2055200,235.33 ,0,AGENCY STAFF,OTHER RECRUITMENT AGENCIES AND SERVICE PROVIDERS,Invoice,BACS,None,09-Apr-19,2019,1,1024843,B7744,GREEN WASTE,A5191,AGENCY STAFF
GUILDFORD BOROUGH COUNCIL,BUILDING MAINTENANCE,COMENSURA LTD,32435,11-Apr-19,2055200,370.74 ,0,AGENCY STAFF,OTHER RECRUITMENT AGENCIES AND SERVICE PROVIDERS,Invoice,BACS,None,09-Apr-19,2019,1,1024843,K1515,BUILDING MAINTENANCE,A5191,AGENCY STAFF
GUILDFORD BOROUGH COUNCIL,REFUSE AND RECYCLING,COMENSURA LTD,32435,18-Apr-19,2056010,549.55 ,0,AGENCY STAFF,OTHER RECRUITMENT AGENCIES AND SERVICE PROVIDERS,Invoice,BACS,None,16-Apr-19,2019,1,1025156,B7744,GREEN WASTE,A5191,AGENCY STAFF
GUILDFORD BOROUGH COUNCIL,REFUSE AND RECYCLING,COMENSURA LTD,32435,04-Apr-19,2054091,102.98 ,0,AGENCY STAFF,OTHER RECRUITMENT AGENCIES AND SERVICE PROVIDERS,Invoice,BACS,None,02-Apr-19,2019,1,1024405,B7744,GREEN WASTE,A5191,AGENCY STAFF
GUILDFORD BOROUGH COUNCIL,STREET CLEANSING,COMENSURA LTD,32435,18-Apr-19,2056010,442.13 ,0,AGENCY STAFF,OTHER RECRUITMENT AGENCIES AND SERVICE PROVIDERS,Invoice,BACS,None,16-Apr-19,2019,1,1025156,K4551,STREET CLEANSING,A5191,AGENCY STAFF
GUILDFORD BOROUGH COUNCIL,REFUSE AND RECYCLING,COMENSURA LTD,32435,18-Apr-19,2056010,169.20 ,0,AGENCY STAFF,OTHER RECRUITMENT AGENCIES AND SERVICE PROVIDERS,Invoice,BACS,None,16-Apr-19,2019,1,1025156,B7744,GREEN WASTE,A5191,AGENCY STAFF
GUILDFORD BOROUGH COUNCIL,PROCUREMENT,COMENSURA LTD,32435,11-Apr-19,2055200,917.45 ,0,AGENCY STAFF,OTHER RECRUITMENT AGENCIES AND SERVICE PROVIDERS,Invoice,BACS,None,09-Apr-19,2019,1,1024843,G3593,PROCUREMENT SERVICES,A5191,AGENCY STAFF
GUILDFORD BOROUGH COUNCIL,REFUSE AND RECYCLING,COMENSURA LTD,32435,11-Apr-19,2055200,330.99 ,0,AGENCY STAFF,OTHER RECRUITMENT AGENCIES AND SERVICE PROVIDERS,Invoice,BACS,None,09-Apr-19,2019,1,1024843,B7744,GREEN WASTE,A5191,AGENCY STAFF
GUILDFORD BOROUGH COUNCIL,REFUSE AND RECYCLING,COMENSURA LTD,32435,11-Apr-19,2055200,131.23 ,0,AGENCY STAFF,OTHER RECRUITMENT AGENCIES AND SERVICE PROVIDERS,Invoice,BACS,None,09-Apr-19,2019,1,1024843,K3551,REFUSE COLLECTION,A5191,AGENCY STAFF
GUILDFORD BOROUGH COUNCIL,REFUSE AND RECYCLING,COMENSURA LTD,32435,11-Apr-19,2055200,221.58 ,0,AGENCY STAFF,OTHER RECRUITMENT AGENCIES AND SERVICE PROVIDERS,Invoice,BACS,None,09-Apr-19,2019,1,1024843,K3551,REFUSE COLLECTION,A5191,AGENCY STAFF
GUILDFORD BOROUGH COUNCIL,REFUSE AND RECYCLING,COMENSURA LTD,32435,11-Apr-19,2055200,301.33 ,0,AGENCY STAFF,OTHER RECRUITMENT AGENCIES AND SERVICE PROVIDERS,Invoice,BACS,None,09-Apr-19,2019,1,1024843,K3551,REFUSE COLLECTION,A5191,AGENCY STAFF
GUILDFORD BOROUGH COUNCIL,DEVELOPMENT CONTROL,COMENSURA LTD,32435,11-Apr-19,2055200,469.16 ,0,AGENCY STAFF,OTHER RECRUITMENT AGENCIES AND SERVICE PROVIDERS,Invoice,BACS,None,09-Apr-19,2019,1,1024843,D5100,DEVELOPMENT CONTROL - FEE EARN,A5191,AGENCY STAFF
GUILDFORD BOROUGH COUNCIL,REFUSE AND RECYCLING,COMENSURA LTD,32435,11-Apr-19,2055200,-1.68 ,0,AGENCY STAFF,OTHER RECRUITMENT AGENCIES AND SERVICE PROVIDERS,Invoice,BACS,None,09-Apr-19,2019,1,1024843,K3551,REFUSE COLLECTION,A5191,AGENCY STAFF
GUILDFORD BOROUGH COUNCIL,STREET CLEANSING,COMENSURA LTD,32435,11-Apr-19,2055200,330.99 ,0,AGENCY STAFF,OTHER RECRUITMENT AGENCIES AND SERVICE PROVIDERS,Invoice,BACS,None,09-Apr-19,2019,1,1024843,K4551,STREET CLEANSING,A5191,AGENCY STAFF
GUILDFORD BOROUGH COUNCIL,REFUSE AND RECYCLING,COMENSURA LTD,32435,11-Apr-19,2055200,243.44 ,0,AGENCY STAFF,OTHER RECRUITMENT AGENCIES AND SERVICE PROVIDERS,Invoice,BACS,None,09-Apr-19,2019,1,1024843,K3551,REFUSE COLLECTION,A5191,AGENCY STAFF
GUILDFORD BOROUGH COUNCIL,ENVIRONMENTAL CONTROL,COMENSURA LTD,32435,11-Apr-19,2055200,578.25 ,0,AGENCY STAFF,OTHER RECRUITMENT AGENCIES AND SERVICE PROVIDERS,Invoice,BACS,None,09-Apr-19,2019,1,1024843,C1113,ENVIRONMENTAL CONTROL,A5191,AGENCY STAFF
GUILDFORD BOROUGH COUNCIL,BUILDING MAINTENANCE,COMENSURA LTD,32435,11-Apr-19,2055200,469.16 ,0,AGENCY STAFF,OTHER RECRUITMENT AGENCIES AND SERVICE PROVIDERS,Invoice,BACS,None,09-Apr-19,2019,1,1024843,K1515,BUILDING MAINTENANCE,A5191,AGENCY STAFF
GUILDFORD BOROUGH COUNCIL,MUSEUM,COMENSURA LTD,32435,11-Apr-19,2055200,530.10 ,0,AGENCY STAFF,OTHER RECRUITMENT AGENCIES AND SERVICE PROVIDERS,Invoice,BACS,None,09-Apr-19,2019,1,1024843,A5511,MUSEUM,A5191,AGENCY STAFF
GUILDFORD BOROUGH COUNCIL,BUILDING MAINTENANCE,COMENSURA LTD,32435,18-Apr-19,2056010,-1.11 ,0,AGENCY STAFF,OTHER RECRUITMENT AGENCIES AND SERVICE PROVIDERS,Invoice,BACS,None,16-Apr-19,2019,1,1025156,K1515,BUILDING MAINTENANCE,A5191,AGENCY STAFF
GUILDFORD BOROUGH COUNCIL,REFUSE AND RECYCLING,COMENSURA LTD,32435,04-Apr-19,2054091,-1.36 ,0,AGENCY STAFF,OTHER RECRUITMENT AGENCIES AND SERVICE PROVIDERS,Invoice,BACS,None,02-Apr-19,2019,1,1024405,B7766,KERBSIDE RECYCLING,A5191,AGENCY STAFF
GUILDFORD BOROUGH COUNCIL,REFUSE AND RECYCLING,COMENSURA LTD,32435,18-Apr-19,2056010,-1.68 ,0,AGENCY STAFF,OTHER RECRUITMENT AGENCIES AND SERVICE PROVIDERS,Invoice,BACS,None,16-Apr-19,2019,1,1025156,B7766,KERBSIDE RECYCLING,A5191,AGENCY STAFF
GUILDFORD BOROUGH COUNCIL,REFUSE AND RECYCLING,COMENSURA LTD,32435,18-Apr-19,2056010,253.80 ,0,AGENCY STAFF,OTHER RECRUITMENT AGENCIES AND SERVICE PROVIDERS,Invoice,BACS,None,16-Apr-19,2019,1,1025156,B7744,GREEN WASTE,A5191,AGENCY STAFF
GUILDFORD BOROUGH COUNCIL,REFUSE AND RECYCLING,COMENSURA LTD,32435,18-Apr-19,2056010,549.55 ,0,AGENCY STAFF,OTHER RECRUITMENT AGENCIES AND SERVICE PROVIDERS,Invoice,BACS,None,16-Apr-19,2019,1,1025156,B7766,KERBSIDE RECYCLING,A5191,AGENCY STAFF
GUILDFORD BOROUGH COUNCIL,REFUSE AND RECYCLING,COMENSURA LTD,32435,18-Apr-19,2056010,-1.34 ,0,AGENCY STAFF,OTHER RECRUITMENT AGENCIES AND SERVICE PROVIDERS,Invoice,BACS,None,16-Apr-19,2019,1,1025156,B7744,GREEN WASTE,A5191,AGENCY STAFF
GUILDFORD BOROUGH COUNCIL,REFUSE AND RECYCLING,COMENSURA LTD,32435,18-Apr-19,2056010,-1.72 ,0,AGENCY STAFF,OTHER RECRUITMENT AGENCIES AND SERVICE PROVIDERS,Invoice,BACS,None,16-Apr-19,2019,1,1025156,B7766,KERBSIDE RECYCLING,A5191,AGENCY STAFF
GUILDFORD BOROUGH COUNCIL,DEVELOPMENT CONTROL,COMENSURA LTD,32435,18-Apr-19,2056010,509.58 ,0,AGENCY STAFF,OTHER RECRUITMENT AGENCIES AND SERVICE PROVIDERS,Invoice,BACS,None,16-Apr-19,2019,1,1025156,D5100,DEVELOPMENT CONTROL - FEE EARN,A5191,AGENCY STAFF
GUILDFORD BOROUGH COUNCIL,PROCUREMENT,COMENSURA LTD,32435,18-Apr-19,2056010,704.94 ,0,AGENCY STAFF,OTHER RECRUITMENT AGENCIES AND SERVICE PROVIDERS,Invoice,BACS,None,16-Apr-19,2019,1,1025156,G3593,PROCUREMENT SERVICES,A5191,AGENCY STAFF
GUILDFORD BOROUGH COUNCIL,ENVIRONMENTAL CONTROL,COMENSURA LTD,32435,11-Apr-19,2055200,-1.12 ,0,AGENCY STAFF,OTHER RECRUITMENT AGENCIES AND SERVICE PROVIDERS,Invoice,BACS,None,09-Apr-19,2019,1,1024843,C1113,ENVIRONMENTAL CONTROL,A5191,AGENCY STAFF
GUILDFORD BOROUGH COUNCIL,REFUSE AND RECYCLING,COMENSURA LTD,32435,11-Apr-19,2055200,325.26 ,0,AGENCY STAFF,OTHER RECRUITMENT AGENCIES AND SERVICE PROVIDERS,Invoice,BACS,None,09-Apr-19,2019,1,1024843,K3551,REFUSE COLLECTION,A5191,AGENCY STAFF
GUILDFORD BOROUGH COUNCIL,REFUSE AND RECYCLING,COMENSURA LTD,32435,11-Apr-19,2055200,-1.00 ,0,AGENCY STAFF,OTHER RECRUITMENT AGENCIES AND SERVICE PROVIDERS,Invoice,BACS,None,09-Apr-19,2019,1,1024843,K3551,REFUSE COLLECTION,A5191,AGENCY STAFF
GUILDFORD BOROUGH COUNCIL,OFF STREET PARKING,COMENSURA LTD,32435,11-Apr-19,2055200,534.43 ,0,AGENCY STAFF,OTHER RECRUITMENT AGENCIES AND SERVICE PROVIDERS,Invoice,BACS,None,09-Apr-19,2019,1,1024843,B2111,CAR PARKS - ADMINISTRATION,A5191,AGENCY STAFF
GUILDFORD BOROUGH COUNCIL,STREET CLEANSING,COMENSURA LTD,32435,11-Apr-19,2055200,293.48 ,0,AGENCY STAFF,OTHER RECRUITMENT AGENCIES AND SERVICE PROVIDERS,Invoice,BACS,None,09-Apr-19,2019,1,1024843,K4551,STREET CLEANSING,A5191,AGENCY STAFF
GUILDFORD BOROUGH COUNCIL,REFUSE AND RECYCLING,COMENSURA LTD,32435,18-Apr-19,2056010,84.60 ,0,AGENCY STAFF,OTHER RECRUITMENT AGENCIES AND SERVICE PROVIDERS,Invoice,BACS,None,16-Apr-19,2019,1,1025156,B7744,GREEN WASTE,A5191,AGENCY STAFF
GUILDFORD BOROUGH COUNCIL,DEVELOPMENT CONTROL,COMENSURA LTD,32435,18-Apr-19,2056010,471.38 ,0,AGENCY STAFF,OTHER RECRUITMENT AGENCIES AND SERVICE PROVIDERS,Invoice,BACS,None,16-Apr-19,2019,1,1025156,D5100,DEVELOPMENT CONTROL - FEE EARN,A5191,AGENCY STAFF
GUILDFORD BOROUGH COUNCIL,REFUSE AND RECYCLING,COMENSURA LTD,32435,25-Apr-19,2056555,640.55 ,0,AGENCY STAFF,OTHER RECRUITMENT AGENCIES AND SERVICE PROVIDERS,Invoice,BACS,None,24-Apr-19,2019,1,1025574,K3551,REFUSE COLLECTION,A5191,AGENCY STAFF
GUILDFORD BOROUGH COUNCIL,REFUSE AND RECYCLING,COMENSURA LTD,32435,11-Apr-19,2055200,84.15 ,0,AGENCY STAFF,OTHER RECRUITMENT AGENCIES AND SERVICE PROVIDERS,Invoice,BACS,None,09-Apr-19,2019,1,1024843,K3551,REFUSE COLLECTION,A5191,AGENCY STAFF
GUILDFORD BOROUGH COUNCIL,LEGAL SERVICES,COMENSURA LTD,32435,18-Apr-19,2056010,559.48 ,0,AGENCY STAFF,OTHER RECRUITMENT AGENCIES AND SERVICE PROVIDERS,Invoice,BACS,None,16-Apr-19,2019,1,1025156,G4525,LEGAL SERVICES,A5191,AGENCY STAFF
GUILDFORD BOROUGH COUNCIL,BUILDING MAINTENANCE,COMENSURA LTD,32435,11-Apr-19,2055200,-1.11 ,0,AGENCY STAFF,OTHER RECRUITMENT AGENCIES AND SERVICE PROVIDERS,Invoice,BACS,None,09-Apr-19,2019,1,1024843,K1515,BUILDING MAINTENANCE,A5191,AGENCY STAFF
GUILDFORD BOROUGH COUNCIL,LEGAL SERVICES,COMENSURA LTD,32435,11-Apr-19,2055200,"1,007.10 ",0,AGENCY STAFF,OTHER RECRUITMENT AGENCIES AND SERVICE PROVIDERS,Invoice,BACS,None,09-Apr-19,2019,1,1024843,G4525,LEGAL SERVICES,A5191,AGENCY STAFF
GUILDFORD BOROUGH COUNCIL,STREET CLEANSING,COMENSURA LTD,32435,11-Apr-19,2055200,547.60 ,0,AGENCY STAFF,OTHER RECRUITMENT AGENCIES AND SERVICE PROVIDERS,Invoice,BACS,None,09-Apr-19,2019,1,1024843,K4551,STREET CLEANSING,A5191,AGENCY STAFF
GUILDFORD BOROUGH COUNCIL,STREET CLEANSING,COMENSURA LTD,32435,11-Apr-19,2055200,-1.48 ,0,AGENCY STAFF,OTHER RECRUITMENT AGENCIES AND SERVICE PROVIDERS,Invoice,BACS,None,09-Apr-19,2019,1,1024843,K4551,STREET CLEANSING,A5191,AGENCY STAFF
GUILDFORD BOROUGH COUNCIL,REFUSE AND RECYCLING,COMENSURA LTD,32435,11-Apr-19,2055200,-1.34 ,0,AGENCY STAFF,OTHER RECRUITMENT AGENCIES AND SERVICE PROVIDERS,Invoice,BACS,None,09-Apr-19,2019,1,1024843,K3551,REFUSE COLLECTION,A5191,AGENCY STAFF
GUILDFORD BOROUGH COUNCIL,FOOD AND SAFETY SERVICES,COMENSURA LTD,32435,11-Apr-19,2055200,434.24 ,0,AGENCY STAFF,OTHER RECRUITMENT AGENCIES AND SERVICE PROVIDERS,Invoice,BACS,None,09-Apr-19,2019,1,1024843,C1111,FOOD AND SAFETY SERVICES,A5191,AGENCY STAFF
GUILDFORD BOROUGH COUNCIL,DEVELOPMENT CONTROL,COMENSURA LTD,32435,11-Apr-19,2055200,550.56 ,0,AGENCY STAFF,OTHER RECRUITMENT AGENCIES AND SERVICE PROVIDERS,Invoice,BACS,None,09-Apr-19,2019,1,1024843,D5100,DEVELOPMENT CONTROL - FEE EARN,A5191,AGENCY STAFF
GUILDFORD BOROUGH COUNCIL,ENVIRONMENTAL CONTROL,COMENSURA LTD,32435,25-Apr-19,2056555,-0.76 ,0,AGENCY STAFF,OTHER RECRUITMENT AGENCIES AND SERVICE PROVIDERS,Invoice,BACS,None,24-Apr-19,2019,1,1025574,C1113,ENVIRONMENTAL CONTROL,A5191,AGENCY STAFF
GUILDFORD BOROUGH COUNCIL,REFUSE AND RECYCLING,COMENSURA LTD,32435,25-Apr-19,2056555,236.71 ,0,AGENCY STAFF,OTHER RECRUITMENT AGENCIES AND SERVICE PROVIDERS,Invoice,BACS,None,24-Apr-19,2019,1,1025574,B7744,GREEN WASTE,A5191,AGENCY STAFF
GUILDFORD BOROUGH COUNCIL,REFUSE AND RECYCLING,COMENSURA LTD,32435,25-Apr-19,2056555,286.65 ,0,AGENCY STAFF,OTHER RECRUITMENT AGENCIES AND SERVICE PROVIDERS,Invoice,BACS,None,24-Apr-19,2019,1,1025574,B7711,RECYCLING ADMINISTRATION,A5191,AGENCY STAFF
GUILDFORD BOROUGH COUNCIL,MAJOR PROJECTS,COMENSURA LTD,32435,11-Apr-19,2055200,405.12 ,0,AGENCY STAFF,OTHER RECRUITMENT AGENCIES AND SERVICE PROVIDERS,Invoice,BACS,None,09-Apr-19,2019,1,1024843,F5530,MAJOR PROJECTS,A5191,AGENCY STAFF
GUILDFORD BOROUGH COUNCIL,REFUSE AND RECYCLING,COMENSURA LTD,32435,25-Apr-19,2056555,-1.68 ,0,AGENCY STAFF,OTHER RECRUITMENT AGENCIES AND SERVICE PROVIDERS,Invoice,BACS,None,24-Apr-19,2019,1,1025574,K3551,REFUSE COLLECTION,A5191,AGENCY STAFF
GUILDFORD BOROUGH COUNCIL,REFUSE AND RECYCLING,COMENSURA LTD,32435,18-Apr-19,2056010,332.76 ,0,AGENCY STAFF,OTHER RECRUITMENT AGENCIES AND SERVICE PROVIDERS,Invoice,BACS,None,16-Apr-19,2019,1,1025156,B7766,KERBSIDE RECYCLING,A5191,AGENCY STAFF
GUILDFORD BOROUGH COUNCIL,REFUSE AND RECYCLING,COMENSURA LTD,32435,04-Apr-19,2054091,213.03 ,0,AGENCY STAFF,OTHER RECRUITMENT AGENCIES AND SERVICE PROVIDERS,Invoice,BACS,None,02-Apr-19,2019,1,1024405,B7766,KERBSIDE RECYCLING,A5191,AGENCY STAFF
GUILDFORD BOROUGH COUNCIL,REFUSE AND RECYCLING,COMENSURA LTD,32435,04-Apr-19,2054091,440.20 ,0,AGENCY STAFF,OTHER RECRUITMENT AGENCIES AND SERVICE PROVIDERS,Invoice,BACS,None,02-Apr-19,2019,1,1024405,B7766,KERBSIDE RECYCLING,A5191,AGENCY STAFF
GUILDFORD BOROUGH COUNCIL,REFUSE AND RECYCLING,COMENSURA LTD,32435,04-Apr-19,2054091,330.15 ,0,AGENCY STAFF,OTHER RECRUITMENT AGENCIES AND SERVICE PROVIDERS,Invoice,BACS,None,02-Apr-19,2019,1,1024405,B7744,GREEN WASTE,A5191,AGENCY STAFF
GUILDFORD BOROUGH COUNCIL,MAJOR PROJECTS,COMENSURA LTD,32435,04-Apr-19,2054091,565.44 ,0,AGENCY STAFF,OTHER RECRUITMENT AGENCIES AND SERVICE PROVIDERS,Invoice,BACS,None,02-Apr-19,2019,1,1024405,F5530,MAJOR PROJECTS,A5191,AGENCY STAFF
GUILDFORD BOROUGH COUNCIL,REFUSE AND RECYCLING,COMENSURA LTD,32435,04-Apr-19,2054091,79.35 ,0,AGENCY STAFF,OTHER RECRUITMENT AGENCIES AND SERVICE PROVIDERS,Invoice,BACS,None,02-Apr-19,2019,1,1024405,B7744,GREEN WASTE,A5191,AGENCY STAFF
GUILDFORD BOROUGH COUNCIL,DEVELOPMENT CONTROL,COMENSURA LTD,32435,04-Apr-19,2054091,453.62 ,0,AGENCY STAFF,OTHER RECRUITMENT AGENCIES AND SERVICE PROVIDERS,Invoice,BACS,None,02-Apr-19,2019,1,1024405,D5100,DEVELOPMENT CONTROL - FEE EARN,A5191,AGENCY STAFF
GUILDFORD BOROUGH COUNCIL,REFUSE AND RECYCLING,COMENSURA LTD,32435,04-Apr-19,2054091,121.72 ,0,AGENCY STAFF,OTHER RECRUITMENT AGENCIES AND SERVICE PROVIDERS,Invoice,BACS,None,02-Apr-19,2019,1,1024405,B7744,GREEN WASTE,A5191,AGENCY STAFF
GUILDFORD BOROUGH COUNCIL,REFUSE AND RECYCLING,COMENSURA LTD,32435,25-Apr-19,2056555,445.36 ,0,AGENCY STAFF,OTHER RECRUITMENT AGENCIES AND SERVICE PROVIDERS,Invoice,BACS,None,24-Apr-19,2019,1,1025574,K3551,REFUSE COLLECTION,A5191,AGENCY STAFF
GUILDFORD BOROUGH COUNCIL,REFUSE AND RECYCLING,COMENSURA LTD,32435,04-Apr-19,2054091,248.31 ,0,AGENCY STAFF,OTHER RECRUITMENT AGENCIES AND SERVICE PROVIDERS,Invoice,BACS,None,02-Apr-19,2019,1,1024405,B7744,GREEN WASTE,A5191,AGENCY STAFF
GUILDFORD BOROUGH COUNCIL,STREET CLEANSING,COMENSURA LTD,32435,04-Apr-19,2054091,-1.53 ,0,AGENCY STAFF,OTHER RECRUITMENT AGENCIES AND SERVICE PROVIDERS,Invoice,BACS,None,02-Apr-19,2019,1,1024405,K4551,STREET CLEANSING,A5191,AGENCY STAFF
GUILDFORD BOROUGH COUNCIL,REFUSE AND RECYCLING,COMENSURA LTD,32435,04-Apr-19,2054091,220.10 ,0,AGENCY STAFF,OTHER RECRUITMENT AGENCIES AND SERVICE PROVIDERS,Invoice,BACS,None,02-Apr-19,2019,1,1024405,B7766,KERBSIDE RECYCLING,A5191,AGENCY STAFF
GUILDFORD BOROUGH COUNCIL,LEGAL SERVICES,COMENSURA LTD,32435,04-Apr-19,2054091,556.64 ,0,AGENCY STAFF,OTHER RECRUITMENT AGENCIES AND SERVICE PROVIDERS,Invoice,BACS,None,02-Apr-19,2019,1,1024405,G4525,LEGAL SERVICES,A5191,AGENCY STAFF
GUILDFORD BOROUGH COUNCIL,STREET CLEANSING,COMENSURA LTD,32435,04-Apr-19,2054091,-2.02 ,0,AGENCY STAFF,OTHER RECRUITMENT AGENCIES AND SERVICE PROVIDERS,Invoice,BACS,None,02-Apr-19,2019,1,1024405,K4551,STREET CLEANSING,A5191,AGENCY STAFF
GUILDFORD BOROUGH COUNCIL,STREET CLEANSING,COMENSURA LTD,32435,25-Apr-19,2056555,338.40 ,0,AGENCY STAFF,OTHER RECRUITMENT AGENCIES AND SERVICE PROVIDERS,Invoice,BACS,None,24-Apr-19,2019,1,1025574,K4551,STREET CLEANSING,A5191,AGENCY STAFF
GUILDFORD BOROUGH COUNCIL,PARKS & COUNTRYSIDE,CASTLE WATER LIMITED,89638,23-Apr-19,2055856,7.43 ,0,WATER BY METER,MAINS WATER SUPPLIERS,Invoice,BACS,None,03-Apr-19,2019,1,TW6078152517,A1130,CASTLE GROUNDS,B4221,WATER BY METER
GUILDFORD BOROUGH COUNCIL,FLATS COMMUNAL SERVICES,CONCRETE REPAIRS LTD,72288,04-Apr-19,2054219,18.73 ,0,R&M - GENERAL,"CONCRETE CUTTING, DRILLING AND MAINTENANCE CONTRACTORS",Invoice,BACS,None,28-Feb-19,2019,1,INV/014977,M2884,ROWAN CL 43 - 53 (6 ODD),B1231,R&M - GENERAL
GUILDFORD BOROUGH COUNCIL,RESPONSIVE & PLANNED MAINTENAN,CONCRETE REPAIRS LTD,72288,04-Apr-19,2054219,106.11 ,0,FIRE ALARMS  - SERVICE,"CONCRETE CUTTING, DRILLING AND MAINTENANCE CONTRACTORS",Invoice,BACS,None,28-Feb-19,2019,1,INV/014977,M5107,REPAIRS-SHELT-CYCLICAL (BHS),B1339,FIRE ALARMS  - SERVICE
GUILDFORD BOROUGH COUNCIL,RESPONSIVE & PLANNED MAINTENAN,CONCRETE REPAIRS LTD,72288,04-Apr-19,2054219,87.36 ,0,FIRE ALARMS  - SERVICE,"CONCRETE CUTTING, DRILLING AND MAINTENANCE CONTRACTORS",Invoice,BACS,None,28-Feb-19,2019,1,INV/014977,M5114,REPAIRS-CYCLICAL (BHS),B1339,FIRE ALARMS  - SERVICE
GUILDFORD BOROUGH COUNCIL,FLATS COMMUNAL SERVICES,CONCRETE REPAIRS LTD,72288,09-Apr-19,2054525,82.00 ,0,R&M - GENERAL,"CONCRETE CUTTING, DRILLING AND MAINTENANCE CONTRACTORS",Invoice,BACS,None,01-Feb-19,2019,1,INV/014979,M2715,FERN COURT 1-9 INCL (9),B1231,R&M - GENERAL
GUILDFORD BOROUGH COUNCIL,OFF STREET PARKING,CONCRETE REPAIRS LTD,72288,30-Apr-19,2057231,49.94 ,0,MECHANICAL/ELECTRICAL MNTCE AG,"CONCRETE CUTTING, DRILLING AND MAINTENANCE CONTRACTORS",Invoice,BACS,None,31-Dec-18,2019,1,INV/014804,B2216,GENERAL UPKEEP- URBAN CAR PKS,B1221,MECHANICAL/ELECTRICAL MNTCE AG
GUILDFORD BOROUGH COUNCIL,FLATS COMMUNAL SERVICES,CONCRETE REPAIRS LTD,72288,30-Apr-19,2057231,18.73 ,0,R&M - GENERAL,"CONCRETE CUTTING, DRILLING AND MAINTENANCE CONTRACTORS",Invoice,BACS,None,31-Dec-18,2019,1,INV/014804,M2736,FRIARY HOUSE 1-61 (61),B1231,R&M - GENERAL
GUILDFORD BOROUGH COUNCIL,PARKS & COUNTRYSIDE,CASTLE WATER LIMITED,89638,02-Apr-19,2052301,11.50 ,0,WATER BY METER,MAINS WATER SUPPLIERS,Invoice,BACS,None,16-Mar-19,2019,1,TW4719392046,A1220,SHALFORD PARK,B4221,WATER BY METER
GUILDFORD BOROUGH COUNCIL,MUSEUM,CONCRETE REPAIRS LTD,72288,04-Apr-19,2054218,18.73 ,0,MECHANICAL/ELECTRICAL MNTCE AG,"CONCRETE CUTTING, DRILLING AND MAINTENANCE CONTRACTORS",Invoice,BACS,None,27-Mar-19,2019,1,INV/014856,A5551,WANBOROUGH BARNS,B1221,MECHANICAL/ELECTRICAL MNTCE AG
GUILDFORD BOROUGH COUNCIL,PARKS & COUNTRYSIDE,CASTLE WATER LIMITED,89638,30-Apr-19,2056779,211.38 ,0,WATER BY METER,MAINS WATER SUPPLIERS,Invoice,BACS,None,06-Apr-19,2019,1,TW9775485454,A1260,ALLEN HOUSE GROUNDS,B4221,WATER BY METER
GUILDFORD BOROUGH COUNCIL,RESPONSIVE & PLANNED MAINTENAN,CONCRETE REPAIRS LTD,72288,04-Apr-19,2054218,49.94 ,0,FIRE ALARMS  - SERVICE,"CONCRETE CUTTING, DRILLING AND MAINTENANCE CONTRACTORS",Invoice,BACS,None,27-Mar-19,2019,1,INV/014856,M5114,REPAIRS-CYCLICAL (BHS),B1339,FIRE ALARMS  - SERVICE
GUILDFORD BOROUGH COUNCIL,PARKS & COUNTRYSIDE,CASTLE WATER LIMITED,89638,25-Apr-19,2055516,60.86 ,0,WATER BY METER,MAINS WATER SUPPLIERS,Invoice,BACS,None,03-Apr-19,2019,1,1876994,A1130,CASTLE GROUNDS,B4221,WATER BY METER
GUILDFORD BOROUGH COUNCIL,DAY SERVICES,CASTLE WATER LIMITED,89638,25-Apr-19,2056600,130.91 ,0,WATER BY METER,MAINS WATER SUPPLIERS,Invoice,BACS,None,06-Apr-19,2019,1,1897289,C8188,WEST HUB SHAWFIELD,B4221,WATER BY METER
GUILDFORD BOROUGH COUNCIL,OFF STREET PARKING,CASTLE WATER LIMITED,89638,02-Apr-19,2052299,121.65 ,0,WATER BY METER,MAINS WATER SUPPLIERS,Invoice,BACS,None,19-Mar-19,2019,1,TW9400077302,B2257,LEAPALE ROAD MSCP,B4221,WATER BY METER
GUILDFORD BOROUGH COUNCIL,DAY SERVICES,CASTLE WATER LIMITED,89638,30-Apr-19,2056634,91.65 ,0,WATER BY METER,MAINS WATER SUPPLIERS,Invoice,BACS,None,06-Apr-19,2019,1,TW9958490071,C8189,CENTRAL HUB PARK BARN,B4221,WATER BY METER
GUILDFORD BOROUGH COUNCIL,OFF STREET PARKING,CONCRETE REPAIRS LTD,72288,04-Apr-19,2054217,736.00 ,0,MECHANICAL/ELECTRICAL MNTCE AG,"CONCRETE CUTTING, DRILLING AND MAINTENANCE CONTRACTORS",Invoice,BACS,None,11-Mar-19,2019,1,INV/014978,B2216,GENERAL UPKEEP- URBAN CAR PKS,B1221,MECHANICAL/ELECTRICAL MNTCE AG
GUILDFORD BOROUGH COUNCIL,CEMETERIES,CASTLE WATER LIMITED,89638,30-Apr-19,2056780,9.35 ,0,WATER BY METER,MAINS WATER SUPPLIERS,Invoice,BACS,None,06-Apr-19,2019,1,TW6366578043,A1430,STOKE CEMETERY,B4221,WATER BY METER
GUILDFORD BOROUGH COUNCIL,PARKS & COUNTRYSIDE,CASTLE WATER LIMITED,89638,23-Apr-19,2055855,1.77 ,0,WATER BY METER,MAINS WATER SUPPLIERS,Invoice,BACS,None,03-Apr-19,2019,1,TW5666505198,A1220,SHALFORD PARK,B4221,WATER BY METER
GUILDFORD BOROUGH COUNCIL,GUILDHALL,CONCRETE REPAIRS LTD,72288,04-Apr-19,2054218,18.73 ,0,MECHANICAL/ELECTRICAL MNTCE AG,"CONCRETE CUTTING, DRILLING AND MAINTENANCE CONTRACTORS",Invoice,BACS,None,27-Mar-19,2019,1,INV/014856,F3311,GUILDHALL,B1221,MECHANICAL/ELECTRICAL MNTCE AG
GUILDFORD BOROUGH COUNCIL,PARKS & COUNTRYSIDE,CASTLE WATER LIMITED,89638,02-Apr-19,2052321,10.07 ,0,WATER BY METER,MAINS WATER SUPPLIERS,Invoice,BACS,None,16-Mar-19,2019,1,TW7217667132,A1340,CHANTRY WOOD,B4221,WATER BY METER
GUILDFORD BOROUGH COUNCIL,PUBLIC CONVENIENCES,CONCRETE REPAIRS LTD,72288,04-Apr-19,2054218,18.73 ,0,MECHANICAL/ELECTRICAL MNTCE AG,"CONCRETE CUTTING, DRILLING AND MAINTENANCE CONTRACTORS",Invoice,BACS,None,27-Mar-19,2019,1,INV/014856,K6559,SUTHERLAND MEMORIAL PUB CON,B1221,MECHANICAL/ELECTRICAL MNTCE AG
GUILDFORD BOROUGH COUNCIL,COMMUNITY DEVELOPMENT,COMMUNITY FOUNDATION FOR SURREY GRANTS,84463,04-Apr-19,2054017,"3,923.75 ",0,GUILDFORD PHILANTHROPY,COMMUNITY SERVICES PROVIDERS,Invoice,BACS,None,02-Apr-19,2019,1,PHILANTHROPY,F1127,COMMUNITY DEVELOPMENT,D7434,GUILDFORD PHILANTHROPY
GUILDFORD BOROUGH COUNCIL,FLATS COMMUNAL SERVICES,CONCRETE REPAIRS LTD,72288,04-Apr-19,2054218,18.73 ,0,R&M - GENERAL,"CONCRETE CUTTING, DRILLING AND MAINTENANCE CONTRACTORS",Invoice,BACS,None,27-Mar-19,2019,1,INV/014856,M2786,MAITLANDS CL 7-18 (12),B1231,R&M - GENERAL
GUILDFORD BOROUGH COUNCIL,FLATS COMMUNAL SERVICES,CONCRETE REPAIRS LTD,72288,04-Apr-19,2054218,18.73 ,0,R&M - GENERAL,"CONCRETE CUTTING, DRILLING AND MAINTENANCE CONTRACTORS",Invoice,BACS,None,27-Mar-19,2019,1,INV/014856,M2846,PURBECK COURT 1-12 (12),B1231,R&M - GENERAL
GUILDFORD BOROUGH COUNCIL,FLATS COMMUNAL SERVICES,CONCRETE REPAIRS LTD,72288,04-Apr-19,2054218,18.73 ,0,R&M - GENERAL,"CONCRETE CUTTING, DRILLING AND MAINTENANCE CONTRACTORS",Invoice,BACS,None,27-Mar-19,2019,1,INV/014856,M2904,SOUTHWAY COURT 13-24 (12),B1231,R&M - GENERAL
GUILDFORD BOROUGH COUNCIL,RESPONSIVE & PLANNED MAINTENAN,CONCRETE REPAIRS LTD,72288,04-Apr-19,2054218,18.73 ,0,FIRE ALARMS  - SERVICE,"CONCRETE CUTTING, DRILLING AND MAINTENANCE CONTRACTORS",Invoice,BACS,None,27-Mar-19,2019,1,INV/014856,M5114,REPAIRS-CYCLICAL (BHS),B1339,FIRE ALARMS  - SERVICE
GUILDFORD BOROUGH COUNCIL,PARKS & COUNTRYSIDE,CONCRETE REPAIRS LTD,72288,04-Apr-19,2054219,18.73 ,0,MECHANICAL/ELECTRICAL MNTCE AG,"CONCRETE CUTTING, DRILLING AND MAINTENANCE CONTRACTORS",Invoice,BACS,None,28-Feb-19,2019,1,INV/014977,A1211,STOUGHTON REC GRN PAVILLION,B1221,MECHANICAL/ELECTRICAL MNTCE AG
GUILDFORD BOROUGH COUNCIL,GUILDFORD HOUSE,CASTLE WATER LIMITED,89638,25-Apr-19,2055517,70.89 ,0,WATER BY METER,MAINS WATER SUPPLIERS,Invoice,BACS,None,03-Apr-19,2019,1,1882102,A4511,GUILDFORD HOUSE ADMINISTRATION,B4221,WATER BY METER
GUILDFORD BOROUGH COUNCIL,PARKS & COUNTRYSIDE,CASTLE WATER LIMITED,89638,25-Apr-19,2056628,101.96 ,0,WATER BY METER,MAINS WATER SUPPLIERS,Invoice,BACS,None,09-Apr-19,2019,1,01905286,A1600,STOKE NURSERY DEPOT,B4221,WATER BY METER
GUILDFORD BOROUGH COUNCIL,FLATS COMMUNAL SERVICES,CONCRETE REPAIRS LTD,72288,04-Apr-19,2054219,87.36 ,0,R&M - GENERAL,"CONCRETE CUTTING, DRILLING AND MAINTENANCE CONTRACTORS",Invoice,BACS,None,28-Feb-19,2019,1,INV/014977,M2715,FERN COURT 1-9 INCL (9),B1231,R&M - GENERAL
GUILDFORD BOROUGH COUNCIL,OFFICE SERVICES TEAM,CONCRETE REPAIRS LTD,72288,04-Apr-19,2054218,49.94 ,0,MECHANICAL/ELECTRICAL MNTCE AG,"CONCRETE CUTTING, DRILLING AND MAINTENANCE CONTRACTORS",Invoice,BACS,None,27-Mar-19,2019,1,INV/014856,G7511,MILLMEAD HOUSE,B1221,MECHANICAL/ELECTRICAL MNTCE AG
GUILDFORD BOROUGH COUNCIL,OFF STREET PARKING,CONCRETE REPAIRS LTD,72288,04-Apr-19,2054219,18.73 ,0,MECHANICAL/ELECTRICAL MNTCE AG,"CONCRETE CUTTING, DRILLING AND MAINTENANCE CONTRACTORS",Invoice,BACS,None,28-Feb-19,2019,1,INV/014977,B2216,GENERAL UPKEEP- URBAN CAR PKS,B1221,MECHANICAL/ELECTRICAL MNTCE AG
GUILDFORD BOROUGH COUNCIL,FLATS COMMUNAL SERVICES,CONCRETE REPAIRS LTD,72288,04-Apr-19,2054218,18.73 ,0,R&M - GENERAL,"CONCRETE CUTTING, DRILLING AND MAINTENANCE CONTRACTORS",Invoice,BACS,None,27-Mar-19,2019,1,INV/014856,M2623,ANSTON COURT 1-12 (12),B1231,R&M - GENERAL
GUILDFORD BOROUGH COUNCIL,FLATS COMMUNAL SERVICES,CONCRETE REPAIRS LTD,72288,04-Apr-19,2054218,49.94 ,0,R&M - GENERAL,"CONCRETE CUTTING, DRILLING AND MAINTENANCE CONTRACTORS",Invoice,BACS,None,27-Mar-19,2019,1,INV/014856,M2636,BEDFORD HOUSE (67),B1231,R&M - GENERAL
GUILDFORD BOROUGH COUNCIL,FLATS COMMUNAL SERVICES,CONCRETE REPAIRS LTD,72288,04-Apr-19,2054218,18.73 ,0,R&M - GENERAL,"CONCRETE CUTTING, DRILLING AND MAINTENANCE CONTRACTORS",Invoice,BACS,None,27-Mar-19,2019,1,INV/014856,M2715,FERN COURT 1-9 INCL (9),B1231,R&M - GENERAL
GUILDFORD BOROUGH COUNCIL,FLATS COMMUNAL SERVICES,CONCRETE REPAIRS LTD,72288,04-Apr-19,2054218,18.73 ,0,R&M - GENERAL,"CONCRETE CUTTING, DRILLING AND MAINTENANCE CONTRACTORS",Invoice,BACS,None,27-Mar-19,2019,1,INV/014856,M2736,FRIARY HOUSE 1-61 (61),B1231,R&M - GENERAL
GUILDFORD BOROUGH COUNCIL,FLATS COMMUNAL SERVICES,CONCRETE REPAIRS LTD,72288,04-Apr-19,2054218,49.94 ,0,R&M - GENERAL,"CONCRETE CUTTING, DRILLING AND MAINTENANCE CONTRACTORS",Invoice,BACS,None,27-Mar-19,2019,1,INV/014856,M2811,MOUNT COURT 1 - 40 (40),B1231,R&M - GENERAL
GUILDFORD BOROUGH COUNCIL,FLATS COMMUNAL SERVICES,CONCRETE REPAIRS LTD,72288,04-Apr-19,2054218,18.73 ,0,R&M - GENERAL,"CONCRETE CUTTING, DRILLING AND MAINTENANCE CONTRACTORS",Invoice,BACS,None,27-Mar-19,2019,1,INV/014856,M2883,ROWAN CL 31 - 41 (6 ODD),B1231,R&M - GENERAL
GUILDFORD BOROUGH COUNCIL,RESPONSIVE & PLANNED MAINTENAN,CONCRETE REPAIRS LTD,72288,04-Apr-19,2054218,18.73 ,0,FIRE ALARMS  - SERVICE,"CONCRETE CUTTING, DRILLING AND MAINTENANCE CONTRACTORS",Invoice,BACS,None,27-Mar-19,2019,1,INV/014856,M5114,REPAIRS-CYCLICAL (BHS),B1339,FIRE ALARMS  - SERVICE
GUILDFORD BOROUGH COUNCIL,LEISURE COMMUNITY CENTRES,CONCRETE REPAIRS LTD,72288,04-Apr-19,2054218,18.73 ,0,MECHANICAL/ELECTRICAL MNTCE AG,"CONCRETE CUTTING, DRILLING AND MAINTENANCE CONTRACTORS",Invoice,BACS,None,27-Mar-19,2019,1,INV/014856,A8141,PARK BARN YOUTH & COMMUNITY CE,B1221,MECHANICAL/ELECTRICAL MNTCE AG
GUILDFORD BOROUGH COUNCIL,MUSEUM,CONCRETE REPAIRS LTD,72288,04-Apr-19,2054218,18.73 ,0,MECHANICAL/ELECTRICAL MNTCE AG,"CONCRETE CUTTING, DRILLING AND MAINTENANCE CONTRACTORS",Invoice,BACS,None,27-Mar-19,2019,1,INV/014856,A5511,MUSEUM,B1221,MECHANICAL/ELECTRICAL MNTCE AG
GUILDFORD BOROUGH COUNCIL,GUILDFORD HOUSE,CASTLE WATER LIMITED,89638,02-Apr-19,2052314,54.88 ,0,WATER BY METER,MAINS WATER SUPPLIERS,Invoice,BACS,None,16-Mar-19,2019,1,TW8176527412,A4511,GUILDFORD HOUSE ADMINISTRATION,B4221,WATER BY METER
GUILDFORD BOROUGH COUNCIL,RESPONSIVE & PLANNED MAINTENAN,CONCRETE REPAIRS LTD,72288,30-Apr-19,2057231,18.73 ,0,FIRE ALARMS  - SERVICE,"CONCRETE CUTTING, DRILLING AND MAINTENANCE CONTRACTORS",Invoice,BACS,None,31-Dec-18,2019,1,INV/014804,M5114,REPAIRS-CYCLICAL (BHS),B1339,FIRE ALARMS  - SERVICE
GUILDFORD BOROUGH COUNCIL,RESPONSIVE & PLANNED MAINTENAN,CONCRETE REPAIRS LTD,72288,30-Apr-19,2057231,18.73 ,0,FIRE ALARMS  - SERVICE,"CONCRETE CUTTING, DRILLING AND MAINTENANCE CONTRACTORS",Invoice,BACS,None,31-Dec-18,2019,1,INV/014804,M5114,REPAIRS-CYCLICAL (BHS),B1339,FIRE ALARMS  - SERVICE
GUILDFORD BOROUGH COUNCIL,RESPONSIVE & PLANNED MAINTENAN,CONCRETE REPAIRS LTD,72288,30-Apr-19,2057231,18.73 ,0,FIRE ALARMS  - SERVICE,"CONCRETE CUTTING, DRILLING AND MAINTENANCE CONTRACTORS",Invoice,BACS,None,31-Dec-18,2019,1,INV/014804,M5114,REPAIRS-CYCLICAL (BHS),B1339,FIRE ALARMS  - SERVICE
GUILDFORD BOROUGH COUNCIL,CEMETERIES,CASTLE WATER LIMITED,89638,25-Apr-19,2055515,16.14 ,0,WATER BY METER,MAINS WATER SUPPLIERS,Invoice,BACS,None,03-Apr-19,2019,1,1881343,A1420,THE MOUNT CEMETERY,B4221,WATER BY METER
GUILDFORD BOROUGH COUNCIL,OFF STREET PARKING,CASTLE WATER LIMITED,89638,25-Apr-19,2055514,54.95 ,0,WATER BY METER,MAINS WATER SUPPLIERS,Invoice,BACS,None,03-Apr-19,2019,1,1882260,B2219,BEDFORD ROAD MSCP,B4221,WATER BY METER
GUILDFORD BOROUGH COUNCIL,PARKS & COUNTRYSIDE,CASTLE WATER LIMITED,89638,25-Apr-19,2056599,8.58 ,0,WATER BY METER,MAINS WATER SUPPLIERS,Invoice,BACS,None,06-Apr-19,2019,1,1698382,A1265,CARDWELLS KEEP,B4221,WATER BY METER
GUILDFORD BOROUGH COUNCIL,CREMATORIUM,CASTLE WATER LIMITED,89638,02-Apr-19,2052310,93.77 ,0,WATER BY METER,MAINS WATER SUPPLIERS,Invoice,BACS,None,16-Mar-19,2019,1,TW7706731096,A1500,GUILDFORD CREMATORIUM,B4221,WATER BY METER
GUILDFORD BOROUGH COUNCIL,PUBLIC CONVENIENCES,CASTLE WATER LIMITED,89638,23-Apr-19,2055818,193.57 ,0,WATER BY METER,MAINS WATER SUPPLIERS,Invoice,BACS,None,03-Apr-19,2019,1,TW8199000245,K6561,WARD STREET PUB CON,B4221,WATER BY METER
GUILDFORD BOROUGH COUNCIL,SHELTERED HOUSING,CASTLE WATER LIMITED,89638,02-Apr-19,2052313,315.02 ,0,WATER BY METER,MAINS WATER SUPPLIERS,Invoice,BACS,None,16-Mar-19,2019,1,TW3509240192,M1515,SHELTERED ACCOMODATION,B4221,WATER BY METER
GUILDFORD BOROUGH COUNCIL,MUSEUM,CONCRETE REPAIRS LTD,72288,30-Apr-19,2057231,18.73 ,0,MECHANICAL/ELECTRICAL MNTCE AG,"CONCRETE CUTTING, DRILLING AND MAINTENANCE CONTRACTORS",Invoice,BACS,None,31-Dec-18,2019,1,INV/014804,A5511,MUSEUM,B1221,MECHANICAL/ELECTRICAL MNTCE AG
GUILDFORD BOROUGH COUNCIL,PARISH & LOCAL LIAISON,COMPTON PARISH COUNCIL,1433,09-Apr-19,2054777,920.50 ,0,LCTSS PARISH GRANT,LOCAL GOVERNMENT [UK ONLY],Invoice,BACS,None,08-Apr-19,2019,1,PARISH PRECPT,F1115,PARISH LIAISON,D7431,LCTSS PARISH GRANT
GUILDFORD BOROUGH COUNCIL,GF NET REVENUE ACCOUNT,COMPTON PARISH COUNCIL,1433,09-Apr-19,2054777,"12,353.00 ",0,OOE - PARISH PRECEPTS PAID,LOCAL GOVERNMENT [UK ONLY],Invoice,BACS,None,08-Apr-19,2019,1,PARISH PRECPT,V01005,GF NET REVENUE ACCOUNT,2482,OOE - PARISH PRECEPTS PAID
GUILDFORD BOROUGH COUNCIL,ELECTIONS,COMPLETE CARE NETWORK T/A COMPLETE CARE SHOP,95117,09-Apr-19,2054728,58.50 ,0,STATIONERY & OFFICE SUPPLIES,THIRD PARTY SUPPLIER,Invoice,BACS,None,29-Mar-19,2019,1,2501201,F2153,GUILDFORD BOROUGH ELECTIONS,D3472,STATIONERY & OFFICE SUPPLIES
GUILDFORD BOROUGH COUNCIL,PUBLIC CONVENIENCES,CASTLE WATER LIMITED,89638,02-Apr-19,2052315,149.86 ,0,WATER BY METER,MAINS WATER SUPPLIERS,Invoice,BACS,None,19-Mar-19,2019,1,TW8199000245,K6561,WARD STREET PUB CON,B4221,WATER BY METER
GUILDFORD BOROUGH COUNCIL,MUSEUM,CASTLE WATER LIMITED,89638,25-Apr-19,2056482,7.60 ,0,WATER BY METER,MAINS WATER SUPPLIERS,Invoice,BACS,None,06-Apr-19,2019,1,1897348,A5531,UNDERCROFT 72/74 HIGH STREET,B4221,WATER BY METER
GUILDFORD BOROUGH COUNCIL,COMMUNITY LOTTERY HOLDING ACC,COMMUNITY FOUNDATION FOR SURREY GRANTS,84463,11-Apr-19,2055179,790.60 ,0,DONATIONS EXPENDITURE,COMMUNITY SERVICES PROVIDERS,Invoice,BACS,None,09-Apr-19,2019,1,LOTTERY PROCEED,G1188,COMMUNITY LOTTERY HOLDING ACC,D1406,DONATIONS EXPENDITURE
GUILDFORD BOROUGH COUNCIL,CIVIC EXPENSES,COMMUNITY FOUNDATION FOR SURREY GRANTS,84463,16-Apr-19,2055507,"1,085.53 ",0,EVENT COSTS,COMMUNITY SERVICES PROVIDERS,Invoice,BACS,None,11-Apr-19,2019,1,YOUNG CARERS,F2132,MAYORS THEME,D9553,EVENT COSTS
GUILDFORD BOROUGH COUNCIL,BUILDING MAINTENANCE,CATALIN ZAHARIA,95448,11-Apr-19,2055167,"2,778.80 ",0,PAYMENT TO CONTRACTORS,THIRD PARTY SUPPLIER,Invoice,BACS,None,05-Apr-19,2019,1,4,K1515,BUILDING MAINTENANCE,D4468,PAYMENT TO CONTRACTORS
GUILDFORD BOROUGH COUNCIL,OFFICE SERVICES TEAM,CASTLE WATER LIMITED,89638,02-Apr-19,2052312,538.09 ,0,WATER BY METER,MAINS WATER SUPPLIERS,Invoice,BACS,None,16-Mar-19,2019,1,TW4062425276,G7511,MILLMEAD HOUSE,B4221,WATER BY METER
GUILDFORD BOROUGH COUNCIL,RESPONSIVE & PLANNED MAINTENAN,CONCRETE REPAIRS LTD,72288,04-Apr-19,2054219,106.11 ,0,FIRE ALARMS  - SERVICE,"CONCRETE CUTTING, DRILLING AND MAINTENANCE CONTRACTORS",Invoice,BACS,None,28-Feb-19,2019,1,INV/014977,M5107,REPAIRS-SHELT-CYCLICAL (BHS),B1339,FIRE ALARMS  - SERVICE
GUILDFORD BOROUGH COUNCIL,FLATS COMMUNAL SERVICES,CONCRETE REPAIRS LTD,72288,04-Apr-19,2054218,18.73 ,0,R&M - GENERAL,"CONCRETE CUTTING, DRILLING AND MAINTENANCE CONTRACTORS",Invoice,BACS,None,27-Mar-19,2019,1,INV/014856,M2685,EGERTON COURT 1-12,B1231,R&M - GENERAL
GUILDFORD BOROUGH COUNCIL,FLATS COMMUNAL SERVICES,CONCRETE REPAIRS LTD,72288,04-Apr-19,2054218,18.73 ,0,R&M - GENERAL,"CONCRETE CUTTING, DRILLING AND MAINTENANCE CONTRACTORS",Invoice,BACS,None,27-Mar-19,2019,1,INV/014856,M2881,ROWAN CLOSE 7-17 (6 ODD),B1231,R&M - GENERAL
GUILDFORD BOROUGH COUNCIL,RESPONSIVE & PLANNED MAINTENAN,CONCRETE REPAIRS LTD,72288,04-Apr-19,2054218,49.94 ,0,FIRE ALARMS  - SERVICE,"CONCRETE CUTTING, DRILLING AND MAINTENANCE CONTRACTORS",Invoice,BACS,None,27-Mar-19,2019,1,INV/014856,M5107,REPAIRS-SHELT-CYCLICAL (BHS),B1339,FIRE ALARMS  - SERVICE
GUILDFORD BOROUGH COUNCIL,RESPONSIVE & PLANNED MAINTENAN,CONCRETE REPAIRS LTD,72288,04-Apr-19,2054218,49.94 ,0,FIRE ALARMS  - SERVICE,"CONCRETE CUTTING, DRILLING AND MAINTENANCE CONTRACTORS",Invoice,BACS,None,27-Mar-19,2019,1,INV/014856,M5107,REPAIRS-SHELT-CYCLICAL (BHS),B1339,FIRE ALARMS  - SERVICE
GUILDFORD BOROUGH COUNCIL,MUSEUM,CONCRETE REPAIRS LTD,72288,04-Apr-19,2054219,18.73 ,0,MECHANICAL/ELECTRICAL MNTCE AG,"CONCRETE CUTTING, DRILLING AND MAINTENANCE CONTRACTORS",Invoice,BACS,None,28-Feb-19,2019,1,INV/014977,A5511,MUSEUM,B1221,MECHANICAL/ELECTRICAL MNTCE AG
GUILDFORD BOROUGH COUNCIL,OFF STREET PARKING,CONCRETE REPAIRS LTD,72288,04-Apr-19,2054219,87.36 ,0,MECHANICAL/ELECTRICAL MNTCE AG,"CONCRETE CUTTING, DRILLING AND MAINTENANCE CONTRACTORS",Invoice,BACS,None,28-Feb-19,2019,1,INV/014977,B2216,GENERAL UPKEEP- URBAN CAR PKS,B1221,MECHANICAL/ELECTRICAL MNTCE AG
GUILDFORD BOROUGH COUNCIL,PUBLIC CONVENIENCES,CONCRETE REPAIRS LTD,72288,04-Apr-19,2054219,49.94 ,0,MECHANICAL/ELECTRICAL MNTCE AG,"CONCRETE CUTTING, DRILLING AND MAINTENANCE CONTRACTORS",Invoice,BACS,None,28-Feb-19,2019,1,INV/014977,K6558,STOKE PRK TENNIS COURT PUB CON,B1221,MECHANICAL/ELECTRICAL MNTCE AG
GUILDFORD BOROUGH COUNCIL,FLATS COMMUNAL SERVICES,CONCRETE REPAIRS LTD,72288,04-Apr-19,2054219,18.73 ,0,R&M - GENERAL,"CONCRETE CUTTING, DRILLING AND MAINTENANCE CONTRACTORS",Invoice,BACS,None,28-Feb-19,2019,1,INV/014977,M2628,BARGATE COURT 1-16 (16),B1231,R&M - GENERAL
GUILDFORD BOROUGH COUNCIL,RESPONSIVE & PLANNED MAINTENAN,CONCRETE REPAIRS LTD,72288,30-Apr-19,2057231,18.73 ,0,FIRE ALARMS  - SERVICE,"CONCRETE CUTTING, DRILLING AND MAINTENANCE CONTRACTORS",Invoice,BACS,None,31-Dec-18,2019,1,INV/014804,M5114,REPAIRS-CYCLICAL (BHS),B1339,FIRE ALARMS  - SERVICE
GUILDFORD BOROUGH COUNCIL,FLATS COMMUNAL SERVICES,CONCRETE REPAIRS LTD,72288,04-Apr-19,2054219,21.57 ,0,MECHANICAL/ELECTRICAL MNTCE AG,"CONCRETE CUTTING, DRILLING AND MAINTENANCE CONTRACTORS",Invoice,BACS,None,28-Feb-19,2019,1,INV/014977,M3512,MARJORAM CLOSE EQUITY SHARE,B1221,MECHANICAL/ELECTRICAL MNTCE AG
GUILDFORD BOROUGH COUNCIL,LEISURE COMMUNITY CENTRES,CONCRETE REPAIRS LTD,72288,30-Apr-19,2057231,18.73 ,0,MECHANICAL/ELECTRICAL MNTCE AG,"CONCRETE CUTTING, DRILLING AND MAINTENANCE CONTRACTORS",Invoice,BACS,None,31-Dec-18,2019,1,INV/014804,A8121,BELLFIELDS YOUTH & COMMUNITY C,B1221,MECHANICAL/ELECTRICAL MNTCE AG
GUILDFORD BOROUGH COUNCIL,RESPONSIVE & PLANNED MAINTENAN,CONCRETE REPAIRS LTD,72288,04-Apr-19,2054219,18.73 ,0,FIRE ALARMS  - SERVICE,"CONCRETE CUTTING, DRILLING AND MAINTENANCE CONTRACTORS",Invoice,BACS,None,28-Feb-19,2019,1,INV/014977,M5114,REPAIRS-CYCLICAL (BHS),B1339,FIRE ALARMS  - SERVICE
GUILDFORD BOROUGH COUNCIL,MOT BAY,COMENSURA LTD,32435,18-Apr-19,2056010,703.20 ,0,AGENCY STAFF,OTHER RECRUITMENT AGENCIES AND SERVICE PROVIDERS,Invoice,BACS,None,16-Apr-19,2019,1,1025156,V8598,MOT STATION,A5191,AGENCY STAFF
GUILDFORD BOROUGH COUNCIL,FLATS COMMUNAL SERVICES,CONCRETE REPAIRS LTD,72288,09-Apr-19,2054525,260.00 ,0,R&M - GENERAL,"CONCRETE CUTTING, DRILLING AND MAINTENANCE CONTRACTORS",Invoice,BACS,None,01-Feb-19,2019,1,INV/014979,M2761,HOPTON COURT 1-8 (8),B1231,R&M - GENERAL
GUILDFORD BOROUGH COUNCIL,RESPONSIVE & PLANNED MAINTENAN,CONCRETE REPAIRS LTD,72288,09-Apr-19,2054525,10.00 ,0,FIRE ALARMS  - SERVICE,"CONCRETE CUTTING, DRILLING AND MAINTENANCE CONTRACTORS",Invoice,BACS,None,01-Feb-19,2019,1,INV/014979,M5107,REPAIRS-SHELT-CYCLICAL (BHS),B1339,FIRE ALARMS  - SERVICE
GUILDFORD BOROUGH COUNCIL,PARKS & COUNTRYSIDE,CONCRETE REPAIRS LTD,72288,09-Apr-19,2054525,10.00 ,0,MECHANICAL/ELECTRICAL MNTCE AG,"CONCRETE CUTTING, DRILLING AND MAINTENANCE CONTRACTORS",Invoice,BACS,None,01-Feb-19,2019,1,INV/014979,A1230,SUTH'LAND MEM PRK PAVILION-GBC,B1221,MECHANICAL/ELECTRICAL MNTCE AG
GUILDFORD BOROUGH COUNCIL,OFF STREET PARKING,CONCRETE REPAIRS LTD,72288,09-Apr-19,2054525,10.00 ,0,MECHANICAL/ELECTRICAL MNTCE AG,"CONCRETE CUTTING, DRILLING AND MAINTENANCE CONTRACTORS",Invoice,BACS,None,01-Feb-19,2019,1,INV/014979,B2216,GENERAL UPKEEP- URBAN CAR PKS,B1221,MECHANICAL/ELECTRICAL MNTCE AG
GUILDFORD BOROUGH COUNCIL,FLATS COMMUNAL SERVICES,CONCRETE REPAIRS LTD,72288,30-Apr-19,2057231,18.73 ,0,R&M - GENERAL,"CONCRETE CUTTING, DRILLING AND MAINTENANCE CONTRACTORS",Invoice,BACS,None,31-Dec-18,2019,1,INV/014804,M2685,EGERTON COURT 1-12,B1231,R&M - GENERAL
GUILDFORD BOROUGH COUNCIL,LEISURE COMMUNITY CENTRES,CONCRETE REPAIRS LTD,72288,04-Apr-19,2054218,18.73 ,0,MECHANICAL/ELECTRICAL MNTCE AG,"CONCRETE CUTTING, DRILLING AND MAINTENANCE CONTRACTORS",Invoice,BACS,None,27-Mar-19,2019,1,INV/014856,A8121,BELLFIELDS YOUTH & COMMUNITY C,B1221,MECHANICAL/ELECTRICAL MNTCE AG
GUILDFORD BOROUGH COUNCIL,FLATS COMMUNAL SERVICES,CONCRETE REPAIRS LTD,72288,04-Apr-19,2054219,87.36 ,0,R&M - GENERAL,"CONCRETE CUTTING, DRILLING AND MAINTENANCE CONTRACTORS",Invoice,BACS,None,28-Feb-19,2019,1,INV/014977,M2642,BELLFIELDS CT 13-24 (12),B1231,R&M - GENERAL
GUILDFORD BOROUGH COUNCIL,PARKS & COUNTRYSIDE,CASTLE WATER LIMITED,89638,25-Apr-19,2056629,45.42 ,0,WATER BY METER,MAINS WATER SUPPLIERS,Invoice,BACS,None,09-Apr-19,2019,1,01905281,A1250,STOKE PARK,B4221,WATER BY METER
GUILDFORD BOROUGH COUNCIL,PARKS & COUNTRYSIDE,CONCRETE REPAIRS LTD,72288,30-Apr-19,2057231,18.73 ,0,MECHANICAL/ELECTRICAL MNTCE AG,"CONCRETE CUTTING, DRILLING AND MAINTENANCE CONTRACTORS",Invoice,BACS,None,31-Dec-18,2019,1,INV/014804,A1230,SUTH'LAND MEM PRK PAVILION-GBC,B1221,MECHANICAL/ELECTRICAL MNTCE AG
GUILDFORD BOROUGH COUNCIL,CREMATORIUM,CONCRETE REPAIRS LTD,72288,30-Apr-19,2057231,18.73 ,0,MECHANICAL/ELECTRICAL MNTCE AG,"CONCRETE CUTTING, DRILLING AND MAINTENANCE CONTRACTORS",Invoice,BACS,None,31-Dec-18,2019,1,INV/014804,A1500,GUILDFORD CREMATORIUM,B1221,MECHANICAL/ELECTRICAL MNTCE AG
GUILDFORD BOROUGH COUNCIL,LEISURE COMMUNITY CENTRES,CONCRETE REPAIRS LTD,72288,30-Apr-19,2057231,18.73 ,0,MECHANICAL/ELECTRICAL MNTCE AG,"CONCRETE CUTTING, DRILLING AND MAINTENANCE CONTRACTORS",Invoice,BACS,None,31-Dec-18,2019,1,INV/014804,A8141,PARK BARN YOUTH & COMMUNITY CE,B1221,MECHANICAL/ELECTRICAL MNTCE AG
GUILDFORD BOROUGH COUNCIL,FLATS COMMUNAL SERVICES,CONCRETE REPAIRS LTD,72288,30-Apr-19,2057231,18.73 ,0,R&M - GENERAL,"CONCRETE CUTTING, DRILLING AND MAINTENANCE CONTRACTORS",Invoice,BACS,None,31-Dec-18,2019,1,INV/014804,M2628,BARGATE COURT 1-16 (16),B1231,R&M - GENERAL
GUILDFORD BOROUGH COUNCIL,FLATS COMMUNAL SERVICES,CONCRETE REPAIRS LTD,72288,30-Apr-19,2057231,18.73 ,0,R&M - GENERAL,"CONCRETE CUTTING, DRILLING AND MAINTENANCE CONTRACTORS",Invoice,BACS,None,31-Dec-18,2019,1,INV/014804,M2681,DOWNSVIEW CT 1-12 (12),B1231,R&M - GENERAL
GUILDFORD BOROUGH COUNCIL,FLATS COMMUNAL SERVICES,CONCRETE REPAIRS LTD,72288,30-Apr-19,2057231,18.73 ,0,R&M - GENERAL,"CONCRETE CUTTING, DRILLING AND MAINTENANCE CONTRACTORS",Invoice,BACS,None,31-Dec-18,2019,1,INV/014804,M2715,FERN COURT 1-9 INCL (9),B1231,R&M - GENERAL
GUILDFORD BOROUGH COUNCIL,FLATS COMMUNAL SERVICES,CONCRETE REPAIRS LTD,72288,30-Apr-19,2057231,21.57 ,0,MECHANICAL/ELECTRICAL MNTCE AG,"CONCRETE CUTTING, DRILLING AND MAINTENANCE CONTRACTORS",Invoice,BACS,None,31-Dec-18,2019,1,INV/014804,M3512,MARJORAM CLOSE EQUITY SHARE,B1221,MECHANICAL/ELECTRICAL MNTCE AG
GUILDFORD BOROUGH COUNCIL,LEISURE COMMUNITY CENTRES,CONCRETE REPAIRS LTD,72288,04-Apr-19,2054218,18.73 ,0,MECHANICAL/ELECTRICAL MNTCE AG,"CONCRETE CUTTING, DRILLING AND MAINTENANCE CONTRACTORS",Invoice,BACS,None,27-Mar-19,2019,1,INV/014856,A8151,STOUGHTON YOUTH & COMMUNITY CE,B1221,MECHANICAL/ELECTRICAL MNTCE AG
GUILDFORD BOROUGH COUNCIL,PARKS & COUNTRYSIDE,CASTLE WATER LIMITED,89638,25-Apr-19,2056630,-314.46 ,0,WATER BY METER,MAINS WATER SUPPLIERS,Credit Note,,None,06-Mar-19,2019,1,01783579,A1600,STOKE NURSERY DEPOT,B4221,WATER BY METER
GUILDFORD BOROUGH COUNCIL,RESPONSIVE & PLANNED MAINTENAN,CONCRETE REPAIRS LTD,72288,04-Apr-19,2054219,87.36 ,0,FIRE ALARMS  - SERVICE,"CONCRETE CUTTING, DRILLING AND MAINTENANCE CONTRACTORS",Invoice,BACS,None,28-Feb-19,2019,1,INV/014977,M5107,REPAIRS-SHELT-CYCLICAL (BHS),B1339,FIRE ALARMS  - SERVICE
GUILDFORD BOROUGH COUNCIL,PARKS & COUNTRYSIDE,CASTLE WATER LIMITED,89638,02-Apr-19,2052320,301.76 ,0,WATER BY METER,MAINS WATER SUPPLIERS,Invoice,BACS,None,19-Mar-19,2019,1,TW0745164434,A1285,ONSLOW VILLAGE RECREATION GROU,B4221,WATER BY METER
GUILDFORD BOROUGH COUNCIL,Investment Property,CASTLE WATER LIMITED,89638,02-Apr-19,2052286,30.00 ,0,WATER BY METER,MAINS WATER SUPPLIERS,Invoice,BACS,None,16-Mar-19,2019,1,TW6926289112,B6131,HAYDON PLACE 15 - 17,B4221,WATER BY METER
GUILDFORD BOROUGH COUNCIL,PARKS & COUNTRYSIDE,CASTLE WATER LIMITED,89638,02-Apr-19,2052298,12.46 ,0,WATER BY METER,MAINS WATER SUPPLIERS,Invoice,BACS,None,16-Mar-19,2019,1,TW6078152517,A1130,CASTLE GROUNDS,B4221,WATER BY METER
GUILDFORD BOROUGH COUNCIL,OFF STREET PARKING,CASTLE WATER LIMITED,89638,02-Apr-19,2052319,42.54 ,0,WATER BY METER,MAINS WATER SUPPLIERS,Invoice,BACS,None,16-Mar-19,2019,1,TW6379430301,B2219,BEDFORD ROAD MSCP,B4221,WATER BY METER
GUILDFORD BOROUGH COUNCIL,PARKS & COUNTRYSIDE,CASTLE WATER LIMITED,89638,23-Apr-19,2055822,23.57 ,0,WATER BY METER,MAINS WATER SUPPLIERS,Invoice,BACS,None,03-Apr-19,2019,1,TW7217667132,A1340,CHANTRY WOOD,B4221,WATER BY METER
GUILDFORD BOROUGH COUNCIL,WOKING ROAD DEPOT,CASTLE WATER LIMITED,89638,23-Apr-19,2055588,"-2,386.93 ",0,WATER BY METER,MAINS WATER SUPPLIERS,Credit Note,,None,03-Apr-19,2019,1,TE00184346,B4452,WOKING ROAD DEPOT,B4221,WATER BY METER
GUILDFORD BOROUGH COUNCIL,PARK & RIDE SERVICES,CASTLE WATER LIMITED,89638,25-Apr-19,2056631,10.54 ,0,WATER BY METER,MAINS WATER SUPPLIERS,Invoice,BACS,None,06-Apr-19,2019,1,1897209,B5205,MERROW PARK AND RIDE,B4221,WATER BY METER
GUILDFORD BOROUGH COUNCIL,FLATS COMMUNAL SERVICES,CONCRETE REPAIRS LTD,72288,04-Apr-19,2054218,18.73 ,0,R&M - GENERAL,"CONCRETE CUTTING, DRILLING AND MAINTENANCE CONTRACTORS",Invoice,BACS,None,27-Mar-19,2019,1,INV/014856,M2642,BELLFIELDS CT 13-24 (12),B1231,R&M - GENERAL
GUILDFORD BOROUGH COUNCIL,PARKS & COUNTRYSIDE,CASTLE WATER LIMITED,89638,23-Apr-19,2055817,74.82 ,0,WATER BY METER,MAINS WATER SUPPLIERS,Invoice,BACS,None,03-Apr-19,2019,1,TW0745164434,A1285,ONSLOW VILLAGE RECREATION GROU,B4221,WATER BY METER
GUILDFORD BOROUGH COUNCIL,INDUSTRIAL ESTATES,CONCRETE REPAIRS LTD,72288,04-Apr-19,2054219,87.36 ,0,MECHANICAL/ELECTRICAL MNTCE AG,"CONCRETE CUTTING, DRILLING AND MAINTENANCE CONTRACTORS",Invoice,BACS,None,28-Feb-19,2019,1,INV/014977,B5341,MIDLETON INDUSTRIAL ESTATE,B1221,MECHANICAL/ELECTRICAL MNTCE AG
GUILDFORD BOROUGH COUNCIL,PARKS & COUNTRYSIDE,CASTLE WATER LIMITED,89638,30-Apr-19,2057001,870.42 ,0,WATER BY METER,MAINS WATER SUPPLIERS,Invoice,BACS,None,16-Apr-19,2019,1,01912244,A1248,STOKE PARK PADD POOL PLANT RM,B4221,WATER BY METER
GUILDFORD BOROUGH COUNCIL,PARKS & COUNTRYSIDE,CASTLE WATER LIMITED,89638,25-Apr-19,2056635,17.10 ,0,WATER BY METER,MAINS WATER SUPPLIERS,Invoice,BACS,None,03-Apr-19,2019,1,1882291,A1600,STOKE NURSERY DEPOT,B4221,WATER BY METER
GUILDFORD BOROUGH COUNCIL,PARKS & COUNTRYSIDE,CASTLE WATER LIMITED,89638,25-Apr-19,2056571,6.93 ,0,WATER BY METER,MAINS WATER SUPPLIERS,Invoice,BACS,None,06-Apr-19,2019,1,1897480,A1230,SUTH'LAND MEM PRK PAVILION-GBC,B4221,WATER BY METER
GUILDFORD BOROUGH COUNCIL,CREMATORIUM,CASTLE WATER LIMITED,89638,02-Apr-19,2052309,27.92 ,0,WATER BY METER,MAINS WATER SUPPLIERS,Invoice,BACS,None,16-Mar-19,2019,1,TW7291131253,A1500,GUILDFORD CREMATORIUM,B4221,WATER BY METER
GUILDFORD BOROUGH COUNCIL,MUSEUM,CASTLE WATER LIMITED,89638,30-Apr-19,2056636,24.90 ,0,WATER BY METER,MAINS WATER SUPPLIERS,Invoice,BACS,None,06-Apr-19,2019,1,TW3862819371,A5511,MUSEUM,B4221,WATER BY METER
GUILDFORD BOROUGH COUNCIL,PARKS & COUNTRYSIDE,CONCRETE REPAIRS LTD,72288,04-Apr-19,2054219,18.73 ,0,MECHANICAL/ELECTRICAL MNTCE AG,"CONCRETE CUTTING, DRILLING AND MAINTENANCE CONTRACTORS",Invoice,BACS,None,28-Feb-19,2019,1,INV/014977,A1230,SUTH'LAND MEM PRK PAVILION-GBC,B1221,MECHANICAL/ELECTRICAL MNTCE AG
GUILDFORD BOROUGH COUNCIL,CREMATORIUM,CONCRETE REPAIRS LTD,72288,04-Apr-19,2054219,18.73 ,0,MECHANICAL/ELECTRICAL MNTCE AG,"CONCRETE CUTTING, DRILLING AND MAINTENANCE CONTRACTORS",Invoice,BACS,None,28-Feb-19,2019,1,INV/014977,A1500,GUILDFORD CREMATORIUM,B1221,MECHANICAL/ELECTRICAL MNTCE AG
GUILDFORD BOROUGH COUNCIL,MUSEUM,CONCRETE REPAIRS LTD,72288,04-Apr-19,2054219,18.73 ,0,MECHANICAL/ELECTRICAL MNTCE AG,"CONCRETE CUTTING, DRILLING AND MAINTENANCE CONTRACTORS",Invoice,BACS,None,28-Feb-19,2019,1,INV/014977,A5511,MUSEUM,B1221,MECHANICAL/ELECTRICAL MNTCE AG
GUILDFORD BOROUGH COUNCIL,PARKS & COUNTRYSIDE,CONCRETE REPAIRS LTD,72288,09-Apr-19,2054525,10.00 ,0,FIRE ALARMS  - SERVICE,"CONCRETE CUTTING, DRILLING AND MAINTENANCE CONTRACTORS",Invoice,BACS,None,01-Feb-19,2019,1,INV/014979,A1250,STOKE PARK,B1339,FIRE ALARMS  - SERVICE
GUILDFORD BOROUGH COUNCIL,LEISURE COMMUNITY CENTRES,CONCRETE REPAIRS LTD,72288,04-Apr-19,2054219,18.73 ,0,MECHANICAL/ELECTRICAL MNTCE AG,"CONCRETE CUTTING, DRILLING AND MAINTENANCE CONTRACTORS",Invoice,BACS,None,28-Feb-19,2019,1,INV/014977,A8121,BELLFIELDS YOUTH & COMMUNITY C,B1221,MECHANICAL/ELECTRICAL MNTCE AG
GUILDFORD BOROUGH COUNCIL,RESPONSIVE & PLANNED MAINTENAN,CONCRETE REPAIRS LTD,72288,04-Apr-19,2054219,18.73 ,0,FIRE ALARMS  - SERVICE,"CONCRETE CUTTING, DRILLING AND MAINTENANCE CONTRACTORS",Invoice,BACS,None,28-Feb-19,2019,1,INV/014977,M5114,REPAIRS-CYCLICAL (BHS),B1339,FIRE ALARMS  - SERVICE
GUILDFORD BOROUGH COUNCIL,DAY SERVICES,CONCRETE REPAIRS LTD,72288,04-Apr-19,2054219,106.11 ,0,MECHANICAL/ELECTRICAL MNTCE AG,"CONCRETE CUTTING, DRILLING AND MAINTENANCE CONTRACTORS",Invoice,BACS,None,28-Feb-19,2019,1,INV/014977,C8189,CENTRAL HUB PARK BARN,B1221,MECHANICAL/ELECTRICAL MNTCE AG
GUILDFORD BOROUGH COUNCIL,OFFICE SERVICES TEAM,CONCRETE REPAIRS LTD,72288,04-Apr-19,2054219,64.92 ,0,MECHANICAL/ELECTRICAL MNTCE AG,"CONCRETE CUTTING, DRILLING AND MAINTENANCE CONTRACTORS",Invoice,BACS,None,28-Feb-19,2019,1,INV/014977,G7511,MILLMEAD HOUSE,B1221,MECHANICAL/ELECTRICAL MNTCE AG
GUILDFORD BOROUGH COUNCIL,PUBLIC CONVENIENCES,CONCRETE REPAIRS LTD,72288,04-Apr-19,2054219,87.36 ,0,MECHANICAL/ELECTRICAL MNTCE AG,"CONCRETE CUTTING, DRILLING AND MAINTENANCE CONTRACTORS",Invoice,BACS,None,28-Feb-19,2019,1,INV/014977,K6546,ALLEN HOUSE GRNDS PUB CON,B1221,MECHANICAL/ELECTRICAL MNTCE AG
GUILDFORD BOROUGH COUNCIL,FLATS COMMUNAL SERVICES,CONCRETE REPAIRS LTD,72288,04-Apr-19,2054219,18.73 ,0,R&M - GENERAL,"CONCRETE CUTTING, DRILLING AND MAINTENANCE CONTRACTORS",Invoice,BACS,None,28-Feb-19,2019,1,INV/014977,M2761,HOPTON COURT 1-8 (8),B1231,R&M - GENERAL
GUILDFORD BOROUGH COUNCIL,FLATS COMMUNAL SERVICES,CONCRETE REPAIRS LTD,72288,04-Apr-19,2054219,18.73 ,0,R&M - GENERAL,"CONCRETE CUTTING, DRILLING AND MAINTENANCE CONTRACTORS",Invoice,BACS,None,28-Feb-19,2019,1,INV/014977,M2881,ROWAN CLOSE 7-17 (6 ODD),B1231,R&M - GENERAL
GUILDFORD BOROUGH COUNCIL,FLATS COMMUNAL SERVICES,CONCRETE REPAIRS LTD,72288,04-Apr-19,2054219,18.73 ,0,R&M - GENERAL,"CONCRETE CUTTING, DRILLING AND MAINTENANCE CONTRACTORS",Invoice,BACS,None,28-Feb-19,2019,1,INV/014977,M2882,ROWAN CL 19 - 29 (6 ODD),B1231,R&M - GENERAL
GUILDFORD BOROUGH COUNCIL,FLATS COMMUNAL SERVICES,CONCRETE REPAIRS LTD,72288,04-Apr-19,2054219,18.73 ,0,R&M - GENERAL,"CONCRETE CUTTING, DRILLING AND MAINTENANCE CONTRACTORS",Invoice,BACS,None,28-Feb-19,2019,1,INV/014977,M2883,ROWAN CL 31 - 41 (6 ODD),B1231,R&M - GENERAL
GUILDFORD BOROUGH COUNCIL,OFF STREET PARKING,CONCRETE REPAIRS LTD,72288,04-Apr-19,2054218,18.73 ,0,MECHANICAL/ELECTRICAL MNTCE AG,"CONCRETE CUTTING, DRILLING AND MAINTENANCE CONTRACTORS",Invoice,BACS,None,27-Mar-19,2019,1,INV/014856,B2216,GENERAL UPKEEP- URBAN CAR PKS,B1221,MECHANICAL/ELECTRICAL MNTCE AG
GUILDFORD BOROUGH COUNCIL,MUSEUM,CONCRETE REPAIRS LTD,72288,04-Apr-19,2054219,49.94 ,0,MECHANICAL/ELECTRICAL MNTCE AG,"CONCRETE CUTTING, DRILLING AND MAINTENANCE CONTRACTORS",Invoice,BACS,None,28-Feb-19,2019,1,INV/014977,A5511,MUSEUM,B1221,MECHANICAL/ELECTRICAL MNTCE AG
GUILDFORD BOROUGH COUNCIL,PUBLIC CONVENIENCES,CASTLE WATER LIMITED,89638,25-Apr-19,2056471,11.08 ,0,WATER BY METER,MAINS WATER SUPPLIERS,Invoice,BACS,None,06-Apr-19,2019,1,1892679,K6563,NORTH STREET - URINAL,B4221,WATER BY METER
GUILDFORD BOROUGH COUNCIL,RESPONSIVE & PLANNED MAINTENAN,CONCRETE REPAIRS LTD,72288,04-Apr-19,2054219,87.36 ,0,FIRE ALARMS  - SERVICE,"CONCRETE CUTTING, DRILLING AND MAINTENANCE CONTRACTORS",Invoice,BACS,None,28-Feb-19,2019,1,INV/014977,M5114,REPAIRS-CYCLICAL (BHS),B1339,FIRE ALARMS  - SERVICE
GUILDFORD BOROUGH COUNCIL,PUBLIC CONVENIENCES,CONCRETE REPAIRS LTD,72288,09-Apr-19,2054525,10.00 ,0,MECHANICAL/ELECTRICAL MNTCE AG,"CONCRETE CUTTING, DRILLING AND MAINTENANCE CONTRACTORS",Invoice,BACS,None,01-Feb-19,2019,1,INV/014979,K6546,ALLEN HOUSE GRNDS PUB CON,B1221,MECHANICAL/ELECTRICAL MNTCE AG
GUILDFORD BOROUGH COUNCIL,OFF STREET PARKING,CONCRETE REPAIRS LTD,72288,30-Apr-19,2057231,18.73 ,0,MECHANICAL/ELECTRICAL MNTCE AG,"CONCRETE CUTTING, DRILLING AND MAINTENANCE CONTRACTORS",Invoice,BACS,None,31-Dec-18,2019,1,INV/014804,B2216,GENERAL UPKEEP- URBAN CAR PKS,B1221,MECHANICAL/ELECTRICAL MNTCE AG
GUILDFORD BOROUGH COUNCIL,DAY SERVICES,CONCRETE REPAIRS LTD,72288,30-Apr-19,2057231,18.73 ,0,MECHANICAL/ELECTRICAL MNTCE AG,"CONCRETE CUTTING, DRILLING AND MAINTENANCE CONTRACTORS",Invoice,BACS,None,31-Dec-18,2019,1,INV/014804,C8188,WEST HUB SHAWFIELD,B1221,MECHANICAL/ELECTRICAL MNTCE AG
GUILDFORD BOROUGH COUNCIL,FLATS COMMUNAL SERVICES,CONCRETE REPAIRS LTD,72288,30-Apr-19,2057231,49.94 ,0,R&M - GENERAL,"CONCRETE CUTTING, DRILLING AND MAINTENANCE CONTRACTORS",Invoice,BACS,None,31-Dec-18,2019,1,INV/014804,M2646,BISHOPS COURT 1-40 (40),B1231,R&M - GENERAL
GUILDFORD BOROUGH COUNCIL,FLATS COMMUNAL SERVICES,CONCRETE REPAIRS LTD,72288,30-Apr-19,2057231,18.73 ,0,R&M - GENERAL,"CONCRETE CUTTING, DRILLING AND MAINTENANCE CONTRACTORS",Invoice,BACS,None,31-Dec-18,2019,1,INV/014804,M2881,ROWAN CLOSE 7-17 (6 ODD),B1231,R&M - GENERAL
GUILDFORD BOROUGH COUNCIL,FLATS COMMUNAL SERVICES,CONCRETE REPAIRS LTD,72288,30-Apr-19,2057231,18.73 ,0,R&M - GENERAL,"CONCRETE CUTTING, DRILLING AND MAINTENANCE CONTRACTORS",Invoice,BACS,None,31-Dec-18,2019,1,INV/014804,M2884,ROWAN CL 43 - 53 (6 ODD),B1231,R&M - GENERAL
GUILDFORD BOROUGH COUNCIL,GUILDFORD HOUSE,CONCRETE REPAIRS LTD,72288,04-Apr-19,2054218,18.73 ,0,MECHANICAL/ELECTRICAL MNTCE AG,"CONCRETE CUTTING, DRILLING AND MAINTENANCE CONTRACTORS",Invoice,BACS,None,27-Mar-19,2019,1,INV/014856,A4511,GUILDFORD HOUSE ADMINISTRATION,B1221,MECHANICAL/ELECTRICAL MNTCE AG
GUILDFORD BOROUGH COUNCIL,CEMETERIES,CASTLE WATER LIMITED,89638,25-Apr-19,2056472,7.59 ,0,WATER BY METER,MAINS WATER SUPPLIERS,Invoice,BACS,None,06-Apr-19,2019,1,1892709,A1432,STOKE CEMET MESSROOM TOOLSHED,B4221,WATER BY METER
GUILDFORD BOROUGH COUNCIL,FLATS COMMUNAL SERVICES,CONCRETE REPAIRS LTD,72288,04-Apr-19,2054219,18.73 ,0,R&M - GENERAL,"CONCRETE CUTTING, DRILLING AND MAINTENANCE CONTRACTORS",Invoice,BACS,None,28-Feb-19,2019,1,INV/014977,M2623,ANSTON COURT 1-12 (12),B1231,R&M - GENERAL
GUILDFORD BOROUGH COUNCIL,PUBLIC CONVENIENCES,CASTLE WATER LIMITED,89638,25-Apr-19,2056470,106.80 ,0,WATER BY METER,MAINS WATER SUPPLIERS,Invoice,BACS,None,06-Apr-19,2019,1,1898817,K6549,FARNHAM ROAD MSCP PUB CON,B4221,WATER BY METER
GUILDFORD BOROUGH COUNCIL,PARKS & COUNTRYSIDE,CASTLE WATER LIMITED,89638,30-Apr-19,2056921,1.77 ,0,WATER BY METER,MAINS WATER SUPPLIERS,Invoice,BACS,None,06-Apr-19,2019,1,TW0651285568,A1270,WOODBRIDGE ROAD,B4221,WATER BY METER
GUILDFORD BOROUGH COUNCIL,PARKS & COUNTRYSIDE,CASTLE WATER LIMITED,89638,11-Apr-19,2055114,10.16 ,0,WATER BY METER,MAINS WATER SUPPLIERS,Invoice,BACS,None,08-Dec-18,2019,1,1562948,A1220,SHALFORD PARK,B4221,WATER BY METER
GUILDFORD BOROUGH COUNCIL,WOKING ROAD DEPOT,CASTLE WATER LIMITED,89638,11-Apr-19,2054463,"2,664.21 ",0,WATER BY METER,MAINS WATER SUPPLIERS,Invoice,BACS,None,01-Apr-19,2019,1,TW2138224256,B4452,WOKING ROAD DEPOT,B4221,WATER BY METER
GUILDFORD BOROUGH COUNCIL,SHELTERED HOUSING,CASTLE WATER LIMITED,89638,30-Apr-19,2056783,9.47 ,0,WATER BY METER,MAINS WATER SUPPLIERS,Invoice,BACS,None,06-Apr-19,2019,1,TW6516503161,M1580,61 SHAWFIELD ROAD,B4221,WATER BY METER
GUILDFORD BOROUGH COUNCIL,WOKING ROAD DEPOT,CASTLE WATER LIMITED,89638,23-Apr-19,2055536,"2,520.86 ",0,WATER BY METER,MAINS WATER SUPPLIERS,Invoice,BACS,None,03-Apr-19,2019,1,TW2138224256,B4452,WOKING ROAD DEPOT,B4221,WATER BY METER
GUILDFORD BOROUGH COUNCIL,CREMATORIUM,CASTLE WATER LIMITED,89638,25-Apr-19,2055518,121.12 ,0,WATER BY METER,MAINS WATER SUPPLIERS,Invoice,BACS,None,03-Apr-19,2019,1,1882351,A1500,GUILDFORD CREMATORIUM,B4221,WATER BY METER
GUILDFORD BOROUGH COUNCIL,OFF STREET PARKING,CONCRETE REPAIRS LTD,72288,04-Apr-19,2054218,49.94 ,0,MECHANICAL/ELECTRICAL MNTCE AG,"CONCRETE CUTTING, DRILLING AND MAINTENANCE CONTRACTORS",Invoice,BACS,None,27-Mar-19,2019,1,INV/014856,B2216,GENERAL UPKEEP- URBAN CAR PKS,B1221,MECHANICAL/ELECTRICAL MNTCE AG
GUILDFORD BOROUGH COUNCIL,RESPONSIVE & PLANNED MAINTENAN,CONCRETE REPAIRS LTD,72288,30-Apr-19,2057231,18.73 ,0,FIRE ALARMS  - SERVICE,"CONCRETE CUTTING, DRILLING AND MAINTENANCE CONTRACTORS",Invoice,BACS,None,31-Dec-18,2019,1,INV/014804,M5107,REPAIRS-SHELT-CYCLICAL (BHS),B1339,FIRE ALARMS  - SERVICE
GUILDFORD BOROUGH COUNCIL,RESPONSIVE & PLANNED MAINTENAN,CONCRETE REPAIRS LTD,72288,04-Apr-19,2054218,49.94 ,0,FIRE ALARMS  - SERVICE,"CONCRETE CUTTING, DRILLING AND MAINTENANCE CONTRACTORS",Invoice,BACS,None,27-Mar-19,2019,1,INV/014856,M5106,REPAIRS-SHELT-RESPONSIVE (BHS),B1339,FIRE ALARMS  - SERVICE
GUILDFORD BOROUGH COUNCIL,DAY SERVICES,CONCRETE REPAIRS LTD,72288,04-Apr-19,2054218,49.94 ,0,MECHANICAL/ELECTRICAL MNTCE AG,"CONCRETE CUTTING, DRILLING AND MAINTENANCE CONTRACTORS",Invoice,BACS,None,27-Mar-19,2019,1,INV/014856,C8189,CENTRAL HUB PARK BARN,B1221,MECHANICAL/ELECTRICAL MNTCE AG
GUILDFORD BOROUGH COUNCIL,PUBLIC CONVENIENCES,CONCRETE REPAIRS LTD,72288,04-Apr-19,2054218,18.73 ,0,MECHANICAL/ELECTRICAL MNTCE AG,"CONCRETE CUTTING, DRILLING AND MAINTENANCE CONTRACTORS",Invoice,BACS,None,27-Mar-19,2019,1,INV/014856,K6546,ALLEN HOUSE GRNDS PUB CON,B1221,MECHANICAL/ELECTRICAL MNTCE AG
GUILDFORD BOROUGH COUNCIL,PARKS & COUNTRYSIDE,CASTLE WATER LIMITED,89638,02-Apr-19,2052308,4.74 ,0,WATER BY METER,MAINS WATER SUPPLIERS,Invoice,BACS,None,16-Mar-19,2019,1,TW5666505198,A1220,SHALFORD PARK,B4221,WATER BY METER
GUILDFORD BOROUGH COUNCIL,PARKS & COUNTRYSIDE,CASTLE WATER LIMITED,89638,25-Apr-19,2056483,1.77 ,0,WATER BY METER,MAINS WATER SUPPLIERS,Invoice,BACS,None,06-Apr-19,2019,1,1898677,A1600,STOKE NURSERY DEPOT,B4221,WATER BY METER
GUILDFORD BOROUGH COUNCIL,Investment Property,CASTLE WATER LIMITED,89638,25-Apr-19,2056432,38.75 ,0,WATER BY METER,MAINS WATER SUPPLIERS,Invoice,BACS,None,03-Apr-19,2019,1,TW6926289112,B6131,HAYDON PLACE 15 - 17,B4221,WATER BY METER
GUILDFORD BOROUGH COUNCIL,SHELTERED HOUSING,CASTLE WATER LIMITED,89638,25-Apr-19,2056480,"1,085.94 ",0,WATER BY METER,MAINS WATER SUPPLIERS,Invoice,BACS,None,06-Apr-19,2019,1,1894589,M1515,SHELTERED ACCOMODATION,B4221,WATER BY METER
GUILDFORD BOROUGH COUNCIL,GYPSY AND TRAVELLER SITES,CASTLE WATER LIMITED,89638,25-Apr-19,2056478,840.51 ,0,WATER BY METER,MAINS WATER SUPPLIERS,Invoice,BACS,None,06-Apr-19,2019,1,1895746,C1511,ASH BRIDGE CARAVAN SITE,B4221,WATER BY METER
GUILDFORD BOROUGH COUNCIL,PARKS & COUNTRYSIDE,CONCRETE REPAIRS LTD,72288,04-Apr-19,2054218,18.73 ,0,MECHANICAL/ELECTRICAL MNTCE AG,"CONCRETE CUTTING, DRILLING AND MAINTENANCE CONTRACTORS",Invoice,BACS,None,27-Mar-19,2019,1,INV/014856,A1810,BURCHATTS FARM BARN,B1221,MECHANICAL/ELECTRICAL MNTCE AG
GUILDFORD BOROUGH COUNCIL,RESPONSIVE & PLANNED MAINTENAN,CONCRETE REPAIRS LTD,72288,04-Apr-19,2054219,106.11 ,0,FIRE ALARMS  - SERVICE,"CONCRETE CUTTING, DRILLING AND MAINTENANCE CONTRACTORS",Invoice,BACS,None,28-Feb-19,2019,1,INV/014977,M5107,REPAIRS-SHELT-CYCLICAL (BHS),B1339,FIRE ALARMS  - SERVICE
GUILDFORD BOROUGH COUNCIL,PUBLIC CONVENIENCES,CONCRETE REPAIRS LTD,72288,04-Apr-19,2054218,18.73 ,0,MECHANICAL/ELECTRICAL MNTCE AG,"CONCRETE CUTTING, DRILLING AND MAINTENANCE CONTRACTORS",Invoice,BACS,None,27-Mar-19,2019,1,INV/014856,K6559,SUTHERLAND MEMORIAL PUB CON,B1221,MECHANICAL/ELECTRICAL MNTCE AG
GUILDFORD BOROUGH COUNCIL,FLATS COMMUNAL SERVICES,CONCRETE REPAIRS LTD,72288,04-Apr-19,2054219,49.94 ,0,R&M - GENERAL,"CONCRETE CUTTING, DRILLING AND MAINTENANCE CONTRACTORS",Invoice,BACS,None,28-Feb-19,2019,1,INV/014977,M2636,BEDFORD HOUSE (67),B1231,R&M - GENERAL
GUILDFORD BOROUGH COUNCIL,RESPONSIVE & PLANNED MAINTENAN,CONCRETE REPAIRS LTD,72288,04-Apr-19,2054218,49.94 ,0,FIRE ALARMS  - SERVICE,"CONCRETE CUTTING, DRILLING AND MAINTENANCE CONTRACTORS",Invoice,BACS,None,27-Mar-19,2019,1,INV/014856,M5107,REPAIRS-SHELT-CYCLICAL (BHS),B1339,FIRE ALARMS  - SERVICE
GUILDFORD BOROUGH COUNCIL,RESPONSIVE & PLANNED MAINTENAN,CONCRETE REPAIRS LTD,72288,04-Apr-19,2054218,18.73 ,0,FIRE ALARMS  - SERVICE,"CONCRETE CUTTING, DRILLING AND MAINTENANCE CONTRACTORS",Invoice,BACS,None,27-Mar-19,2019,1,INV/014856,M5114,REPAIRS-CYCLICAL (BHS),B1339,FIRE ALARMS  - SERVICE
GUILDFORD BOROUGH COUNCIL,RESPONSIVE & PLANNED MAINTENAN,CONCRETE REPAIRS LTD,72288,04-Apr-19,2054218,18.73 ,0,FIRE ALARMS  - SERVICE,"CONCRETE CUTTING, DRILLING AND MAINTENANCE CONTRACTORS",Invoice,BACS,None,27-Mar-19,2019,1,INV/014856,M5114,REPAIRS-CYCLICAL (BHS),B1339,FIRE ALARMS  - SERVICE
GUILDFORD BOROUGH COUNCIL,PARKS & COUNTRYSIDE,CONCRETE REPAIRS LTD,72288,04-Apr-19,2054219,87.36 ,0,MECHANICAL/ELECTRICAL MNTCE AG,"CONCRETE CUTTING, DRILLING AND MAINTENANCE CONTRACTORS",Invoice,BACS,None,28-Feb-19,2019,1,INV/014977,A1810,BURCHATTS FARM BARN,B1221,MECHANICAL/ELECTRICAL MNTCE AG
GUILDFORD BOROUGH COUNCIL,LEISURE COMMUNITY CENTRES,CONCRETE REPAIRS LTD,72288,04-Apr-19,2054219,87.36 ,0,MECHANICAL/ELECTRICAL MNTCE AG,"CONCRETE CUTTING, DRILLING AND MAINTENANCE CONTRACTORS",Invoice,BACS,None,28-Feb-19,2019,1,INV/014977,A8141,PARK BARN YOUTH & COMMUNITY CE,B1221,MECHANICAL/ELECTRICAL MNTCE AG
GUILDFORD BOROUGH COUNCIL,Investment Property,CONCRETE REPAIRS LTD,72288,04-Apr-19,2054219,87.36 ,0,MECHANICAL/ELECTRICAL MNTCE AG,"CONCRETE CUTTING, DRILLING AND MAINTENANCE CONTRACTORS",Invoice,BACS,None,28-Feb-19,2019,1,INV/014977,B6131,HAYDON PLACE 15 - 17,B1221,MECHANICAL/ELECTRICAL MNTCE AG
GUILDFORD BOROUGH COUNCIL,PUBLIC CONVENIENCES,CONCRETE REPAIRS LTD,72288,04-Apr-19,2054219,18.73 ,0,MECHANICAL/ELECTRICAL MNTCE AG,"CONCRETE CUTTING, DRILLING AND MAINTENANCE CONTRACTORS",Invoice,BACS,None,28-Feb-19,2019,1,INV/014977,K6559,SUTHERLAND MEMORIAL PUB CON,B1221,MECHANICAL/ELECTRICAL MNTCE AG
GUILDFORD BOROUGH COUNCIL,FLATS COMMUNAL SERVICES,CONCRETE REPAIRS LTD,72288,09-Apr-19,2054525,10.00 ,0,R&M - GENERAL,"CONCRETE CUTTING, DRILLING AND MAINTENANCE CONTRACTORS",Invoice,BACS,None,01-Feb-19,2019,1,INV/014979,M2904,SOUTHWAY COURT 13-24 (12),B1231,R&M - GENERAL
GUILDFORD BOROUGH COUNCIL,MUSEUM,CONCRETE REPAIRS LTD,72288,04-Apr-19,2054218,18.73 ,0,MECHANICAL/ELECTRICAL MNTCE AG,"CONCRETE CUTTING, DRILLING AND MAINTENANCE CONTRACTORS",Invoice,BACS,None,27-Mar-19,2019,1,INV/014856,A5511,MUSEUM,B1221,MECHANICAL/ELECTRICAL MNTCE AG
GUILDFORD BOROUGH COUNCIL,INCOME COLLECTION,CFH DOCMAIL LTD,82738,09-Apr-19,2047464,155.00 ,0,STATIONERY & OFFICE SUPPLIES,DOCUMENT ARCHIVING PROVIDERS,Invoice,BACS,None,19-Feb-19,2019,1,CS63575101,M1121,INCOME COLLECTION (BHS),D3472,STATIONERY & OFFICE SUPPLIES
GUILDFORD BOROUGH COUNCIL,CORPORATE PROPERTY SERVICES,CCS MEDIA,23943,23-Apr-19,2054161,163.78 ,0,TELECOMMS; MOBILE PHONES,IT CONSUMABLES SUPPLIERS,Invoice,BACS,None,03-Apr-19,2019,1,3484827,G4575,CORPORATE PROPERTY SERVICES,D5487,TELECOMMS; MOBILE PHONES
GUILDFORD BOROUGH COUNCIL,BUILDING MAINTENANCE,CHAMBERS WASTE MANAGEMENT PLC,1275,11-Apr-19,2054443,52.30 ,0,TIPPING FEES,OTHER WASTE DISPOSAL SUPPLIERS,Invoice,BACS,None,16-Mar-19,2019,1,P328714,K1515,BUILDING MAINTENANCE,D4489,TIPPING FEES
GUILDFORD BOROUGH COUNCIL,COUNCIL TAX,CFH DOCMAIL LTD,82738,09-Apr-19,2047464,930.00 ,0,ANNUAL BILLING (PRINTING),DOCUMENT ARCHIVING PROVIDERS,Invoice,BACS,None,19-Feb-19,2019,1,CS63575101,F6141,COUNCIL TAX COLLECTN EXPENSES,D3467,ANNUAL BILLING (PRINTING)
GUILDFORD BOROUGH COUNCIL,INCOME COLLECTION,CFH DOCMAIL LTD,82738,09-Apr-19,2052893,482.11 ,0,EXTERNAL PRINTING & DESIGN,DOCUMENT ARCHIVING PROVIDERS,Invoice,BACS,None,26-Mar-19,2019,1,024557,M1121,INCOME COLLECTION (BHS),D3454,EXTERNAL PRINTING & DESIGN
GUILDFORD BOROUGH COUNCIL,COUNCIL TAX,CFH DOCMAIL LTD,82738,09-Apr-19,2052893,"4,433.09 ",0,ANNUAL BILLING (PRINTING),DOCUMENT ARCHIVING PROVIDERS,Invoice,BACS,None,26-Mar-19,2019,1,024557,F6141,COUNCIL TAX COLLECTN EXPENSES,D3467,ANNUAL BILLING (PRINTING)
GUILDFORD BOROUGH COUNCIL,COUNCIL TAX,CFH DOCMAIL LTD,82738,09-Apr-19,2052233,"15,538.29 ",0,ANNUAL BILLING (PRINTING),DOCUMENT ARCHIVING PROVIDERS,Invoice,BACS,None,20-Mar-19,2019,1,024493,F6141,COUNCIL TAX COLLECTN EXPENSES,D3467,ANNUAL BILLING (PRINTING)
GUILDFORD BOROUGH COUNCIL,HOUSING BENEFITS,CFH DOCMAIL LTD,82738,09-Apr-19,2052233,"1,587.74 ",0,EXTERNAL PRINTING & DESIGN,DOCUMENT ARCHIVING PROVIDERS,Invoice,BACS,None,20-Mar-19,2019,1,024493,C4511,HOUSING BENEFITS ADMIN.,D3454,EXTERNAL PRINTING & DESIGN
GUILDFORD BOROUGH COUNCIL,BUILDING MAINTENANCE,CHAMBERS WASTE MANAGEMENT PLC,1275,11-Apr-19,2054456,375.20 ,0,TIPPING FEES,OTHER WASTE DISPOSAL SUPPLIERS,Invoice,BACS,None,23-Mar-19,2019,1,P329715,K1515,BUILDING MAINTENANCE,D4489,TIPPING FEES
GUILDFORD BOROUGH COUNCIL,COUNCIL TAX,CFH DOCMAIL LTD,82738,09-Apr-19,2048990,942.50 ,0,ANNUAL BILLING (PRINTING),DOCUMENT ARCHIVING PROVIDERS,Invoice,BACS,None,05-Mar-19,2019,1,CS63575201,F6141,COUNCIL TAX COLLECTN EXPENSES,D3467,ANNUAL BILLING (PRINTING)
GUILDFORD BOROUGH COUNCIL,REFUSE AND RECYCLING,COMENSURA LTD,32435,25-Apr-19,2056555,-1.34 ,0,AGENCY STAFF,OTHER RECRUITMENT AGENCIES AND SERVICE PROVIDERS,Invoice,BACS,None,24-Apr-19,2019,1,1025574,B7744,GREEN WASTE,A5191,AGENCY STAFF
GUILDFORD BOROUGH COUNCIL,HOUSING BENEFITS,CFH DOCMAIL LTD,82738,09-Apr-19,2052893,"1,593.73 ",0,EXTERNAL PRINTING & DESIGN,DOCUMENT ARCHIVING PROVIDERS,Invoice,BACS,None,26-Mar-19,2019,1,024557,C4511,HOUSING BENEFITS ADMIN.,D3454,EXTERNAL PRINTING & DESIGN
GUILDFORD BOROUGH COUNCIL,BUILDING MAINTENANCE,CERTSURE LLP,6193,02-Apr-19,2053665,465.00 ,0,GENERAL SUBSCRIPTIONS,THIRD PARTY SUPPLIER,Invoice,BACS,None,01-Apr-19,2019,1,86440776,K1515,BUILDING MAINTENANCE,D7497,GENERAL SUBSCRIPTIONS
GUILDFORD BOROUGH COUNCIL,STOCKS,CERTAS ENERGY UK LIMITED,7593,09-Apr-19,2053518,"12,090.00 ",0,PURCHASES,OIL FUEL SUPPLIERS,Invoice,BACS,None,27-Mar-19,2019,1,2269707,I03001,FUEL (FLEET MNGT),2591,PURCHASES
GUILDFORD BOROUGH COUNCIL,STOCKS,CERTAS ENERGY UK LIMITED,7593,16-Apr-19,2053640,"1,597.50 ",0,PURCHASES,OIL FUEL SUPPLIERS,Invoice,BACS,None,28-Mar-19,2019,1,2263515,I03001,FUEL (FLEET MNGT),2591,PURCHASES
GUILDFORD BOROUGH COUNCIL,STOCKS,CERTAS ENERGY UK LIMITED,7593,09-Apr-19,2053519,"7,052.50 ",0,PURCHASES,OIL FUEL SUPPLIERS,Invoice,BACS,None,27-Mar-19,2019,1,2269751,I03001,FUEL (FLEET MNGT),2591,PURCHASES
GUILDFORD BOROUGH COUNCIL,BUILDING CONTROL SUMMARY,CENTRAL HEATING SERVICES LTD,41351,09-Apr-19,2049685,85.00 ,0,CONSULTANTS (ADVICE),THIRD PARTY SUPPLIER,Invoice,BACS,None,14-Dec-18,2019,1,SIN055052,D5700,BUILDING CONTROL - FEE,D4520,CONSULTANTS (ADVICE)
GUILDFORD BOROUGH COUNCIL,PARKS & COUNTRYSIDE,CCS MEDIA,23943,25-Apr-19,2055893,186.29 ,0,TELECOMMS; MOBILE PHONES,IT CONSUMABLES SUPPLIERS,Invoice,BACS,None,11-Apr-19,2019,1,3493422,A1209,PARKS AND OPEN SPACES GENERAL,D5487,TELECOMMS; MOBILE PHONES
GUILDFORD BOROUGH COUNCIL,CARELINE SERVICE,CCS MEDIA,23943,23-Apr-19,2054162,173.78 ,0,TELECOMMS; MOBILE PHONES,IT CONSUMABLES SUPPLIERS,Invoice,BACS,None,03-Apr-19,2019,1,3484828,C2511,CARELINE,D5487,TELECOMMS; MOBILE PHONES
GUILDFORD BOROUGH COUNCIL,HOUSING BENEFITS,CFH DOCMAIL LTD,82738,09-Apr-19,2047464,77.50 ,0,EXTERNAL PRINTING & DESIGN,DOCUMENT ARCHIVING PROVIDERS,Invoice,BACS,None,19-Feb-19,2019,1,CS63575101,C4511,HOUSING BENEFITS ADMIN.,D3454,EXTERNAL PRINTING & DESIGN
GUILDFORD BOROUGH COUNCIL,ENVIRONMENTAL CONTROL,COMENSURA LTD,32435,04-Apr-19,2054091,578.25 ,0,AGENCY STAFF,OTHER RECRUITMENT AGENCIES AND SERVICE PROVIDERS,Invoice,BACS,None,02-Apr-19,2019,1,1024405,C1113,ENVIRONMENTAL CONTROL,A5191,AGENCY STAFF
GUILDFORD BOROUGH COUNCIL,BUILDING MAINTENANCE,CHAMBERS WASTE MANAGEMENT PLC,1275,11-Apr-19,2054452,104.60 ,0,TIPPING FEES,OTHER WASTE DISPOSAL SUPPLIERS,Invoice,BACS,None,23-Mar-19,2019,1,P329345,K1515,BUILDING MAINTENANCE,D4489,TIPPING FEES
GUILDFORD BOROUGH COUNCIL,CREMATORIUM,CHAMBERS WASTE MANAGEMENT PLC,1275,25-Apr-19,2054448,27.58 ,0,EQUIP. & TOOLS HIRE,OTHER WASTE DISPOSAL SUPPLIERS,Invoice,BACS,None,16-Mar-19,2019,1,P328929,A1500,GUILDFORD CREMATORIUM,D1430,EQUIP. & TOOLS HIRE
GUILDFORD BOROUGH COUNCIL,BUILDING MAINTENANCE,CHAMBERS WASTE MANAGEMENT PLC,1275,11-Apr-19,2054445,104.60 ,0,TIPPING FEES,OTHER WASTE DISPOSAL SUPPLIERS,Invoice,BACS,None,16-Mar-19,2019,1,P328716,K1515,BUILDING MAINTENANCE,D4489,TIPPING FEES
GUILDFORD BOROUGH COUNCIL,BUILDING MAINTENANCE,CHAMBERS WASTE MANAGEMENT PLC,1275,11-Apr-19,2054446,558.62 ,0,TIPPING FEES,OTHER WASTE DISPOSAL SUPPLIERS,Invoice,BACS,None,16-Mar-19,2019,1,P328713,K1515,BUILDING MAINTENANCE,D4489,TIPPING FEES
GUILDFORD BOROUGH COUNCIL,CREMATORIUM,CHAMBERS WASTE MANAGEMENT PLC,1275,25-Apr-19,2054455,27.58 ,0,EQUIP. & TOOLS HIRE,OTHER WASTE DISPOSAL SUPPLIERS,Invoice,BACS,None,23-Mar-19,2019,1,P329545,A1500,GUILDFORD CREMATORIUM,D1430,EQUIP. & TOOLS HIRE
GUILDFORD BOROUGH COUNCIL,STOCKS,CHAMBERS WASTE MANAGEMENT PLC,1275,23-Apr-19,2054454,386.12 ,0,PURCHASES,OTHER WASTE DISPOSAL SUPPLIERS,Invoice,BACS,None,23-Mar-19,2019,1,P329347,I06001,STORES,2591,PURCHASES
GUILDFORD BOROUGH COUNCIL,BUILDING MAINTENANCE,CHAMBERS WASTE MANAGEMENT PLC,1275,11-Apr-19,2054444,209.20 ,0,TIPPING FEES,OTHER WASTE DISPOSAL SUPPLIERS,Invoice,BACS,None,16-Mar-19,2019,1,P328715,K1515,BUILDING MAINTENANCE,D4489,TIPPING FEES
GUILDFORD BOROUGH COUNCIL,BUILDING MAINTENANCE,CHAMBERS WASTE MANAGEMENT PLC,1275,23-Apr-19,2054457,294.80 ,0,TIPPING FEES,OTHER WASTE DISPOSAL SUPPLIERS,Invoice,BACS,None,31-Mar-19,2019,1,P330315,K1515,BUILDING MAINTENANCE,D4489,TIPPING FEES
GUILDFORD BOROUGH COUNCIL,REFUSE AND RECYCLING,COMENSURA LTD,32435,04-Apr-19,2054091,438.82 ,0,AGENCY STAFF,OTHER RECRUITMENT AGENCIES AND SERVICE PROVIDERS,Invoice,BACS,None,02-Apr-19,2019,1,1024405,B7711,RECYCLING ADMINISTRATION,A5191,AGENCY STAFF
GUILDFORD BOROUGH COUNCIL,INCOME COLLECTION,CFH DOCMAIL LTD,82738,09-Apr-19,2052233,"2,774.52 ",0,EXTERNAL PRINTING & DESIGN,DOCUMENT ARCHIVING PROVIDERS,Invoice,BACS,None,20-Mar-19,2019,1,024493,M1121,INCOME COLLECTION (BHS),D3454,EXTERNAL PRINTING & DESIGN
GUILDFORD BOROUGH COUNCIL,DEVELOPMENT CONTROL,COMENSURA LTD,32435,04-Apr-19,2054091,550.56 ,0,AGENCY STAFF,OTHER RECRUITMENT AGENCIES AND SERVICE PROVIDERS,Invoice,BACS,None,02-Apr-19,2019,1,1024405,D5100,DEVELOPMENT CONTROL - FEE EARN,A5191,AGENCY STAFF
GUILDFORD BOROUGH COUNCIL,REFUSE AND RECYCLING,COMENSURA LTD,32435,04-Apr-19,2054091,618.98 ,0,AGENCY STAFF,OTHER RECRUITMENT AGENCIES AND SERVICE PROVIDERS,Invoice,BACS,None,02-Apr-19,2019,1,1024405,B7766,KERBSIDE RECYCLING,A5191,AGENCY STAFF
GUILDFORD BOROUGH COUNCIL,FOOD AND SAFETY SERVICES,COMENSURA LTD,32435,04-Apr-19,2054091,550.56 ,0,AGENCY STAFF,OTHER RECRUITMENT AGENCIES AND SERVICE PROVIDERS,Invoice,BACS,None,02-Apr-19,2019,1,1024405,C1111,FOOD AND SAFETY SERVICES,A5191,AGENCY STAFF
GUILDFORD BOROUGH COUNCIL,DEVELOPMENT CONTROL,COMENSURA LTD,32435,04-Apr-19,2054091,496.11 ,0,AGENCY STAFF,OTHER RECRUITMENT AGENCIES AND SERVICE PROVIDERS,Invoice,BACS,None,02-Apr-19,2019,1,1024405,D5100,DEVELOPMENT CONTROL - FEE EARN,A5191,AGENCY STAFF
GUILDFORD BOROUGH COUNCIL,REFUSE AND RECYCLING,COMENSURA LTD,32435,25-Apr-19,2056555,122.32 ,0,AGENCY STAFF,OTHER RECRUITMENT AGENCIES AND SERVICE PROVIDERS,Invoice,BACS,None,24-Apr-19,2019,1,1025574,K3551,REFUSE COLLECTION,A5191,AGENCY STAFF
GUILDFORD BOROUGH COUNCIL,DEVELOPMENT CONTROL,COMENSURA LTD,32435,25-Apr-19,2056555,463.76 ,0,AGENCY STAFF,OTHER RECRUITMENT AGENCIES AND SERVICE PROVIDERS,Invoice,BACS,None,24-Apr-19,2019,1,1025574,D5100,DEVELOPMENT CONTROL - FEE EARN,A5191,AGENCY STAFF
GUILDFORD BOROUGH COUNCIL,REFUSE AND RECYCLING,COMENSURA LTD,32435,25-Apr-19,2056555,110.59 ,0,AGENCY STAFF,OTHER RECRUITMENT AGENCIES AND SERVICE PROVIDERS,Invoice,BACS,None,24-Apr-19,2019,1,1025574,K3551,REFUSE COLLECTION,A5191,AGENCY STAFF
GUILDFORD BOROUGH COUNCIL,REFUSE AND RECYCLING,COMENSURA LTD,32435,25-Apr-19,2056555,529.21 ,0,AGENCY STAFF,OTHER RECRUITMENT AGENCIES AND SERVICE PROVIDERS,Invoice,BACS,None,24-Apr-19,2019,1,1025574,B7744,GREEN WASTE,A5191,AGENCY STAFF
GUILDFORD BOROUGH COUNCIL,REFUSE AND RECYCLING,COMENSURA LTD,32435,04-Apr-19,2054091,-1.68 ,0,AGENCY STAFF,OTHER RECRUITMENT AGENCIES AND SERVICE PROVIDERS,Invoice,BACS,None,02-Apr-19,2019,1,1024405,B7766,KERBSIDE RECYCLING,A5191,AGENCY STAFF
GUILDFORD BOROUGH COUNCIL,ENVIRONMENTAL CONTROL,COMENSURA LTD,32435,18-Apr-19,2056010,538.90 ,0,AGENCY STAFF,OTHER RECRUITMENT AGENCIES AND SERVICE PROVIDERS,Invoice,BACS,None,16-Apr-19,2019,1,1025156,C1113,ENVIRONMENTAL CONTROL,A5191,AGENCY STAFF
GUILDFORD BOROUGH COUNCIL,REFUSE AND RECYCLING,COMENSURA LTD,32435,18-Apr-19,2056010,549.15 ,0,AGENCY STAFF,OTHER RECRUITMENT AGENCIES AND SERVICE PROVIDERS,Invoice,BACS,None,16-Apr-19,2019,1,1025156,B7766,KERBSIDE RECYCLING,A5191,AGENCY STAFF
GUILDFORD BOROUGH COUNCIL,DEVELOPMENT CONTROL,COMENSURA LTD,32435,18-Apr-19,2056010,-1.14 ,0,AGENCY STAFF,OTHER RECRUITMENT AGENCIES AND SERVICE PROVIDERS,Invoice,BACS,None,16-Apr-19,2019,1,1025156,D5100,DEVELOPMENT CONTROL - FEE EARN,A5191,AGENCY STAFF
GUILDFORD BOROUGH COUNCIL,STREET CLEANSING,COMENSURA LTD,32435,18-Apr-19,2056010,496.19 ,0,AGENCY STAFF,OTHER RECRUITMENT AGENCIES AND SERVICE PROVIDERS,Invoice,BACS,None,16-Apr-19,2019,1,1025156,K4551,STREET CLEANSING,A5191,AGENCY STAFF
GUILDFORD BOROUGH COUNCIL,GUILDFORD HOUSE,REDACTED,0,09-Apr-19,2054559,-2.45 ,0,COMMISSION ON CRAFTWORK SALES,,Invoice,BACS,None,03-Apr-19,2019,1,REDACTED,A4511,GUILDFORD HOUSE ADMINISTRATION,K5918,COMMISSION ON CRAFTWORK SALES
GUILDFORD BOROUGH COUNCIL,OFF STREET PARKING,COMENSURA LTD,32435,18-Apr-19,2056010,620.18 ,0,AGENCY STAFF,OTHER RECRUITMENT AGENCIES AND SERVICE PROVIDERS,Invoice,BACS,None,16-Apr-19,2019,1,1025156,B2111,CAR PARKS - ADMINISTRATION,A5191,AGENCY STAFF
GUILDFORD BOROUGH COUNCIL,GUILDFORD HOUSE,REDACTED,0,09-Apr-19,2054559,7.00 ,0,CRAFTWORK - SALE OR RETURN,,Invoice,BACS,None,03-Apr-19,2019,1,REDACTED,A4511,GUILDFORD HOUSE ADMINISTRATION,K3931,CRAFTWORK - SALE OR RETURN
GUILDFORD BOROUGH COUNCIL,DEVELOPMENT CONTROL,COMENSURA LTD,32435,18-Apr-19,2056010,561.00 ,0,AGENCY STAFF,OTHER RECRUITMENT AGENCIES AND SERVICE PROVIDERS,Invoice,BACS,None,16-Apr-19,2019,1,1025156,D5100,DEVELOPMENT CONTROL - FEE EARN,A5191,AGENCY STAFF
GUILDFORD BOROUGH COUNCIL,NEW BUILD,"DJJH CONSULTING LIMITED, T/A IBIS",84484,23-Apr-19,2056282,139.04 ,0,CONSULTANTS FEES - PROJECTS,CONSTRUCTION PROJECT MANAGEMENT CONSULTANTS,Invoice,BACS,None,29-Mar-19,2019,1,INV-001212,N30018,THE HOMESTEAD,1221,CONSULTANTS FEES - PROJECTS
GUILDFORD BOROUGH COUNCIL,STOCKS,EDMUNDSON ELECTRICAL LIMITED,1832,11-Apr-19,2053706,"10,798.02 ",0,PURCHASES,ELECTRICAL WIRING AND PARTS SUPPLIERS,Invoice,BACS,None,29-Mar-19,2019,1,201-169936,I06001,STORES,2591,PURCHASES
GUILDFORD BOROUGH COUNCIL,OPERATIONAL SERVS OVERHEAD AC,E P TRAINING SERVICES LIMITED,1807,30-Apr-19,2056819,35.00 ,0,TRAINING,OTHER TRAINING PROVIDERS,Invoice,BACS,None,04-Dec-18,2019,1,52906,K1519,OPERATIONAL SERVS OVERHEAD AC,A7161,TRAINING
GUILDFORD BOROUGH COUNCIL,LEGAL SERVICES,DX NETWORK SERVICES LTD,2398,02-Apr-19,2048159,"1,379.58 ",0,POSTAGE DIRECT USAGE,POSTAL AND COURIER SERVICE PROVIDERS,Invoice,BACS,None,21-Feb-19,2019,1,82150728,G4525,LEGAL SERVICES,D5466,POSTAGE DIRECT USAGE
GUILDFORD BOROUGH COUNCIL,ACCOUNTANCY,DUN & BRADSTREET LTD,41541,02-Apr-19,2049825,"2,720.00 ",0,GENERAL SUBSCRIPTIONS,OTHER INFORMATION SERVICE PROVIDERS,Invoice,BACS,None,04-Mar-19,2019,1,1491065,G3565,ACCOUNTANCY SERVICES,D7497,GENERAL SUBSCRIPTIONS
GUILDFORD BOROUGH COUNCIL,DEVELOPMENT CONTROL,DOD'S PARLIAMENTARY COMMUNICATIONS LTD,22001,11-Apr-19,2055050,255.00 ,0,TRAINING,THIRD PARTY SUPPLIER,Invoice,BACS,None,05-Apr-19,2019,1,PK0136158,D5100,DEVELOPMENT CONTROL - FEE EARN,A7161,TRAINING
GUILDFORD BOROUGH COUNCIL,NEW BUILD,"DJJH CONSULTING LIMITED, T/A IBIS",84484,09-Apr-19,2054578,"1,040.00 ",0,CONSULTANTS FEES - PROJECTS,CONSTRUCTION PROJECT MANAGEMENT CONSULTANTS,Invoice,BACS,None,29-Mar-19,2019,1,INV-001213,N30012,APPLETREE PUB SITE,1221,CONSULTANTS FEES - PROJECTS
GUILDFORD BOROUGH COUNCIL,HOUSING BENEFITS,E-PERSONNEL LTD,72039,16-Apr-19,2055371,610.16 ,0,AGENCY STAFF,OTHER RECRUITMENT AGENCIES AND SERVICE PROVIDERS,Invoice,BACS,None,09-Apr-19,2019,1,2849,C4511,HOUSING BENEFITS ADMIN.,A5191,AGENCY STAFF
GUILDFORD BOROUGH COUNCIL,NEW BUILD,"DJJH CONSULTING LIMITED, T/A IBIS",84484,23-Apr-19,2056282,104.28 ,0,CONSULTANTS FEES - PROJECTS,CONSTRUCTION PROJECT MANAGEMENT CONSULTANTS,Invoice,BACS,None,29-Mar-19,2019,1,INV-001212,N30015,GARAGE SITE - POND MEADOW,1221,CONSULTANTS FEES - PROJECTS
GUILDFORD BOROUGH COUNCIL,TENANTS' SERVICES,E.ON,17888,30-Apr-19,2057262,148.66 ,0,ELECTRICITY,THIRD PARTY SUPPLIER,Invoice,BACS,None,31-Mar-19,2019,1,016081316350,M1151,TENANTS SERVICES (BHS),B2215,ELECTRICITY
GUILDFORD BOROUGH COUNCIL,NEW BUILD,"DJJH CONSULTING LIMITED, T/A IBIS",84484,23-Apr-19,2056282,173.84 ,0,CONSULTANTS FEES - PROJECTS,CONSTRUCTION PROJECT MANAGEMENT CONSULTANTS,Invoice,BACS,None,29-Mar-19,2019,1,INV-001212,N30014,WILLOW  WAY,1221,CONSULTANTS FEES - PROJECTS
GUILDFORD BOROUGH COUNCIL,NEW BUILD,"DJJH CONSULTING LIMITED, T/A IBIS",84484,23-Apr-19,2056282,104.28 ,0,CONSULTANTS FEES - PROJECTS,CONSTRUCTION PROJECT MANAGEMENT CONSULTANTS,Invoice,BACS,None,29-Mar-19,2019,1,INV-001212,N30016,GARAGE SITE - ROWAN CLOSE,1221,CONSULTANTS FEES - PROJECTS
GUILDFORD BOROUGH COUNCIL,CORPORATE FINANCIAL,DISTRICTS COUNCILS NETWORK,65344,18-Apr-19,2055122,999.00 ,0,DISTRICT COUNCILS' NETWORK,THIRD PARTY SUPPLIER,Invoice,BACS,None,01-Apr-19,2019,1,DCN/DI/1920/073,F3111,CORPORATE SUBSCRIPTIONS,D9471,DISTRICT COUNCILS' NETWORK
GUILDFORD BOROUGH COUNCIL,GRANTS TO VOLUNTARY ORGS: H&C,DISABILITY CHALLENGERS LTD,8923,30-Apr-19,2057147,"2,500.00 ",0,VOL ASSOC GRANT - PARTNERS,DISABILITY AND SPECIAL NEEDS SERVICES PROVIDERS,Invoice,BACS,None,12-Apr-19,2019,1,INV50582,C3111,COMMUNITY GRANT SCHEME,D7487,VOL ASSOC GRANT - PARTNERS
GUILDFORD BOROUGH COUNCIL,FLEET MANAGEMENT,DIGITAL TACHOGRAPH CENTRE LTD,90522,18-Apr-19,2055115,85.00 ,0,VEHICLE MISCELLANEOUS EXPS,OTHER VEHICLE EQUIPMENT PROVIDERS,Invoice,BACS,None,25-Feb-19,2019,1,35675,VS101,ROAD SWEEPER RE16 TKD,C1361,VEHICLE MISCELLANEOUS EXPS
GUILDFORD BOROUGH COUNCIL,FLEET MANAGEMENT,DIGITAL TACHOGRAPH CENTRE LTD,90522,02-Apr-19,2052216,85.00 ,0,VEHICLE MISCELLANEOUS EXPS,OTHER VEHICLE EQUIPMENT PROVIDERS,Invoice,BACS,None,18-Mar-19,2019,1,36003,VR053,DENNIS EAGLE 6x2RS VK09AHN,C1361,VEHICLE MISCELLANEOUS EXPS
GUILDFORD BOROUGH COUNCIL,FLEET MANAGEMENT,DIGITAL TACHOGRAPH CENTRE LTD,90522,18-Apr-19,2055123,85.00 ,0,VEHICLE MISCELLANEOUS EXPS,OTHER VEHICLE EQUIPMENT PROVIDERS,Invoice,BACS,None,26-Feb-19,2019,1,35702,VS101,ROAD SWEEPER RE16 TKD,C1361,VEHICLE MISCELLANEOUS EXPS
GUILDFORD BOROUGH COUNCIL,NEW BUILD,"DJJH CONSULTING LIMITED, T/A IBIS",84484,23-Apr-19,2056282,208.56 ,0,CONSULTANTS FEES - PROJECTS,CONSTRUCTION PROJECT MANAGEMENT CONSULTANTS,Invoice,BACS,None,29-Mar-19,2019,1,INV-001212,N30017,GARAGE SITE - GT GOODWIN DRIVE,1221,CONSULTANTS FEES - PROJECTS
GUILDFORD BOROUGH COUNCIL,GF NET REVENUE ACCOUNT,EAST CLANDON PARISH COUNCIL,1813,09-Apr-19,2054775,"4,036.00 ",0,OOE - PARISH PRECEPTS PAID,LOCAL GOVERNMENT [UK ONLY],Invoice,BACS,None,08-Apr-19,2019,1,PARISH PRECEPT,V01005,GF NET REVENUE ACCOUNT,2482,OOE - PARISH PRECEPTS PAID
GUILDFORD BOROUGH COUNCIL,STREET CLEANSING,CTG ENTERPRISES LTD,79580,25-Apr-19,2053694,150.00 ,0,PAYMENT TO CONTRACTORS,OTHER CLEANING AND JANITORIAL SERVICE PROVIDERS,Invoice,BACS,None,01-Apr-19,2019,1,GU1417GBC,K4551,STREET CLEANSING,D4468,PAYMENT TO CONTRACTORS
GUILDFORD BOROUGH COUNCIL,TENANTS' SERVICES,EDF ENERGY,65619,09-Apr-19,2054586,-0.48 ,0,ELECTRICITY,MAINS ELECTRICITY SUPPLIERS,Invoice,BACS,None,30-Mar-19,2019,1,671119701159,M1151,TENANTS SERVICES (BHS),B2215,ELECTRICITY
GUILDFORD BOROUGH COUNCIL,TENANTS' SERVICES,EDF ENERGY,65619,18-Apr-19,2055984,46.07 ,0,GAS,MAINS ELECTRICITY SUPPLIERS,Invoice,BACS,None,16-Apr-19,2019,1,671 117 600 519,M1151,TENANTS SERVICES (BHS),B2221,GAS
GUILDFORD BOROUGH COUNCIL,HOUSING BENEFITS,EDEN BROWN LTD,82954,23-Apr-19,2055525,649.69 ,0,AGENCY STAFF,OTHER RECRUITMENT AGENCIES AND SERVICE PROVIDERS,Invoice,BACS,None,10-Apr-19,2019,1,1204307,C4511,HOUSING BENEFITS ADMIN.,A5191,AGENCY STAFF
GUILDFORD BOROUGH COUNCIL,HOUSING BENEFITS,EDEN BROWN LTD,82954,09-Apr-19,2054168,"1,010.63 ",0,AGENCY STAFF,OTHER RECRUITMENT AGENCIES AND SERVICE PROVIDERS,Invoice,BACS,None,03-Apr-19,2019,1,1203452,C4511,HOUSING BENEFITS ADMIN.,A5191,AGENCY STAFF
GUILDFORD BOROUGH COUNCIL,GF NET REVENUE ACCOUNT,EAST HORSLEY PARISH COUNCIL,1816,09-Apr-19,2054779,"65,893.50 ",0,OOE - PARISH PRECEPTS PAID,LOCAL GOVERNMENT [UK ONLY],Invoice,BACS,None,08-Apr-19,2019,1,PARISH PRECEPT,V01005,GF NET REVENUE ACCOUNT,2482,OOE - PARISH PRECEPTS PAID
GUILDFORD BOROUGH COUNCIL,HOUSING BENEFITS,E-PERSONNEL LTD,72039,09-Apr-19,2053946,598.65 ,0,AGENCY STAFF,OTHER RECRUITMENT AGENCIES AND SERVICE PROVIDERS,Invoice,BACS,None,02-Apr-19,2019,1,2604,C4511,HOUSING BENEFITS ADMIN.,A5191,AGENCY STAFF
GUILDFORD BOROUGH COUNCIL,CEMETERIES,EAST CLANDON PARISH COUNCIL,49020,09-Apr-19,2054606,260.00 ,0,"COMPTON,E CLANDON CH YDS GRANT",LOCAL GOVERNMENT [UK ONLY],Invoice,BACS,None,03-Apr-19,2019,1,MAINTENANCE,A1440,CEMET - CLSED BURIAL GRNS GEN,D7427,"COMPTON,E CLANDON CH YDS GRANT"
GUILDFORD BOROUGH COUNCIL,BUSINESS & TOURISM,DESTINATION UK LIMITED,42981,30-Apr-19,2057073,339.00 ,0,GENERAL TOURISM MARKETING,THIRD PARTY SUPPLIER,Invoice,BACS,None,05-Apr-19,2019,1,DBMA88432/19,F5545,TOURISM,D9403,GENERAL TOURISM MARKETING
GUILDFORD BOROUGH COUNCIL,PARISH & LOCAL LIAISON,EAST CLANDON PARISH COUNCIL,1813,09-Apr-19,2054775,73.00 ,0,LCTSS PARISH GRANT,LOCAL GOVERNMENT [UK ONLY],Invoice,BACS,None,08-Apr-19,2019,1,PARISH PRECEPT,F1115,PARISH LIAISON,D7431,LCTSS PARISH GRANT
GUILDFORD BOROUGH COUNCIL,PUBLIC RELATIONS,EAGLE RADIO LIMITED,17773,02-Apr-19,2053492,"1,150.00 ",0,PUBLICITY; SPECIAL ITEMS,RADIO BROADCASTERS,Invoice,BACS,None,31-Mar-19,2019,1,526750,F5551,PUBLIC RELATIONS & MARKETING,D1575,PUBLICITY; SPECIAL ITEMS
GUILDFORD BOROUGH COUNCIL,BUSINESS & TOURISM,EAGLE RADIO LIMITED,17773,09-Apr-19,2053491,"1,000.00 ",0,GENERAL MARKETING,RADIO BROADCASTERS,Invoice,BACS,None,31-Mar-19,2019,1,526751,F5542,GUILDFORD SCIENCE + ARTS FEST,D9569,GENERAL MARKETING
GUILDFORD BOROUGH COUNCIL,Other Property,E.ON,17888,11-Apr-19,2055084,143.55 ,0,ELECTRICITY,THIRD PARTY SUPPLIER,Invoice,BACS,None,22-Mar-19,2019,1,H16F7CB5B4,B6594,WHITE HART MEADOWS CAR PARK,B2215,ELECTRICITY
GUILDFORD BOROUGH COUNCIL,GOVERNMENT ST DEBTORS,E.ON,17888,11-Apr-19,2055085,19.15 ,0,VAT INPUT TAX,THIRD PARTY SUPPLIER,Invoice,BACS,None,22-Mar-19,2019,1,H16F7E8F01,J02040,VAT,2736,VAT INPUT TAX
GUILDFORD BOROUGH COUNCIL,Other Property,E.ON,17888,11-Apr-19,2055085,383.08 ,0,ELECTRICITY,THIRD PARTY SUPPLIER,Invoice,BACS,None,22-Mar-19,2019,1,H16F7E8F01,B6594,WHITE HART MEADOWS CAR PARK,B2215,ELECTRICITY
GUILDFORD BOROUGH COUNCIL,GOVERNMENT ST DEBTORS,E.ON,17888,11-Apr-19,2055084,7.18 ,0,VAT INPUT TAX,THIRD PARTY SUPPLIER,Invoice,BACS,None,22-Mar-19,2019,1,H16F7CB5B4,J02040,VAT,2736,VAT INPUT TAX
GUILDFORD BOROUGH COUNCIL,PARISH & LOCAL LIAISON,EAST HORSLEY PARISH COUNCIL,1816,09-Apr-19,2054779,738.00 ,0,LCTSS PARISH GRANT,LOCAL GOVERNMENT [UK ONLY],Invoice,BACS,None,08-Apr-19,2019,1,PARISH PRECEPT,F1115,PARISH LIAISON,D7431,LCTSS PARISH GRANT
GUILDFORD BOROUGH COUNCIL,BUILDING MAINTENANCE,D G PROPERTY REFURBISHMENT LTD,71371,09-Apr-19,2054801,"1,200.00 ",0,MATERIALS; SUB CONTRACTOR,RESTORATION SPECIALISTS,Invoice,BACS,None,01-Apr-19,2019,1,114,K1515,BUILDING MAINTENANCE,D1542,MATERIALS; SUB CONTRACTOR
GUILDFORD BOROUGH COUNCIL,BUILDING MAINTENANCE,D G PROPERTY REFURBISHMENT LTD,71371,30-Apr-19,2057266,"2,000.00 ",0,MATERIALS; SUB CONTRACTOR,RESTORATION SPECIALISTS,Invoice,BACS,None,23-Apr-19,2019,1,121,K1515,BUILDING MAINTENANCE,D1542,MATERIALS; SUB CONTRACTOR
GUILDFORD BOROUGH COUNCIL,BUILDING MAINTENANCE,D G PROPERTY REFURBISHMENT LTD,71371,30-Apr-19,2057265,"2,000.00 ",0,MATERIALS; SUB CONTRACTOR,RESTORATION SPECIALISTS,Invoice,BACS,None,23-Apr-19,2019,1,120,K1515,BUILDING MAINTENANCE,D1542,MATERIALS; SUB CONTRACTOR
GUILDFORD BOROUGH COUNCIL,BUILDING MAINTENANCE,D G PROPERTY REFURBISHMENT LTD,71371,11-Apr-19,2055189,55.28 ,0,MATERIALS; SUB CONTRACTOR,RESTORATION SPECIALISTS,Invoice,BACS,None,09-Apr-19,2019,1,118,K1515,BUILDING MAINTENANCE,D1542,MATERIALS; SUB CONTRACTOR
GUILDFORD BOROUGH COUNCIL,BUILDING MAINTENANCE,D G PROPERTY REFURBISHMENT LTD,71371,02-Apr-19,2053602,972.56 ,0,MATERIALS; SUB CONTRACTOR,RESTORATION SPECIALISTS,Invoice,BACS,None,25-Mar-19,2019,1,113,K1515,BUILDING MAINTENANCE,D1542,MATERIALS; SUB CONTRACTOR
GUILDFORD BOROUGH COUNCIL,BUILDING MAINTENANCE,D G PROPERTY REFURBISHMENT LTD,71371,09-Apr-19,2054799,"1,472.21 ",0,PAYMENT TO CONTRACTORS,RESTORATION SPECIALISTS,Invoice,BACS,None,01-Apr-19,2019,1,115,K1515,BUILDING MAINTENANCE,D4468,PAYMENT TO CONTRACTORS
GUILDFORD BOROUGH COUNCIL,BUILDING MAINTENANCE,D G PROPERTY REFURBISHMENT LTD,71371,09-Apr-19,2054800,"3,000.00 ",0,MATERIALS; SUB CONTRACTOR,RESTORATION SPECIALISTS,Invoice,BACS,None,04-Apr-19,2019,1,116,K1515,BUILDING MAINTENANCE,D1542,MATERIALS; SUB CONTRACTOR
GUILDFORD BOROUGH COUNCIL,FLEET MANAGEMENT,DIGITAL TACHOGRAPH CENTRE LTD,90522,18-Apr-19,2055116,85.00 ,0,VEHICLE MISCELLANEOUS EXPS,OTHER VEHICLE EQUIPMENT PROVIDERS,Invoice,BACS,None,01-Feb-19,2019,1,35302,VS101,ROAD SWEEPER RE16 TKD,C1361,VEHICLE MISCELLANEOUS EXPS
GUILDFORD BOROUGH COUNCIL,BUILDING MAINTENANCE,D G PROPERTY REFURBISHMENT LTD,71371,18-Apr-19,2055990,"2,683.40 ",0,PAYMENT TO CONTRACTORS,RESTORATION SPECIALISTS,Invoice,BACS,None,16-Apr-19,2019,1,119,K1515,BUILDING MAINTENANCE,D4468,PAYMENT TO CONTRACTORS
GUILDFORD BOROUGH COUNCIL,BUILDING MAINTENANCE,D G PROPERTY REFURBISHMENT LTD,71371,02-Apr-19,2053602,"1,000.00 ",0,PAYMENT TO CONTRACTORS,RESTORATION SPECIALISTS,Invoice,BACS,None,25-Mar-19,2019,1,113,K1515,BUILDING MAINTENANCE,D4468,PAYMENT TO CONTRACTORS
GUILDFORD BOROUGH COUNCIL,BUILDING MAINTENANCE,D G PROPERTY REFURBISHMENT LTD,71371,11-Apr-19,2055189,120.00 ,0,PAYMENT TO CONTRACTORS,RESTORATION SPECIALISTS,Invoice,BACS,None,09-Apr-19,2019,1,118,K1515,BUILDING MAINTENANCE,D4468,PAYMENT TO CONTRACTORS
GUILDFORD BOROUGH COUNCIL,BUILDING MAINTENANCE,D G PROPERTY REFURBISHMENT LTD,71371,30-Apr-19,2057266,"2,300.00 ",0,PAYMENT TO CONTRACTORS,RESTORATION SPECIALISTS,Invoice,BACS,None,23-Apr-19,2019,1,121,K1515,BUILDING MAINTENANCE,D4468,PAYMENT TO CONTRACTORS
GUILDFORD BOROUGH COUNCIL,BUILDING MAINTENANCE,D G PROPERTY REFURBISHMENT LTD,71371,30-Apr-19,2057265,"1,856.07 ",0,PAYMENT TO CONTRACTORS,RESTORATION SPECIALISTS,Invoice,BACS,None,23-Apr-19,2019,1,120,K1515,BUILDING MAINTENANCE,D4468,PAYMENT TO CONTRACTORS
GUILDFORD BOROUGH COUNCIL,BUILDING MAINTENANCE,D G PROPERTY REFURBISHMENT LTD,71371,09-Apr-19,2054799,"1,800.00 ",0,MATERIALS; SUB CONTRACTOR,RESTORATION SPECIALISTS,Invoice,BACS,None,01-Apr-19,2019,1,115,K1515,BUILDING MAINTENANCE,D1542,MATERIALS; SUB CONTRACTOR
GUILDFORD BOROUGH COUNCIL,BUILDING MAINTENANCE,D G PROPERTY REFURBISHMENT LTD,71371,09-Apr-19,2054801,803.09 ,0,PAYMENT TO CONTRACTORS,RESTORATION SPECIALISTS,Invoice,BACS,None,01-Apr-19,2019,1,114,K1515,BUILDING MAINTENANCE,D4468,PAYMENT TO CONTRACTORS
GUILDFORD BOROUGH COUNCIL,STREET FURNITURE,CTG ENTERPRISES LTD,79580,04-Apr-19,2053696,280.00 ,0,FRIARY BUS STATION CLEANING,OTHER CLEANING AND JANITORIAL SERVICE PROVIDERS,Invoice,BACS,None,01-Apr-19,2019,1,GU1418GBC,B3711,CIVIC AMENITIES ADMINISTRATION,D1405,FRIARY BUS STATION CLEANING
GUILDFORD BOROUGH COUNCIL,VEHICLE MAINTENANCE,FRM TRUCK & TRAILER SPARES LTD,2081,16-Apr-19,2053907,38.74 ,0,SPARES FOR VEHICLES,CAR AND VAN PARTS SUPPLIERS,Invoice,BACS,None,31-Mar-19,2019,1,341886,K5551,VEHICLE MAINTENANCE,D1589,SPARES FOR VEHICLES
GUILDFORD BOROUGH COUNCIL,BUILDING MAINTENANCE,D G PROPERTY REFURBISHMENT LTD,71371,11-Apr-19,2055188,"3,153.25 ",0,PAYMENT TO CONTRACTORS,RESTORATION SPECIALISTS,Invoice,BACS,None,09-Apr-19,2019,1,117,K1515,BUILDING MAINTENANCE,D4468,PAYMENT TO CONTRACTORS
GUILDFORD BOROUGH COUNCIL,POLICY,DAVID LOCK ASSOCIATES LIMITED,94919,04-Apr-19,2053336,"15,872.15 ",0,CONSULTANTS (PROJECTS),THIRD PARTY SUPPLIER,Invoice,BACS,None,21-Mar-19,2019,1,19/03/5120,D5400,LOCAL PLAN 2013,D4511,CONSULTANTS (PROJECTS)
GUILDFORD BOROUGH COUNCIL,OFF STREET PARKING,EE LIMITED,85495,14-May-19,2055377,-50.00 ,0,TELECOMMS; MOBILE PHONES,FIXED TELECOMS SERVICE PROVIDERS,Credit Note,,None,29-Mar-19,2019,1,960123780,B2111,CAR PARKS - ADMINISTRATION,D5487,TELECOMMS; MOBILE PHONES
GUILDFORD BOROUGH COUNCIL,BUSINESS & TOURISM,DESTINATION UK LIMITED,42981,09-Apr-19,2053001,339.00 ,0,GENERAL TOURISM MARKETING,THIRD PARTY SUPPLIER,Invoice,BACS,None,05-Mar-19,2019,1,DB7604/19,F5545,TOURISM,D9403,GENERAL TOURISM MARKETING
GUILDFORD BOROUGH COUNCIL,VEHICLE MAINTENANCE,DENNIS EAGLE LIMITED,1681,09-Apr-19,2053499,"1,833.54 ",0,SPARES FOR VEHICLES,REFUSE VEHICLE SUPPLIERS,Invoice,BACS,None,29-Mar-19,2019,1,DE11208581,K5551,VEHICLE MAINTENANCE,D1589,SPARES FOR VEHICLES
GUILDFORD BOROUGH COUNCIL,IT RENEWALS,DELL COMPUTER CORPORATION LTD,1676,23-Apr-19,2053266,373.89 ,0,HARDWARE,COMPUTER HARDWARE SUPPLIERS,Invoice,BACS,None,23-Mar-19,2019,1,7402516864,P81034,ICT INFRASTRUCTURE IMPROVEMENT,1295,HARDWARE
GUILDFORD BOROUGH COUNCIL,BUILDING MAINTENANCE,DAVIS ROOFING SOLUTIONS LIMITED,94697,09-Apr-19,2054802,"1,114.05 ",0,PAYMENT TO CONTRACTORS,THIRD PARTY SUPPLIER,Invoice,BACS,None,04-Apr-19,2019,1,17,K1515,BUILDING MAINTENANCE,D4468,PAYMENT TO CONTRACTORS
GUILDFORD BOROUGH COUNCIL,BUILDING MAINTENANCE,DAVIS ROOFING SOLUTIONS LIMITED,94697,23-Apr-19,2056255,"1,936.70 ",0,PAYMENT TO CONTRACTORS,THIRD PARTY SUPPLIER,Invoice,BACS,None,16-Apr-19,2019,1,18,K1515,BUILDING MAINTENANCE,D4468,PAYMENT TO CONTRACTORS
GUILDFORD BOROUGH COUNCIL,BUILDING MAINTENANCE,DAVIS ROOFING SOLUTIONS LIMITED,94697,30-Apr-19,2057270,"5,206.80 ",0,PAYMENT TO CONTRACTORS,THIRD PARTY SUPPLIER,Invoice,BACS,None,25-Apr-19,2019,1,20,K1515,BUILDING MAINTENANCE,D4468,PAYMENT TO CONTRACTORS
GUILDFORD BOROUGH COUNCIL,BUILDING MAINTENANCE,D G PROPERTY REFURBISHMENT LTD,71371,18-Apr-19,2055990,"3,000.00 ",0,MATERIALS; SUB CONTRACTOR,RESTORATION SPECIALISTS,Invoice,BACS,None,16-Apr-19,2019,1,119,K1515,BUILDING MAINTENANCE,D1542,MATERIALS; SUB CONTRACTOR
GUILDFORD BOROUGH COUNCIL,BUILDING MAINTENANCE,DAVIS ROOFING SOLUTIONS LIMITED,94697,23-Apr-19,2056265,"1,427.20 ",0,PAYMENT TO CONTRACTORS,THIRD PARTY SUPPLIER,Invoice,BACS,None,16-Apr-19,2019,1,19,K1515,BUILDING MAINTENANCE,D4468,PAYMENT TO CONTRACTORS
GUILDFORD BOROUGH COUNCIL,BUILDING MAINTENANCE,D G PROPERTY REFURBISHMENT LTD,71371,09-Apr-19,2054800,"2,877.43 ",0,PAYMENT TO CONTRACTORS,RESTORATION SPECIALISTS,Invoice,BACS,None,04-Apr-19,2019,1,116,K1515,BUILDING MAINTENANCE,D4468,PAYMENT TO CONTRACTORS
GUILDFORD BOROUGH COUNCIL,OFFICE SERVICES TEAM,DAVID HAMILITON,84981,16-Apr-19,2055059,"16,819.75 ",0,PS - R&M PLANNED WORKS,CIVIL ENGINEERS,Invoice,BACS,None,31-Mar-19,2019,1,2099,G7515,OLD MILLMEAD HOUSE,B1610,PS - R&M PLANNED WORKS
GUILDFORD BOROUGH COUNCIL,CREMATORIUM,DATA SOLUTIONS 2016 LTD T/A RESTORE DATASHRED,75332,04-Apr-19,2053715,240.00 ,0,REMOVAL OF CONFIDENTIAL WASTE,CONFIDENTIAL WASTE DISPOSAL PROVIDERS,Invoice,BACS,None,31-Mar-19,2019,1,885544,A1500,GUILDFORD CREMATORIUM,D4490,REMOVAL OF CONFIDENTIAL WASTE
GUILDFORD BOROUGH COUNCIL,OFF STREET PARKING,DATA SOLUTIONS 2016 LTD T/A RESTORE DATASHRED,75332,04-Apr-19,2053714,90.00 ,0,REMOVAL OF CONFIDENTIAL WASTE,CONFIDENTIAL WASTE DISPOSAL PROVIDERS,Invoice,BACS,None,31-Mar-19,2019,1,885545,B2115,PARKING OFFICE ACCOMM COSTS,D4490,REMOVAL OF CONFIDENTIAL WASTE
GUILDFORD BOROUGH COUNCIL,PUBLIC RELATIONS,DAN SLEE C2 LTD,83851,30-Apr-19,2057082,234.00 ,0,TRAINING,PUBLIC RELATIONS AGENCIES,Invoice,BACS,None,15-Apr-19,2019,1,INV-4442,F5551,PUBLIC RELATIONS & MARKETING,A7161,TRAINING
GUILDFORD BOROUGH COUNCIL,PUBLIC RELATIONS,DAN SLEE C2 LTD,83851,04-Apr-19,2054055,234.00 ,0,TRAINING,PUBLIC RELATIONS AGENCIES,Invoice,BACS,None,02-Apr-19,2019,1,INV-4432,F5551,PUBLIC RELATIONS & MARKETING,A7161,TRAINING
GUILDFORD BOROUGH COUNCIL,BUILDING MAINTENANCE,D G PROPERTY REFURBISHMENT LTD,71371,11-Apr-19,2055188,"3,000.00 ",0,MATERIALS; SUB CONTRACTOR,RESTORATION SPECIALISTS,Invoice,BACS,None,09-Apr-19,2019,1,117,K1515,BUILDING MAINTENANCE,D1542,MATERIALS; SUB CONTRACTOR
GUILDFORD BOROUGH COUNCIL,TAXI LICENSING,DIGITAL ID LIMITED,77189,30-Apr-19,2056788,174.95 ,0,STATIONERY & OFFICE SUPPLIES,ALARM AND ACCESS CONTROL SYSTEM SUPPLIERS,Invoice,BACS,None,17-Apr-19,2019,1,0000320941,H1104,HC PH DRIVERS,D3472,STATIONERY & OFFICE SUPPLIES
GUILDFORD BOROUGH COUNCIL,BUILDING MAINTENANCE,DAVIS ROOFING SOLUTIONS LIMITED,94697,09-Apr-19,2054804,"4,296.60 ",0,PAYMENT TO CONTRACTORS,THIRD PARTY SUPPLIER,Invoice,BACS,None,03-Apr-19,2019,1,16,K1515,BUILDING MAINTENANCE,D4468,PAYMENT TO CONTRACTORS
GUILDFORD BOROUGH COUNCIL,Other Property,FIDELIS SECURITY LIMITED,2000,23-Apr-19,2055329,312.45 ,0,SECURITY SERVICES,SECURITY GUARDS,Invoice,BACS,None,31-Mar-19,2019,1,9263,B6550,"MULTIPLEX CINEMA, BEDFORD ROAD",D4477,SECURITY SERVICES
GUILDFORD BOROUGH COUNCIL,TENANTS' SERVICES,EDF ENERGY,65619,09-Apr-19,2054586,35.37 ,0,ELECTRICITY,MAINS ELECTRICITY SUPPLIERS,Invoice,BACS,None,30-Mar-19,2019,1,671119701159,M1151,TENANTS SERVICES (BHS),B2215,ELECTRICITY
GUILDFORD BOROUGH COUNCIL,PARKS & COUNTRYSIDE,FITZGERALD BUILDING SERVICES LTD,82448,30-Apr-19,2055487,"2,990.00 ",0,TRAVELLER INCURSION COSTS,GENERAL BUILDERS,Invoice,BACS,None,09-Apr-19,2019,1,1798,A1233,SUTH'LAND MEM PARK GBC,D1449,TRAVELLER INCURSION COSTS
GUILDFORD BOROUGH COUNCIL,PUBLIC CONVENIENCES,FITZGERALD BUILDING SERVICES LTD,82448,30-Apr-19,2057142,"17,586.00 ",0,PS - R&M PLANNED WORKS,GENERAL BUILDERS,Invoice,BACS,None,24-Apr-19,2019,1,1804,K6558,STOKE PRK TENNIS COURT PUB CON,B1610,PS - R&M PLANNED WORKS
GUILDFORD BOROUGH COUNCIL,LEISURE MANAGEMENT CONTRACT,FITZGERALD BUILDING SERVICES LTD,82448,09-Apr-19,2053926,"11,000.00 ",0,PS - R&M PLANNED WORKS,GENERAL BUILDERS,Invoice,BACS,None,20-Mar-19,2019,1,1787A,A7550,LIDO CLIENT,B1610,PS - R&M PLANNED WORKS
GUILDFORD BOROUGH COUNCIL,PARKS & COUNTRYSIDE,FITZGERALD BUILDING SERVICES LTD,82448,30-Apr-19,2052867,"8,990.70 ",0,ROADS & FTPATHS; LIGHTING R&M,GENERAL BUILDERS,Invoice,BACS,None,23-Mar-19,2019,1,1790,A1250,STOKE PARK,B1290,ROADS & FTPATHS; LIGHTING R&M
GUILDFORD BOROUGH COUNCIL,PARKS & COUNTRYSIDE,FITZGERALD BUILDING SERVICES LTD,82448,30-Apr-19,2055658,800.00 ,0,ROADS & FTPATHS; LIGHTING R&M,GENERAL BUILDERS,Invoice,BACS,None,09-Apr-19,2019,1,1797,A1260,ALLEN HOUSE GROUNDS,B1290,ROADS & FTPATHS; LIGHTING R&M
GUILDFORD BOROUGH COUNCIL,PARKS & COUNTRYSIDE,FITZGERALD BUILDING SERVICES LTD,82448,30-Apr-19,2055658,700.00 ,0,ROADS & FTPATHS; LIGHTING R&M,GENERAL BUILDERS,Invoice,BACS,None,09-Apr-19,2019,1,1797,A1260,ALLEN HOUSE GROUNDS,B1290,ROADS & FTPATHS; LIGHTING R&M
GUILDFORD BOROUGH COUNCIL,OTHER ST DEBTORS,FIRST/MTR SOUTH WESTERN TRAINS LIMITED,91899,30-Apr-19,2057258,"1,100.00 ",0,REPAYMENT OF PRINCIPAL,RAIL COMPANIES,Invoice,Cheque,None,25-Apr-19,2019,1,SEASON TICKET,J01066,SEASON TICKET LOANS,2706,REPAYMENT OF PRINCIPAL
GUILDFORD BOROUGH COUNCIL,PARKS & COUNTRYSIDE,FITZGERALD BUILDING SERVICES LTD,82448,30-Apr-19,2055487,"1,820.00 ",0,TRAVELLER INCURSION COSTS,GENERAL BUILDERS,Invoice,BACS,None,09-Apr-19,2019,1,1798,A1233,SUTH'LAND MEM PARK GBC,D1449,TRAVELLER INCURSION COSTS
GUILDFORD BOROUGH COUNCIL,Other Property,FIDELIS SECURITY LIMITED,2000,16-Apr-19,2055328,"2,243.25 ",0,SECURITY SERVICES,SECURITY GUARDS,Invoice,BACS,None,31-Mar-19,2019,1,9262,B6177,TYTING FARM,D4477,SECURITY SERVICES
GUILDFORD BOROUGH COUNCIL,STOCKS,FASTSIGNS (GUILDFORD) LTD,1993,23-Apr-19,2056281,528.00 ,0,PURCHASES,BUILDING SIGNAGE SUPPLIERS,Invoice,BACS,None,08-Apr-19,2019,1,16422,I06001,STORES,2591,PURCHASES
GUILDFORD BOROUGH COUNCIL,OFF STREET PARKING,FASTSIGNS (GUILDFORD) LTD,1993,16-Apr-19,2055411,"1,603.00 ",0,SIGNS,BUILDING SIGNAGE SUPPLIERS,Invoice,BACS,None,08-Apr-19,2019,1,16388,B2216,GENERAL UPKEEP- URBAN CAR PKS,D1459,SIGNS
GUILDFORD BOROUGH COUNCIL,OFF STREET PARKING,FASTSIGNS (GUILDFORD) LTD,1993,16-Apr-19,2055410,322.24 ,0,SIGNS,BUILDING SIGNAGE SUPPLIERS,Invoice,BACS,None,08-Apr-19,2019,1,16391,B2216,GENERAL UPKEEP- URBAN CAR PKS,D1459,SIGNS
GUILDFORD BOROUGH COUNCIL,OFF STREET PARKING,FASTSIGNS (GUILDFORD) LTD,1993,16-Apr-19,2055427,354.48 ,0,PARKING GENERAL MTCE,BUILDING SIGNAGE SUPPLIERS,Invoice,BACS,None,08-Apr-19,2019,1,16398,B2216,GENERAL UPKEEP- URBAN CAR PKS,B1218,PARKING GENERAL MTCE
GUILDFORD BOROUGH COUNCIL,PARKS & COUNTRYSIDE,FASTSIGNS (GUILDFORD) LTD,1993,30-Apr-19,2055474,67.40 ,0,MATERIALS,BUILDING SIGNAGE SUPPLIERS,Invoice,BACS,None,08-Apr-19,2019,1,16432,A1250,STOKE PARK,D1545,MATERIALS
GUILDFORD BOROUGH COUNCIL,TOWN CENTRE MANAGEMENT,FASTSIGNS (GUILDFORD) LTD,1993,16-Apr-19,2055426,125.00 ,0,PUBLICITY,BUILDING SIGNAGE SUPPLIERS,Invoice,BACS,None,08-Apr-19,2019,1,16419,F5550,FARMERS MARKET,D9410,PUBLICITY
GUILDFORD BOROUGH COUNCIL,PARKS & COUNTRYSIDE,FITZGERALD BUILDING SERVICES LTD,82448,30-Apr-19,2052867,"9,188.00 ",0,ROADS & FTPATHS; LIGHTING R&M,GENERAL BUILDERS,Invoice,BACS,None,23-Mar-19,2019,1,1790,A1250,STOKE PARK,B1290,ROADS & FTPATHS; LIGHTING R&M
GUILDFORD BOROUGH COUNCIL,VEHICLE MAINTENANCE,FLUID SYSTEMS LTD T/A PIRTEK (GUILDFORD),6670,11-Apr-19,2055091,2.53 ,0,EQUIP. & TOOLS REPAIRS,PLANT AND CONSTRUCTION EQUIPMENT SUPPLIERS,Invoice,BACS,None,03-Apr-19,2019,1,GUI108136,K5551,VEHICLE MAINTENANCE,D1429,EQUIP. & TOOLS REPAIRS
GUILDFORD BOROUGH COUNCIL,VEHICLE MAINTENANCE,FRM TRUCK & TRAILER SPARES LTD,2081,16-Apr-19,2054482,241.18 ,0,SPARES FOR VEHICLES,CAR AND VAN PARTS SUPPLIERS,Invoice,BACS,None,03-Apr-19,2019,1,341929,K5551,VEHICLE MAINTENANCE,D1589,SPARES FOR VEHICLES
GUILDFORD BOROUGH COUNCIL,VEHICLE MAINTENANCE,FRM TRUCK & TRAILER SPARES LTD,2081,02-Apr-19,2052354,95.00 ,0,SPARES FOR VEHICLES,CAR AND VAN PARTS SUPPLIERS,Invoice,BACS,None,25-Mar-19,2019,1,341703,K5551,VEHICLE MAINTENANCE,D1589,SPARES FOR VEHICLES
GUILDFORD BOROUGH COUNCIL,LEGAL SERVICES,FREETHS LLP,84392,02-Apr-19,2052870,"1,900.00 ",0,LEGAL EXPENSES,SOLICITORS [UK ONLY],Invoice,BACS,None,28-Feb-19,2019,1,90317354,G4525,LEGAL SERVICES,D4457,LEGAL EXPENSES
GUILDFORD BOROUGH COUNCIL,NEW BUILD,FRANCIS CONSTRUCTION LTD,87570,18-Apr-19,2055991,"59,250.00 ",0,CONTRACT PYTS-MAIN CONTRACTOR,OTHER CONSTRUCTION CONTRACTORS,Invoice,BACS,None,16-Apr-19,2019,1,14209,N30013,CORPORATION CLUB,1233,CONTRACT PYTS-MAIN CONTRACTOR
GUILDFORD BOROUGH COUNCIL,EXECUTIVE - MISCELLANEOUS,FOREST TRAFFIC SERVICES LTD,96894,30-Apr-19,2057022,"5,685.00 ",0,CONSULTANTS FEES - PROJECTS,THIRD PARTY SUPPLIER,Invoice,BACS,None,11-Apr-19,2019,1,19010008,P79032,SMC(WEST) PHASE 1,1221,CONSULTANTS FEES - PROJECTS
GUILDFORD BOROUGH COUNCIL,VEHICLE MAINTENANCE,FLUID SYSTEMS LTD T/A PIRTEK (GUILDFORD),6670,02-Apr-19,2052039,99.82 ,0,SPARES FOR VEHICLES,PLANT AND CONSTRUCTION EQUIPMENT SUPPLIERS,Invoice,BACS,None,08-Mar-19,2019,1,GUI107974,K5551,VEHICLE MAINTENANCE,D1589,SPARES FOR VEHICLES
GUILDFORD BOROUGH COUNCIL,PUBLIC CONVENIENCES,FITZGERALD BUILDING SERVICES LTD,82448,30-Apr-19,2057142,"15,664.00 ",0,PS - R&M PLANNED WORKS,GENERAL BUILDERS,Invoice,BACS,None,24-Apr-19,2019,1,1804,K6558,STOKE PRK TENNIS COURT PUB CON,B1610,PS - R&M PLANNED WORKS
GUILDFORD BOROUGH COUNCIL,VEHICLE MAINTENANCE,FLUID SYSTEMS LTD T/A PIRTEK (GUILDFORD),6670,18-Apr-19,2055090,183.92 ,0,SPARES FOR VEHICLES,PLANT AND CONSTRUCTION EQUIPMENT SUPPLIERS,Invoice,BACS,None,03-Apr-19,2019,1,GUI108144,K5551,VEHICLE MAINTENANCE,D1589,SPARES FOR VEHICLES
GUILDFORD BOROUGH COUNCIL,BUSINESS & TOURISM,EXHIBITION POWER LIMITED,90448,23-Apr-19,2055449,"1,280.00 ",0,GENERAL MARKETING,EVENT MANAGEMENT AGENCIES,Invoice,BACS,None,04-Apr-19,2019,1,EPL-180109,F5542,GUILDFORD SCIENCE + ARTS FEST,D9569,GENERAL MARKETING
GUILDFORD BOROUGH COUNCIL,VEHICLE MAINTENANCE,FLUID SYSTEMS LTD T/A PIRTEK (GUILDFORD),6670,02-Apr-19,2052038,443.88 ,0,SPARES FOR VEHICLES,PLANT AND CONSTRUCTION EQUIPMENT SUPPLIERS,Invoice,BACS,None,09-Mar-19,2019,1,GUI107973,K5551,VEHICLE MAINTENANCE,D1589,SPARES FOR VEHICLES
GUILDFORD BOROUGH COUNCIL,ON STREET PARKING,FLOWBIRD SMART CITY UK LIMITED,68667,04-Apr-19,2053949,138.00 ,0,PAY & DISPLAY MACHINERY MTCE,PARKING MANAGEMENT PROVIDERS,Invoice,BACS,None,02-Apr-19,2019,1,UK116574,B2217,GUILDFORD ON-STREET,D1479,PAY & DISPLAY MACHINERY MTCE
GUILDFORD BOROUGH COUNCIL,OFF STREET PARKING,FLOWBIRD SMART CITY UK LIMITED,68667,30-Apr-19,2056955,"18,077.97 ",0,PAY & DISPLAY MACHINERY MTCE,PARKING MANAGEMENT PROVIDERS,Invoice,BACS,None,23-Apr-19,2019,1,UK117003,B2216,GENERAL UPKEEP- URBAN CAR PKS,D1479,PAY & DISPLAY MACHINERY MTCE
GUILDFORD BOROUGH COUNCIL,OFF STREET PARKING,FLOWBIRD SMART CITY UK LIMITED,68667,04-Apr-19,2053949,"2,139.00 ",0,PAY & DISPLAY MACHINERY MTCE,PARKING MANAGEMENT PROVIDERS,Invoice,BACS,None,02-Apr-19,2019,1,UK116574,B2216,GENERAL UPKEEP- URBAN CAR PKS,D1479,PAY & DISPLAY MACHINERY MTCE
GUILDFORD BOROUGH COUNCIL,ON STREET PARKING,FLOWBIRD SMART CITY UK LIMITED,68667,04-Apr-19,2053948,189.00 ,0,PAY & DISPLAY MACHINERY MTCE,PARKING MANAGEMENT PROVIDERS,Invoice,BACS,None,02-Apr-19,2019,1,UK116573,B2215,WAVERLEY ON-STREET,D1479,PAY & DISPLAY MACHINERY MTCE
GUILDFORD BOROUGH COUNCIL,INFORMATION RIGHTS OFFICER,FIVIUM LIMITED,87877,09-Apr-19,2053638,900.00 ,0,COMPUTER SOFTWARE LICENCE COST,SOFTWARE AS A SERVICE PROVIDERS,Invoice,BACS,None,01-Apr-19,2019,1,INV-1351,G4520,INFORMATION GOVERNANCE SERVICE,D5445,COMPUTER SOFTWARE LICENCE COST
GUILDFORD BOROUGH COUNCIL,LEISURE MANAGEMENT CONTRACT,FITZGERALD BUILDING SERVICES LTD,82448,09-Apr-19,2053926,"14,000.00 ",0,PS - R&M PLANNED WORKS,GENERAL BUILDERS,Invoice,BACS,None,20-Mar-19,2019,1,1787A,A7550,LIDO CLIENT,B1610,PS - R&M PLANNED WORKS
GUILDFORD BOROUGH COUNCIL,STREET CLEANSING,FLUID SYSTEMS LTD T/A PIRTEK (GUILDFORD),6670,25-Apr-19,2055314,762.30 ,0,MATERIALS,PLANT AND CONSTRUCTION EQUIPMENT SUPPLIERS,Invoice,BACS,None,05-Apr-19,2019,1,GUI108182,K4551,STREET CLEANSING,D1545,MATERIALS
GUILDFORD BOROUGH COUNCIL,OTHER ST DEBTORS,REDACTED,0,04-Apr-19,2054265,"3,000.00 ",0,CASH PAID,PROPERTY LETTING AND ESTATE AGENTS,Invoice,BACS,None,04-Apr-19,2019,1,REDACTED,J01064,HOUSING H4U SCHEME,2175,CASH PAID
GUILDFORD BOROUGH COUNCIL,PROPERTY,EUROPEAN ASBESTOS SERVICES LIMITED,91991,09-Apr-19,2053497,753.50 ,0,CONTRACT PYTS-MINOR CONTRACTOR,ASBESTOS REMOVAL SERVICE PROVIDERS,Invoice,BACS,None,31-Mar-19,2019,1,IA20476,P74050,ASBESTOS REMOVAL,1234,CONTRACT PYTS-MINOR CONTRACTOR
GUILDFORD BOROUGH COUNCIL,HEATING,EUROPEAN ASBESTOS SERVICES LIMITED,91991,16-Apr-19,2055577,85.00 ,0,CONTRACT PYTS-MAIN CONTRACTOR,ASBESTOS REMOVAL SERVICE PROVIDERS,Invoice,BACS,None,26-Mar-19,2019,1,IAS20341,N44065,BOILER UGRADES VARIOUS 2018-19,1233,CONTRACT PYTS-MAIN CONTRACTOR
GUILDFORD BOROUGH COUNCIL,RESPONSIVE & PLANNED MAINTENAN,EUROPEAN ASBESTOS SERVICES LIMITED,91991,16-Apr-19,2055576,410.00 ,0,MAIN CONTRACTORS PAYMENTS,ASBESTOS REMOVAL SERVICE PROVIDERS,Invoice,BACS,None,31-Dec-18,2019,1,IA19661,M5113,REPAIRS-RESPONSIVE (BHS),B8921,MAIN CONTRACTORS PAYMENTS
GUILDFORD BOROUGH COUNCIL,HEATING,EUROPEAN ASBESTOS SERVICES LIMITED,91991,16-Apr-19,2055574,85.00 ,0,CONTRACT PYTS-MAIN CONTRACTOR,ASBESTOS REMOVAL SERVICE PROVIDERS,Invoice,BACS,None,28-Mar-19,2019,1,IAS20407,N44065,BOILER UGRADES VARIOUS 2018-19,1233,CONTRACT PYTS-MAIN CONTRACTOR
GUILDFORD BOROUGH COUNCIL,RESPONSIVE & PLANNED MAINTENAN,EUROPEAN ASBESTOS SERVICES LIMITED,91991,16-Apr-19,2030159,"4,100.00 ",0,MAIN CONTRACTORS PAYMENTS,ASBESTOS REMOVAL SERVICE PROVIDERS,Invoice,BACS,None,31-Oct-18,2019,1,IA19064,M5113,REPAIRS-RESPONSIVE (BHS),B8921,MAIN CONTRACTORS PAYMENTS
GUILDFORD BOROUGH COUNCIL,HEATING,EUROPEAN ASBESTOS SERVICES LIMITED,91991,16-Apr-19,2055575,85.00 ,0,CONTRACT PYTS-MAIN CONTRACTOR,ASBESTOS REMOVAL SERVICE PROVIDERS,Invoice,BACS,None,27-Mar-19,2019,1,IAS20384,N44069,CENTRAL HEATING/BOILER 2019-20,1233,CONTRACT PYTS-MAIN CONTRACTOR
GUILDFORD BOROUGH COUNCIL,INDUSTRIAL ESTATES,FABILORE PROMASOL LIMITED,92372,30-Apr-19,2056978,26.98 ,0,GENERAL UPKEEP - INDUSTRIAL ES,GENERAL BUILDERS,Invoice,BACS,None,19-Apr-19,2019,1,10143,B5332,LYSONS AVENUE ENT UNITS (RECH),B1267,GENERAL UPKEEP - INDUSTRIAL ES
GUILDFORD BOROUGH COUNCIL,HOMELESSNESS,REDACTED,0,04-Apr-19,2054261,"1,698.50 ",0,BONDS CLAIMED,PROPERTY LETTING AND ESTATE AGENTS,Invoice,BACS,None,04-Apr-19,2019,1,REDACTED,C3316,EMERGENCY ACCOMMODATION,D4525,BONDS CLAIMED
GUILDFORD BOROUGH COUNCIL,RESPONSIVE & PLANNED MAINTENAN,EUROPEAN ASBESTOS SERVICES LIMITED,91991,16-Apr-19,2055160,"-4,100.00 ",0,MAIN CONTRACTORS PAYMENTS,ASBESTOS REMOVAL SERVICE PROVIDERS,Credit Note,,None,31-Dec-18,2019,1,IA19064_CN1,M5113,REPAIRS-RESPONSIVE (BHS),B8921,MAIN CONTRACTORS PAYMENTS
GUILDFORD BOROUGH COUNCIL,PROPERTY,ENERGY ASSESS UK LTD,70458,09-Apr-19,2054476,100.00 ,0,CONTRACT PYTS-MINOR CONTRACTOR,SURVEYORS AND INSPECTORS,Invoice,BACS,None,02-Apr-19,2019,1,14835,P74058,ENERGY EFFICIENCY COMPLIANCE,1234,CONTRACT PYTS-MINOR CONTRACTOR
GUILDFORD BOROUGH COUNCIL,PROPERTY,ENERGY ASSESS UK LTD,70458,09-Apr-19,2054475,325.00 ,0,CONTRACT PYTS-MINOR CONTRACTOR,SURVEYORS AND INSPECTORS,Invoice,BACS,None,02-Apr-19,2019,1,14834,P74058,ENERGY EFFICIENCY COMPLIANCE,1234,CONTRACT PYTS-MINOR CONTRACTOR
GUILDFORD BOROUGH COUNCIL,PROPERTY,ENERGY ASSESS UK LTD,70458,09-Apr-19,2054462,100.00 ,0,CONSULTANTS FEES - ADVICE,SURVEYORS AND INSPECTORS,Invoice,BACS,None,04-Apr-19,2019,1,14874,P74058,ENERGY EFFICIENCY COMPLIANCE,1227,CONSULTANTS FEES - ADVICE
GUILDFORD BOROUGH COUNCIL,RECHARGEABLE WORKS,ENDWELL CONTRACTS,90797,18-Apr-19,2055986,"18,759.81 ",0,CONTRACT PYTS-MAIN CONTRACTOR,PROPERTY MAINTENANCE CONTRACTORS,Invoice,BACS,None,16-Apr-19,2019,1,2427,H20501,43 & 41 CLOVER RD- FIRE DAMAGE,1233,CONTRACT PYTS-MAIN CONTRACTOR
GUILDFORD BOROUGH COUNCIL,ENVIRONMENTAL CONTROL,ELMBRIDGE BOROUGH COUNCIL,24523,16-Apr-19,2055152,133.33 ,0,CONSULTANTS (PROJECTS),LOCAL GOVERNMENT [UK ONLY],Invoice,BACS,None,12-Mar-19,2019,1,0609049427,C1113,ENVIRONMENTAL CONTROL,D4511,CONSULTANTS (PROJECTS)
GUILDFORD BOROUGH COUNCIL,PARISH & LOCAL LIAISON,EFFINGHAM PARISH COUNCIL,1839,09-Apr-19,2054778,780.50 ,0,LCTSS PARISH GRANT,LOCAL GOVERNMENT [UK ONLY],Invoice,BACS,None,08-Apr-19,2019,1,PARISH PRECEPT,F1115,PARISH LIAISON,D7431,LCTSS PARISH GRANT
GUILDFORD BOROUGH COUNCIL,GF NET REVENUE ACCOUNT,EFFINGHAM PARISH COUNCIL,1839,09-Apr-19,2054778,"57,849.00 ",0,OOE - PARISH PRECEPTS PAID,LOCAL GOVERNMENT [UK ONLY],Invoice,BACS,None,08-Apr-19,2019,1,PARISH PRECEPT,V01005,GF NET REVENUE ACCOUNT,2482,OOE - PARISH PRECEPTS PAID
GUILDFORD BOROUGH COUNCIL,RESPONSIVE & PLANNED MAINTENAN,EUROPEAN ASBESTOS SERVICES LIMITED,91991,04-Apr-19,2054241,"1,042.50 ",0,MAIN CONTRACTORS PAYMENTS,ASBESTOS REMOVAL SERVICE PROVIDERS,Invoice,BACS,None,25-Mar-19,2019,1,IA20314,M5106,REPAIRS-SHELT-RESPONSIVE (BHS),B8921,MAIN CONTRACTORS PAYMENTS
GUILDFORD BOROUGH COUNCIL,PROPERTY,EXCEL FACILITIES & MAINTENANCE UK LTD,95811,02-Apr-19,2053372,500.00 ,0,CONTRACT PYTS-MINOR CONTRACTOR,THIRD PARTY SUPPLIER,Invoice,BACS,None,27-Mar-19,2019,1,1045,P74058,ENERGY EFFICIENCY COMPLIANCE,1234,CONTRACT PYTS-MINOR CONTRACTOR
GUILDFORD BOROUGH COUNCIL,STREET CLEANSING,CTG ENTERPRISES LTD,79580,25-Apr-19,2053695,280.00 ,0,PAYMENT TO CONTRACTORS,OTHER CLEANING AND JANITORIAL SERVICE PROVIDERS,Invoice,BACS,None,01-Apr-19,2019,1,GU1416GBC,K4551,STREET CLEANSING,D4468,PAYMENT TO CONTRACTORS
GUILDFORD BOROUGH COUNCIL,CREMATORIUM,EXCEL INTERIORS & REFURBISHMENT UK LTD,82533,02-Apr-19,2053360,"2,009.11 ",0,PS - R&M PLANNED WORKS,INTERIOR DESIGNERS,Invoice,BACS,None,27-Mar-19,2019,1,12488,A1502,NO2 BROADWATER COTTAGES PONDRD,B1610,PS - R&M PLANNED WORKS
GUILDFORD BOROUGH COUNCIL,PROPERTY,EXCEL FACILITIES & MAINTENANCE UK LTD,95811,02-Apr-19,2053372,"4,941.00 ",0,CONTRACT PYTS-MINOR CONTRACTOR,THIRD PARTY SUPPLIER,Invoice,BACS,None,27-Mar-19,2019,1,1045,P74058,ENERGY EFFICIENCY COMPLIANCE,1234,CONTRACT PYTS-MINOR CONTRACTOR
GUILDFORD BOROUGH COUNCIL,PARKS & COUNTRYSIDE,EXCEL FACILITIES & MAINTENANCE UK LTD,95811,02-Apr-19,2053373,500.00 ,0,PS - R&M PLANNED WORKS,THIRD PARTY SUPPLIER,Invoice,BACS,None,27-Mar-19,2019,1,1048,A1132,CASTLE - BOWLS CLUB,B1610,PS - R&M PLANNED WORKS
GUILDFORD BOROUGH COUNCIL,INDUSTRIAL ESTATES,EXCEL FACILITIES & MAINTENANCE UK LTD,95811,02-Apr-19,2053296,367.00 ,0,PS - R&M PLANNED WORKS,THIRD PARTY SUPPLIER,Invoice,BACS,None,27-Mar-19,2019,1,1049,B5331,LYSONS AVENUE SMALL UNITS,B1610,PS - R&M PLANNED WORKS
GUILDFORD BOROUGH COUNCIL,PARKS & COUNTRYSIDE,EXCEL FACILITIES & MAINTENANCE UK LTD,95811,02-Apr-19,2053373,"4,687.82 ",0,PS - R&M PLANNED WORKS,THIRD PARTY SUPPLIER,Invoice,BACS,None,27-Mar-19,2019,1,1048,A1132,CASTLE - BOWLS CLUB,B1610,PS - R&M PLANNED WORKS
GUILDFORD BOROUGH COUNCIL,PARKS & COUNTRYSIDE,EXCEL FACILITIES & MAINTENANCE UK LTD,95811,02-Apr-19,2053295,246.00 ,0,PS-R&M REACTIVE REPAIRS,THIRD PARTY SUPPLIER,Invoice,BACS,None,27-Mar-19,2019,1,1047,A1131,CASTLE GROUNDS COTTAGES,B1627,PS-R&M REACTIVE REPAIRS
GUILDFORD BOROUGH COUNCIL,HEATING,EUROPEAN ASBESTOS SERVICES LIMITED,91991,23-Apr-19,2056232,85.00 ,0,CONTRACT PYTS-MAIN CONTRACTOR,ASBESTOS REMOVAL SERVICE PROVIDERS,Invoice,BACS,None,28-Mar-19,2019,1,ISS20408,N44065,BOILER UGRADES VARIOUS 2018-19,1233,CONTRACT PYTS-MAIN CONTRACTOR
GUILDFORD BOROUGH COUNCIL,PARKS & COUNTRYSIDE,EXCEL FACILITIES & MAINTENANCE UK LTD,95811,02-Apr-19,2053295,100.00 ,0,PS-R&M REACTIVE REPAIRS,THIRD PARTY SUPPLIER,Invoice,BACS,None,27-Mar-19,2019,1,1047,A1131,CASTLE GROUNDS COTTAGES,B1627,PS-R&M REACTIVE REPAIRS
GUILDFORD BOROUGH COUNCIL,PROPERTY,EUROPEAN ASBESTOS SERVICES LIMITED,91991,09-Apr-19,2053498,753.50 ,0,CONTRACT PYTS-MINOR CONTRACTOR,ASBESTOS REMOVAL SERVICE PROVIDERS,Invoice,BACS,None,31-Mar-19,2019,1,IA20474,P74050,ASBESTOS REMOVAL,1234,CONTRACT PYTS-MINOR CONTRACTOR
GUILDFORD BOROUGH COUNCIL,PARKS & COUNTRYSIDE,EXCEL FACILITIES & MAINTENANCE UK LTD,95811,02-Apr-19,2053293,100.00 ,0,PS - R&M PLANNED WORKS,THIRD PARTY SUPPLIER,Invoice,BACS,None,27-Mar-19,2019,1,1046,A1132,CASTLE - BOWLS CLUB,B1610,PS - R&M PLANNED WORKS
GUILDFORD BOROUGH COUNCIL,INDUSTRIAL ESTATES,EXCEL FACILITIES & MAINTENANCE UK LTD,95811,02-Apr-19,2053296,30.00 ,0,PS - R&M PLANNED WORKS,THIRD PARTY SUPPLIER,Invoice,BACS,None,27-Mar-19,2019,1,1049,B5331,LYSONS AVENUE SMALL UNITS,B1610,PS - R&M PLANNED WORKS
GUILDFORD BOROUGH COUNCIL,PROPERTY,EXCEL FACILITIES & MAINTENANCE UK LTD,95811,02-Apr-19,2053380,"1,098.00 ",0,CONTRACT PYTS-MINOR CONTRACTOR,THIRD PARTY SUPPLIER,Invoice,BACS,None,27-Mar-19,2019,1,1044,P74058,ENERGY EFFICIENCY COMPLIANCE,1234,CONTRACT PYTS-MINOR CONTRACTOR
GUILDFORD BOROUGH COUNCIL,PARKS & COUNTRYSIDE,EXCEL FACILITIES & MAINTENANCE UK LTD,95811,02-Apr-19,2053293,"1,058.00 ",0,PS - R&M PLANNED WORKS,THIRD PARTY SUPPLIER,Invoice,BACS,None,27-Mar-19,2019,1,1046,A1132,CASTLE - BOWLS CLUB,B1610,PS - R&M PLANNED WORKS
GUILDFORD BOROUGH COUNCIL,PARK & RIDE SERVICES,EVENSURE MANAGEMENT LTD,51677,02-Apr-19,2050802,"3,768.09 ",0,SECURITY SERVICES,MULTI-DISCIPLINE SECURITY PROVIDERS,Invoice,BACS,None,15-Mar-19,2019,1,6489,B5206,ONSLOW PARK AND RIDE,D4477,SECURITY SERVICES
GUILDFORD BOROUGH COUNCIL,PARK & RIDE SERVICES,EVENSURE MANAGEMENT LTD,51677,02-Apr-19,2050801,"3,918.81 ",0,SECURITY SERVICES,MULTI-DISCIPLINE SECURITY PROVIDERS,Invoice,BACS,None,15-Mar-19,2019,1,6477,B5205,MERROW PARK AND RIDE,D4477,SECURITY SERVICES
GUILDFORD BOROUGH COUNCIL,INDUSTRIAL ESTATES,FABILORE PROMASOL LIMITED,92372,30-Apr-19,2056978,140.00 ,0,GENERAL UPKEEP - INDUSTRIAL ES,GENERAL BUILDERS,Invoice,BACS,None,19-Apr-19,2019,1,10143,B5332,LYSONS AVENUE ENT UNITS (RECH),B1267,GENERAL UPKEEP - INDUSTRIAL ES
GUILDFORD BOROUGH COUNCIL,PROPERTY,EXCEL FACILITIES & MAINTENANCE UK LTD,95811,02-Apr-19,2053380,100.00 ,0,CONTRACT PYTS-MINOR CONTRACTOR,THIRD PARTY SUPPLIER,Invoice,BACS,None,27-Mar-19,2019,1,1044,P74058,ENERGY EFFICIENCY COMPLIANCE,1234,CONTRACT PYTS-MINOR CONTRACTOR
GUILDFORD BOROUGH COUNCIL,FLATS COMMUNAL SERVICES,CONCRETE REPAIRS LTD,72288,09-Apr-19,2054525,192.00 ,0,R&M - GENERAL,"CONCRETE CUTTING, DRILLING AND MAINTENANCE CONTRACTORS",Invoice,BACS,None,01-Feb-19,2019,1,INV/014979,M2628,BARGATE COURT 1-16 (16),B1231,R&M - GENERAL
GUILDFORD BOROUGH COUNCIL,FLATS COMMUNAL SERVICES,CONCRETE REPAIRS LTD,72288,30-Apr-19,2057231,18.73 ,0,R&M - GENERAL,"CONCRETE CUTTING, DRILLING AND MAINTENANCE CONTRACTORS",Invoice,BACS,None,31-Dec-18,2019,1,INV/014804,M2882,ROWAN CL 19 - 29 (6 ODD),B1231,R&M - GENERAL
GUILDFORD BOROUGH COUNCIL,FLATS COMMUNAL SERVICES,CONCRETE REPAIRS LTD,72288,04-Apr-19,2054218,18.73 ,0,R&M - DLO,"CONCRETE CUTTING, DRILLING AND MAINTENANCE CONTRACTORS",Invoice,BACS,None,27-Mar-19,2019,1,INV/014856,M3513,EPSOM ROAD EQUITY SHARE,B1227,R&M - DLO
GUILDFORD BOROUGH COUNCIL,GUILDFORD HOUSE,CONCRETE REPAIRS LTD,72288,04-Apr-19,2054219,87.36 ,0,MECHANICAL/ELECTRICAL MNTCE AG,"CONCRETE CUTTING, DRILLING AND MAINTENANCE CONTRACTORS",Invoice,BACS,None,28-Feb-19,2019,1,INV/014977,A4511,GUILDFORD HOUSE ADMINISTRATION,B1221,MECHANICAL/ELECTRICAL MNTCE AG
GUILDFORD BOROUGH COUNCIL,GUILDHALL,CONCRETE REPAIRS LTD,72288,04-Apr-19,2054219,87.36 ,0,MECHANICAL/ELECTRICAL MNTCE AG,"CONCRETE CUTTING, DRILLING AND MAINTENANCE CONTRACTORS",Invoice,BACS,None,28-Feb-19,2019,1,INV/014977,F3311,GUILDHALL,B1221,MECHANICAL/ELECTRICAL MNTCE AG
GUILDFORD BOROUGH COUNCIL,RESPONSIVE & PLANNED MAINTENAN,CONCRETE REPAIRS LTD,72288,04-Apr-19,2054219,106.11 ,0,FIRE ALARMS  - SERVICE,"CONCRETE CUTTING, DRILLING AND MAINTENANCE CONTRACTORS",Invoice,BACS,None,28-Feb-19,2019,1,INV/014977,M5106,REPAIRS-SHELT-RESPONSIVE (BHS),B1339,FIRE ALARMS  - SERVICE
GUILDFORD BOROUGH COUNCIL,RESPONSIVE & PLANNED MAINTENAN,CONCRETE REPAIRS LTD,72288,04-Apr-19,2054219,106.11 ,0,FIRE ALARMS  - SERVICE,"CONCRETE CUTTING, DRILLING AND MAINTENANCE CONTRACTORS",Invoice,BACS,None,28-Feb-19,2019,1,INV/014977,M5107,REPAIRS-SHELT-CYCLICAL (BHS),B1339,FIRE ALARMS  - SERVICE
GUILDFORD BOROUGH COUNCIL,FLATS COMMUNAL SERVICES,CONCRETE REPAIRS LTD,72288,04-Apr-19,2054218,18.73 ,0,R&M - GENERAL,"CONCRETE CUTTING, DRILLING AND MAINTENANCE CONTRACTORS",Invoice,BACS,None,27-Mar-19,2019,1,INV/014856,M2751,HAZEL COURT 13-24 (12),B1231,R&M - GENERAL
GUILDFORD BOROUGH COUNCIL,RESPONSIVE & PLANNED MAINTENAN,CONCRETE REPAIRS LTD,72288,04-Apr-19,2054219,87.36 ,0,FIRE ALARMS  - SERVICE,"CONCRETE CUTTING, DRILLING AND MAINTENANCE CONTRACTORS",Invoice,BACS,None,28-Feb-19,2019,1,INV/014977,M5114,REPAIRS-CYCLICAL (BHS),B1339,FIRE ALARMS  - SERVICE
GUILDFORD BOROUGH COUNCIL,FLATS COMMUNAL SERVICES,CONCRETE REPAIRS LTD,72288,04-Apr-19,2054218,49.94 ,0,R&M - GENERAL,"CONCRETE CUTTING, DRILLING AND MAINTENANCE CONTRACTORS",Invoice,BACS,None,27-Mar-19,2019,1,INV/014856,M2646,BISHOPS COURT 1-40 (40),B1231,R&M - GENERAL
GUILDFORD BOROUGH COUNCIL,FLATS COMMUNAL SERVICES,CONCRETE REPAIRS LTD,72288,09-Apr-19,2054525,10.00 ,0,R&M - GENERAL,"CONCRETE CUTTING, DRILLING AND MAINTENANCE CONTRACTORS",Invoice,BACS,None,01-Feb-19,2019,1,INV/014979,M2636,BEDFORD HOUSE (67),B1231,R&M - GENERAL
GUILDFORD BOROUGH COUNCIL,FLATS COMMUNAL SERVICES,CONCRETE REPAIRS LTD,72288,09-Apr-19,2054525,320.00 ,0,R&M - GENERAL,"CONCRETE CUTTING, DRILLING AND MAINTENANCE CONTRACTORS",Invoice,BACS,None,01-Feb-19,2019,1,INV/014979,M2761,HOPTON COURT 1-8 (8),B1231,R&M - GENERAL
GUILDFORD BOROUGH COUNCIL,LEISURE COMMUNITY CENTRES,CONCRETE REPAIRS LTD,72288,09-Apr-19,2054525,10.00 ,0,MECHANICAL/ELECTRICAL MNTCE AG,"CONCRETE CUTTING, DRILLING AND MAINTENANCE CONTRACTORS",Invoice,BACS,None,01-Feb-19,2019,1,INV/014979,A8151,STOUGHTON YOUTH & COMMUNITY CE,B1221,MECHANICAL/ELECTRICAL MNTCE AG
GUILDFORD BOROUGH COUNCIL,PARKS & COUNTRYSIDE,CONCRETE REPAIRS LTD,72288,30-Apr-19,2057231,18.73 ,0,MECHANICAL/ELECTRICAL MNTCE AG,"CONCRETE CUTTING, DRILLING AND MAINTENANCE CONTRACTORS",Invoice,BACS,None,31-Dec-18,2019,1,INV/014804,A1230,SUTH'LAND MEM PRK PAVILION-GBC,B1221,MECHANICAL/ELECTRICAL MNTCE AG
GUILDFORD BOROUGH COUNCIL,GUILDFORD HOUSE,CONCRETE REPAIRS LTD,72288,30-Apr-19,2057231,18.73 ,0,MECHANICAL/ELECTRICAL MNTCE AG,"CONCRETE CUTTING, DRILLING AND MAINTENANCE CONTRACTORS",Invoice,BACS,None,31-Dec-18,2019,1,INV/014804,A4511,GUILDFORD HOUSE ADMINISTRATION,B1221,MECHANICAL/ELECTRICAL MNTCE AG
GUILDFORD BOROUGH COUNCIL,MUSEUM,CONCRETE REPAIRS LTD,72288,30-Apr-19,2057231,18.73 ,0,MECHANICAL/ELECTRICAL MNTCE AG,"CONCRETE CUTTING, DRILLING AND MAINTENANCE CONTRACTORS",Invoice,BACS,None,31-Dec-18,2019,1,INV/014804,A5511,MUSEUM,B1221,MECHANICAL/ELECTRICAL MNTCE AG
GUILDFORD BOROUGH COUNCIL,LEISURE COMMUNITY CENTRES,CONCRETE REPAIRS LTD,72288,30-Apr-19,2057231,18.73 ,0,MECHANICAL/ELECTRICAL MNTCE AG,"CONCRETE CUTTING, DRILLING AND MAINTENANCE CONTRACTORS",Invoice,BACS,None,31-Dec-18,2019,1,INV/014804,A8151,STOUGHTON YOUTH & COMMUNITY CE,B1221,MECHANICAL/ELECTRICAL MNTCE AG
GUILDFORD BOROUGH COUNCIL,RESPONSIVE & PLANNED MAINTENAN,CONCRETE REPAIRS LTD,72288,04-Apr-19,2054219,18.73 ,0,FIRE ALARMS  - SERVICE,"CONCRETE CUTTING, DRILLING AND MAINTENANCE CONTRACTORS",Invoice,BACS,None,28-Feb-19,2019,1,INV/014977,M5114,REPAIRS-CYCLICAL (BHS),B1339,FIRE ALARMS  - SERVICE
GUILDFORD BOROUGH COUNCIL,PARKS & COUNTRYSIDE,CONCRETE REPAIRS LTD,72288,04-Apr-19,2054219,49.94 ,0,FIRE ALARMS  - SERVICE,"CONCRETE CUTTING, DRILLING AND MAINTENANCE CONTRACTORS",Invoice,BACS,None,28-Feb-19,2019,1,INV/014977,A1600,STOKE NURSERY DEPOT,B1339,FIRE ALARMS  - SERVICE
GUILDFORD BOROUGH COUNCIL,STREET CLEANSING,CTG ENTERPRISES LTD,79580,25-Apr-19,2053697,280.00 ,0,PAYMENT TO CONTRACTORS,OTHER CLEANING AND JANITORIAL SERVICE PROVIDERS,Invoice,BACS,None,01-Apr-19,2019,1,GU1415GBC,K4551,STREET CLEANSING,D4468,PAYMENT TO CONTRACTORS
GUILDFORD BOROUGH COUNCIL,MUSEUM,CONCRETE REPAIRS LTD,72288,04-Apr-19,2054218,18.73 ,0,MECHANICAL/ELECTRICAL MNTCE AG,"CONCRETE CUTTING, DRILLING AND MAINTENANCE CONTRACTORS",Invoice,BACS,None,27-Mar-19,2019,1,INV/014856,A5511,MUSEUM,B1221,MECHANICAL/ELECTRICAL MNTCE AG
GUILDFORD BOROUGH COUNCIL,FLATS COMMUNAL SERVICES,CONCRETE REPAIRS LTD,72288,04-Apr-19,2054218,18.73 ,0,R&M - GENERAL,"CONCRETE CUTTING, DRILLING AND MAINTENANCE CONTRACTORS",Invoice,BACS,None,27-Mar-19,2019,1,INV/014856,M2628,BARGATE COURT 1-16 (16),B1231,R&M - GENERAL
GUILDFORD BOROUGH COUNCIL,FLATS COMMUNAL SERVICES,CONCRETE REPAIRS LTD,72288,04-Apr-19,2054218,18.73 ,0,R&M - GENERAL,"CONCRETE CUTTING, DRILLING AND MAINTENANCE CONTRACTORS",Invoice,BACS,None,27-Mar-19,2019,1,INV/014856,M2681,DOWNSVIEW CT 1-12 (12),B1231,R&M - GENERAL
GUILDFORD BOROUGH COUNCIL,FLATS COMMUNAL SERVICES,CONCRETE REPAIRS LTD,72288,04-Apr-19,2054218,18.73 ,0,R&M - GENERAL,"CONCRETE CUTTING, DRILLING AND MAINTENANCE CONTRACTORS",Invoice,BACS,None,27-Mar-19,2019,1,INV/014856,M2761,HOPTON COURT 1-8 (8),B1231,R&M - GENERAL
GUILDFORD BOROUGH COUNCIL,FLATS COMMUNAL SERVICES,CONCRETE REPAIRS LTD,72288,04-Apr-19,2054218,21.57 ,0,MECHANICAL/ELECTRICAL MNTCE AG,"CONCRETE CUTTING, DRILLING AND MAINTENANCE CONTRACTORS",Invoice,BACS,None,27-Mar-19,2019,1,INV/014856,M3512,MARJORAM CLOSE EQUITY SHARE,B1221,MECHANICAL/ELECTRICAL MNTCE AG
GUILDFORD BOROUGH COUNCIL,FLATS COMMUNAL SERVICES,CONCRETE REPAIRS LTD,72288,04-Apr-19,2054218,18.73 ,0,R&M - GENERAL,"CONCRETE CUTTING, DRILLING AND MAINTENANCE CONTRACTORS",Invoice,BACS,None,27-Mar-19,2019,1,INV/014856,M2882,ROWAN CL 19 - 29 (6 ODD),B1231,R&M - GENERAL
GUILDFORD BOROUGH COUNCIL,RESPONSIVE & PLANNED MAINTENAN,CONCRETE REPAIRS LTD,72288,04-Apr-19,2054218,18.73 ,0,FIRE ALARMS  - SERVICE,"CONCRETE CUTTING, DRILLING AND MAINTENANCE CONTRACTORS",Invoice,BACS,None,27-Mar-19,2019,1,INV/014856,M5114,REPAIRS-CYCLICAL (BHS),B1339,FIRE ALARMS  - SERVICE
GUILDFORD BOROUGH COUNCIL,PUBLIC CONVENIENCES,CONCRETE REPAIRS LTD,72288,30-Apr-19,2057231,18.73 ,0,MECHANICAL/ELECTRICAL MNTCE AG,"CONCRETE CUTTING, DRILLING AND MAINTENANCE CONTRACTORS",Invoice,BACS,None,31-Dec-18,2019,1,INV/014804,K6558,STOKE PRK TENNIS COURT PUB CON,B1221,MECHANICAL/ELECTRICAL MNTCE AG
GUILDFORD BOROUGH COUNCIL,MUSEUM,CONCRETE REPAIRS LTD,72288,04-Apr-19,2054219,18.73 ,0,MECHANICAL/ELECTRICAL MNTCE AG,"CONCRETE CUTTING, DRILLING AND MAINTENANCE CONTRACTORS",Invoice,BACS,None,28-Feb-19,2019,1,INV/014977,A5511,MUSEUM,B1221,MECHANICAL/ELECTRICAL MNTCE AG
GUILDFORD BOROUGH COUNCIL,OFF STREET PARKING,CONCRETE REPAIRS LTD,72288,04-Apr-19,2054219,18.73 ,0,MECHANICAL/ELECTRICAL MNTCE AG,"CONCRETE CUTTING, DRILLING AND MAINTENANCE CONTRACTORS",Invoice,BACS,None,28-Feb-19,2019,1,INV/014977,B2216,GENERAL UPKEEP- URBAN CAR PKS,B1221,MECHANICAL/ELECTRICAL MNTCE AG
GUILDFORD BOROUGH COUNCIL,FLATS COMMUNAL SERVICES,CONCRETE REPAIRS LTD,72288,04-Apr-19,2054219,18.73 ,0,R&M - GENERAL,"CONCRETE CUTTING, DRILLING AND MAINTENANCE CONTRACTORS",Invoice,BACS,None,28-Feb-19,2019,1,INV/014977,M2685,EGERTON COURT 1-12,B1231,R&M - GENERAL
GUILDFORD BOROUGH COUNCIL,FLATS COMMUNAL SERVICES,CONCRETE REPAIRS LTD,72288,04-Apr-19,2054219,18.73 ,0,R&M - DLO,"CONCRETE CUTTING, DRILLING AND MAINTENANCE CONTRACTORS",Invoice,BACS,None,28-Feb-19,2019,1,INV/014977,M3513,EPSOM ROAD EQUITY SHARE,B1227,R&M - DLO
GUILDFORD BOROUGH COUNCIL,PUBLIC CONVENIENCES,CONCRETE REPAIRS LTD,72288,09-Apr-19,2054525,10.00 ,0,MECHANICAL/ELECTRICAL MNTCE AG,"CONCRETE CUTTING, DRILLING AND MAINTENANCE CONTRACTORS",Invoice,BACS,None,01-Feb-19,2019,1,INV/014979,K6558,STOKE PRK TENNIS COURT PUB CON,B1221,MECHANICAL/ELECTRICAL MNTCE AG
GUILDFORD BOROUGH COUNCIL,PARKS & COUNTRYSIDE,CONCRETE REPAIRS LTD,72288,04-Apr-19,2054218,18.73 ,0,FIRE ALARMS  - SERVICE,"CONCRETE CUTTING, DRILLING AND MAINTENANCE CONTRACTORS",Invoice,BACS,None,27-Mar-19,2019,1,INV/014856,A1250,STOKE PARK,B1339,FIRE ALARMS  - SERVICE
GUILDFORD BOROUGH COUNCIL,DAY SERVICES,CONCRETE REPAIRS LTD,72288,04-Apr-19,2054218,18.73 ,0,MECHANICAL/ELECTRICAL MNTCE AG,"CONCRETE CUTTING, DRILLING AND MAINTENANCE CONTRACTORS",Invoice,BACS,None,27-Mar-19,2019,1,INV/014856,C8188,WEST HUB SHAWFIELD,B1221,MECHANICAL/ELECTRICAL MNTCE AG
GUILDFORD BOROUGH COUNCIL,RESPONSIVE & PLANNED MAINTENAN,CONCRETE REPAIRS LTD,72288,04-Apr-19,2054218,49.94 ,0,FIRE ALARMS  - SERVICE,"CONCRETE CUTTING, DRILLING AND MAINTENANCE CONTRACTORS",Invoice,BACS,None,27-Mar-19,2019,1,INV/014856,M5107,REPAIRS-SHELT-CYCLICAL (BHS),B1339,FIRE ALARMS  - SERVICE
GUILDFORD BOROUGH COUNCIL,FLATS COMMUNAL SERVICES,CONCRETE REPAIRS LTD,72288,30-Apr-19,2057231,18.73 ,0,R&M - GENERAL,"CONCRETE CUTTING, DRILLING AND MAINTENANCE CONTRACTORS",Invoice,BACS,None,31-Dec-18,2019,1,INV/014804,M2761,HOPTON COURT 1-8 (8),B1231,R&M - GENERAL
GUILDFORD BOROUGH COUNCIL,PARKS & COUNTRYSIDE,CONCRETE REPAIRS LTD,72288,30-Apr-19,2057231,18.73 ,0,FIRE ALARMS  - SERVICE,"CONCRETE CUTTING, DRILLING AND MAINTENANCE CONTRACTORS",Invoice,BACS,None,31-Dec-18,2019,1,INV/014804,A1600,STOKE NURSERY DEPOT,B1339,FIRE ALARMS  - SERVICE
GUILDFORD BOROUGH COUNCIL,PARKS & COUNTRYSIDE,CONCRETE REPAIRS LTD,72288,30-Apr-19,2057231,18.73 ,0,MECHANICAL/ELECTRICAL MNTCE AG,"CONCRETE CUTTING, DRILLING AND MAINTENANCE CONTRACTORS",Invoice,BACS,None,31-Dec-18,2019,1,INV/014804,A1810,BURCHATTS FARM BARN,B1221,MECHANICAL/ELECTRICAL MNTCE AG
GUILDFORD BOROUGH COUNCIL,MUSEUM,CONCRETE REPAIRS LTD,72288,30-Apr-19,2057231,49.94 ,0,MECHANICAL/ELECTRICAL MNTCE AG,"CONCRETE CUTTING, DRILLING AND MAINTENANCE CONTRACTORS",Invoice,BACS,None,31-Dec-18,2019,1,INV/014804,A5511,MUSEUM,B1221,MECHANICAL/ELECTRICAL MNTCE AG
GUILDFORD BOROUGH COUNCIL,MUSEUM,CONCRETE REPAIRS LTD,72288,30-Apr-19,2057231,18.73 ,0,MECHANICAL/ELECTRICAL MNTCE AG,"CONCRETE CUTTING, DRILLING AND MAINTENANCE CONTRACTORS",Invoice,BACS,None,31-Dec-18,2019,1,INV/014804,A5551,WANBOROUGH BARNS,B1221,MECHANICAL/ELECTRICAL MNTCE AG
GUILDFORD BOROUGH COUNCIL,WOKING ROAD DEPOT,CONCRETE REPAIRS LTD,72288,30-Apr-19,2057231,18.73 ,0,MECHANICAL/ELECTRICAL MNTCE AG,"CONCRETE CUTTING, DRILLING AND MAINTENANCE CONTRACTORS",Invoice,BACS,None,31-Dec-18,2019,1,INV/014804,B4452,WOKING ROAD DEPOT,B1221,MECHANICAL/ELECTRICAL MNTCE AG
GUILDFORD BOROUGH COUNCIL,PUBLIC CONVENIENCES,CONCRETE REPAIRS LTD,72288,30-Apr-19,2057231,18.73 ,0,MECHANICAL/ELECTRICAL MNTCE AG,"CONCRETE CUTTING, DRILLING AND MAINTENANCE CONTRACTORS",Invoice,BACS,None,31-Dec-18,2019,1,INV/014804,K6546,ALLEN HOUSE GRNDS PUB CON,B1221,MECHANICAL/ELECTRICAL MNTCE AG
GUILDFORD BOROUGH COUNCIL,DAY SERVICES,CONCRETE REPAIRS LTD,72288,30-Apr-19,2057231,49.94 ,0,MECHANICAL/ELECTRICAL MNTCE AG,"CONCRETE CUTTING, DRILLING AND MAINTENANCE CONTRACTORS",Invoice,BACS,None,31-Dec-18,2019,1,INV/014804,C8189,CENTRAL HUB PARK BARN,B1221,MECHANICAL/ELECTRICAL MNTCE AG
GUILDFORD BOROUGH COUNCIL,FLATS COMMUNAL SERVICES,CONCRETE REPAIRS LTD,72288,30-Apr-19,2057231,18.73 ,0,R&M - GENERAL,"CONCRETE CUTTING, DRILLING AND MAINTENANCE CONTRACTORS",Invoice,BACS,None,31-Dec-18,2019,1,INV/014804,M2642,BELLFIELDS CT 13-24 (12),B1231,R&M - GENERAL
GUILDFORD BOROUGH COUNCIL,RESPONSIVE & PLANNED MAINTENAN,CONCRETE REPAIRS LTD,72288,04-Apr-19,2054219,87.36 ,0,FIRE ALARMS  - SERVICE,"CONCRETE CUTTING, DRILLING AND MAINTENANCE CONTRACTORS",Invoice,BACS,None,28-Feb-19,2019,1,INV/014977,M5114,REPAIRS-CYCLICAL (BHS),B1339,FIRE ALARMS  - SERVICE
GUILDFORD BOROUGH COUNCIL,FLATS COMMUNAL SERVICES,CONCRETE REPAIRS LTD,72288,30-Apr-19,2057231,18.73 ,0,R&M - GENERAL,"CONCRETE CUTTING, DRILLING AND MAINTENANCE CONTRACTORS",Invoice,BACS,None,31-Dec-18,2019,1,INV/014804,M2786,MAITLANDS CL 7-18 (12),B1231,R&M - GENERAL
GUILDFORD BOROUGH COUNCIL,RESPONSIVE & PLANNED MAINTENAN,CONCRETE REPAIRS LTD,72288,30-Apr-19,2057231,49.94 ,0,FIRE ALARMS  - SERVICE,"CONCRETE CUTTING, DRILLING AND MAINTENANCE CONTRACTORS",Invoice,BACS,None,31-Dec-18,2019,1,INV/014804,M5107,REPAIRS-SHELT-CYCLICAL (BHS),B1339,FIRE ALARMS  - SERVICE
GUILDFORD BOROUGH COUNCIL,RESPONSIVE & PLANNED MAINTENAN,CONCRETE REPAIRS LTD,72288,30-Apr-19,2057231,49.94 ,0,FIRE ALARMS  - SERVICE,"CONCRETE CUTTING, DRILLING AND MAINTENANCE CONTRACTORS",Invoice,BACS,None,31-Dec-18,2019,1,INV/014804,M5107,REPAIRS-SHELT-CYCLICAL (BHS),B1339,FIRE ALARMS  - SERVICE
GUILDFORD BOROUGH COUNCIL,RESPONSIVE & PLANNED MAINTENAN,CONCRETE REPAIRS LTD,72288,30-Apr-19,2057231,18.73 ,0,FIRE ALARMS  - SERVICE,"CONCRETE CUTTING, DRILLING AND MAINTENANCE CONTRACTORS",Invoice,BACS,None,31-Dec-18,2019,1,INV/014804,M5114,REPAIRS-CYCLICAL (BHS),B1339,FIRE ALARMS  - SERVICE
GUILDFORD BOROUGH COUNCIL,RESPONSIVE & PLANNED MAINTENAN,CONCRETE REPAIRS LTD,72288,30-Apr-19,2057231,18.73 ,0,FIRE ALARMS  - SERVICE,"CONCRETE CUTTING, DRILLING AND MAINTENANCE CONTRACTORS",Invoice,BACS,None,31-Dec-18,2019,1,INV/014804,M5114,REPAIRS-CYCLICAL (BHS),B1339,FIRE ALARMS  - SERVICE
GUILDFORD BOROUGH COUNCIL,RESPONSIVE & PLANNED MAINTENAN,CONCRETE REPAIRS LTD,72288,30-Apr-19,2057231,18.73 ,0,FIRE ALARMS  - SERVICE,"CONCRETE CUTTING, DRILLING AND MAINTENANCE CONTRACTORS",Invoice,BACS,None,31-Dec-18,2019,1,INV/014804,M5114,REPAIRS-CYCLICAL (BHS),B1339,FIRE ALARMS  - SERVICE
GUILDFORD BOROUGH COUNCIL,RESPONSIVE & PLANNED MAINTENAN,CONCRETE REPAIRS LTD,72288,30-Apr-19,2057231,18.73 ,0,FIRE ALARMS  - SERVICE,"CONCRETE CUTTING, DRILLING AND MAINTENANCE CONTRACTORS",Invoice,BACS,None,31-Dec-18,2019,1,INV/014804,M5114,REPAIRS-CYCLICAL (BHS),B1339,FIRE ALARMS  - SERVICE
GUILDFORD BOROUGH COUNCIL,FLATS COMMUNAL SERVICES,CONCRETE REPAIRS LTD,72288,30-Apr-19,2057231,18.73 ,0,R&M - GENERAL,"CONCRETE CUTTING, DRILLING AND MAINTENANCE CONTRACTORS",Invoice,BACS,None,31-Dec-18,2019,1,INV/014804,M2623,ANSTON COURT 1-12 (12),B1231,R&M - GENERAL
GUILDFORD BOROUGH COUNCIL,WOKING ROAD DEPOT,CONCRETE REPAIRS LTD,72288,04-Apr-19,2054218,18.73 ,0,MECHANICAL/ELECTRICAL MNTCE AG,"CONCRETE CUTTING, DRILLING AND MAINTENANCE CONTRACTORS",Invoice,BACS,None,27-Mar-19,2019,1,INV/014856,B4452,WOKING ROAD DEPOT,B1221,MECHANICAL/ELECTRICAL MNTCE AG
GUILDFORD BOROUGH COUNCIL,FLATS COMMUNAL SERVICES,CONCRETE REPAIRS LTD,72288,30-Apr-19,2057231,18.73 ,0,R&M - GENERAL,"CONCRETE CUTTING, DRILLING AND MAINTENANCE CONTRACTORS",Invoice,BACS,None,31-Dec-18,2019,1,INV/014804,M2761,HOPTON COURT 1-8 (8),B1231,R&M - GENERAL
GUILDFORD BOROUGH COUNCIL,RESPONSIVE & PLANNED MAINTENAN,CONCRETE REPAIRS LTD,72288,30-Apr-19,2057231,49.94 ,0,FIRE ALARMS  - SERVICE,"CONCRETE CUTTING, DRILLING AND MAINTENANCE CONTRACTORS",Invoice,BACS,None,31-Dec-18,2019,1,INV/014804,M5107,REPAIRS-SHELT-CYCLICAL (BHS),B1339,FIRE ALARMS  - SERVICE
GUILDFORD BOROUGH COUNCIL,RESPONSIVE & PLANNED MAINTENAN,CONCRETE REPAIRS LTD,72288,30-Apr-19,2057231,18.73 ,0,ENERGY PERFORMANCE CERTS,"CONCRETE CUTTING, DRILLING AND MAINTENANCE CONTRACTORS",Invoice,BACS,None,31-Dec-18,2019,1,INV/014804,M5114,REPAIRS-CYCLICAL (BHS),D4532,ENERGY PERFORMANCE CERTS
GUILDFORD BOROUGH COUNCIL,FLATS COMMUNAL SERVICES,CONCRETE REPAIRS LTD,72288,30-Apr-19,2057231,18.73 ,0,R&M - GENERAL,"CONCRETE CUTTING, DRILLING AND MAINTENANCE CONTRACTORS",Invoice,BACS,None,31-Dec-18,2019,1,INV/014804,M2846,PURBECK COURT 1-12 (12),B1231,R&M - GENERAL
GUILDFORD BOROUGH COUNCIL,FLATS COMMUNAL SERVICES,CONCRETE REPAIRS LTD,72288,30-Apr-19,2057231,18.73 ,0,R&M - GENERAL,"CONCRETE CUTTING, DRILLING AND MAINTENANCE CONTRACTORS",Invoice,BACS,None,31-Dec-18,2019,1,INV/014804,M2904,SOUTHWAY COURT 13-24 (12),B1231,R&M - GENERAL
GUILDFORD BOROUGH COUNCIL,RESPONSIVE & PLANNED MAINTENAN,CONCRETE REPAIRS LTD,72288,30-Apr-19,2057231,49.94 ,0,FIRE ALARMS  - SERVICE,"CONCRETE CUTTING, DRILLING AND MAINTENANCE CONTRACTORS",Invoice,BACS,None,31-Dec-18,2019,1,INV/014804,M5107,REPAIRS-SHELT-CYCLICAL (BHS),B1339,FIRE ALARMS  - SERVICE
GUILDFORD BOROUGH COUNCIL,PUBLIC CONVENIENCES,CONCRETE REPAIRS LTD,72288,04-Apr-19,2054218,18.73 ,0,MECHANICAL/ELECTRICAL MNTCE AG,"CONCRETE CUTTING, DRILLING AND MAINTENANCE CONTRACTORS",Invoice,BACS,None,27-Mar-19,2019,1,INV/014856,K6547,BEDFORD ROAD MSCP PUB CON,B1221,MECHANICAL/ELECTRICAL MNTCE AG
GUILDFORD BOROUGH COUNCIL,INDUSTRIAL ESTATES,CONCRETE REPAIRS LTD,72288,09-Apr-19,2054525,10.00 ,0,MECHANICAL/ELECTRICAL MNTCE AG,"CONCRETE CUTTING, DRILLING AND MAINTENANCE CONTRACTORS",Invoice,BACS,None,01-Feb-19,2019,1,INV/014979,B5341,MIDLETON INDUSTRIAL ESTATE,B1221,MECHANICAL/ELECTRICAL MNTCE AG
GUILDFORD BOROUGH COUNCIL,RESPONSIVE & PLANNED MAINTENAN,CONCRETE REPAIRS LTD,72288,04-Apr-19,2054218,18.73 ,0,FIRE ALARMS  - SERVICE,"CONCRETE CUTTING, DRILLING AND MAINTENANCE CONTRACTORS",Invoice,BACS,None,27-Mar-19,2019,1,INV/014856,M5114,REPAIRS-CYCLICAL (BHS),B1339,FIRE ALARMS  - SERVICE
GUILDFORD BOROUGH COUNCIL,RESPONSIVE & PLANNED MAINTENAN,CONCRETE REPAIRS LTD,72288,09-Apr-19,2054525,635.60 ,0,FIRE ALARMS  - SERVICE,"CONCRETE CUTTING, DRILLING AND MAINTENANCE CONTRACTORS",Invoice,BACS,None,01-Feb-19,2019,1,INV/014979,M5107,REPAIRS-SHELT-CYCLICAL (BHS),B1339,FIRE ALARMS  - SERVICE
GUILDFORD BOROUGH COUNCIL,INDUSTRIAL ESTATES,CONCRETE REPAIRS LTD,72288,04-Apr-19,2054218,37.46 ,0,MECHANICAL/ELECTRICAL MNTCE AG,"CONCRETE CUTTING, DRILLING AND MAINTENANCE CONTRACTORS",Invoice,BACS,None,27-Mar-19,2019,1,INV/014856,B5341,MIDLETON INDUSTRIAL ESTATE,B1221,MECHANICAL/ELECTRICAL MNTCE AG
GUILDFORD BOROUGH COUNCIL,GUILDFORD HOUSE,CONCRETE REPAIRS LTD,72288,04-Apr-19,2054219,18.73 ,0,MECHANICAL/ELECTRICAL MNTCE AG,"CONCRETE CUTTING, DRILLING AND MAINTENANCE CONTRACTORS",Invoice,BACS,None,28-Feb-19,2019,1,INV/014977,A4511,GUILDFORD HOUSE ADMINISTRATION,B1221,MECHANICAL/ELECTRICAL MNTCE AG
GUILDFORD BOROUGH COUNCIL,WOKING ROAD DEPOT,CONCRETE REPAIRS LTD,72288,04-Apr-19,2054219,87.36 ,0,FIRE PREVENTION EQUIPMENT,"CONCRETE CUTTING, DRILLING AND MAINTENANCE CONTRACTORS",Invoice,BACS,None,28-Feb-19,2019,1,INV/014977,B4452,WOKING ROAD DEPOT,B1262,FIRE PREVENTION EQUIPMENT
GUILDFORD BOROUGH COUNCIL,FLATS COMMUNAL SERVICES,CONCRETE REPAIRS LTD,72288,04-Apr-19,2054219,18.73 ,0,R&M - GENERAL,"CONCRETE CUTTING, DRILLING AND MAINTENANCE CONTRACTORS",Invoice,BACS,None,28-Feb-19,2019,1,INV/014977,M2681,DOWNSVIEW CT 1-12 (12),B1231,R&M - GENERAL
GUILDFORD BOROUGH COUNCIL,FLATS COMMUNAL SERVICES,CONCRETE REPAIRS LTD,72288,04-Apr-19,2054219,18.73 ,0,R&M - GENERAL,"CONCRETE CUTTING, DRILLING AND MAINTENANCE CONTRACTORS",Invoice,BACS,None,28-Feb-19,2019,1,INV/014977,M2761,HOPTON COURT 1-8 (8),B1231,R&M - GENERAL
GUILDFORD BOROUGH COUNCIL,FLATS COMMUNAL SERVICES,CONCRETE REPAIRS LTD,72288,04-Apr-19,2054219,18.73 ,0,R&M - GENERAL,"CONCRETE CUTTING, DRILLING AND MAINTENANCE CONTRACTORS",Invoice,BACS,None,28-Feb-19,2019,1,INV/014977,M2786,MAITLANDS CL 7-18 (12),B1231,R&M - GENERAL
GUILDFORD BOROUGH COUNCIL,GUILDHALL,CONCRETE REPAIRS LTD,72288,30-Apr-19,2057231,18.73 ,0,MECHANICAL/ELECTRICAL MNTCE AG,"CONCRETE CUTTING, DRILLING AND MAINTENANCE CONTRACTORS",Invoice,BACS,None,31-Dec-18,2019,1,INV/014804,F3311,GUILDHALL,B1221,MECHANICAL/ELECTRICAL MNTCE AG
GUILDFORD BOROUGH COUNCIL,RESPONSIVE & PLANNED MAINTENAN,CONCRETE REPAIRS LTD,72288,04-Apr-19,2054218,18.73 ,0,FIRE ALARMS  - SERVICE,"CONCRETE CUTTING, DRILLING AND MAINTENANCE CONTRACTORS",Invoice,BACS,None,27-Mar-19,2019,1,INV/014856,M5107,REPAIRS-SHELT-CYCLICAL (BHS),B1339,FIRE ALARMS  - SERVICE
GUILDFORD BOROUGH COUNCIL,CORPORATE PROPERTY SERVICES,COOPER & WITHYCOMBE LTD,1469,23-Apr-19,2055121,"2,300.00 ",0,CONSULTANTS (PROJECTS),OTHER CONSTRUCTION CONSULTANTS,Invoice,BACS,None,05-Apr-19,2019,1,19-3234,G4575,CORPORATE PROPERTY SERVICES,D4511,CONSULTANTS (PROJECTS)
GUILDFORD BOROUGH COUNCIL,FLATS COMMUNAL SERVICES,CONCRETE REPAIRS LTD,72288,30-Apr-19,2057231,18.73 ,0,MECHANICAL/ELECTRICAL MNTCE AG,"CONCRETE CUTTING, DRILLING AND MAINTENANCE CONTRACTORS",Invoice,BACS,None,31-Dec-18,2019,1,INV/014804,M2883,ROWAN CL 31 - 41 (6 ODD),B1221,MECHANICAL/ELECTRICAL MNTCE AG
GUILDFORD BOROUGH COUNCIL,PARKS & COUNTRYSIDE,COUNTRYSIDE CONTRACTS LTD,71369,25-Apr-19,2055129,900.00 ,0,SPA ENDOWMENT EXP.,TREE WORK CONTRACTORS,Invoice,BACS,None,08-Apr-19,2019,1,1659,A1340,CHANTRY WOOD,E5000,SPA ENDOWMENT EXP.
GUILDFORD BOROUGH COUNCIL,PARKS & COUNTRYSIDE,COUNTRYSIDE CONTRACTS LTD,71369,25-Apr-19,2056489,"1,500.00 ",0,HLS GENERAL,TREE WORK CONTRACTORS,Invoice,BACS,None,16-Apr-19,2019,1,1668,A1369,"THE GARDENS, PIRBRIGHT",D5410,HLS GENERAL
GUILDFORD BOROUGH COUNCIL,SPA SITES,COUNTRYSIDE CONTRACTS LTD,71369,25-Apr-19,2056489,300.00 ,0,SPA ENDOWMENT EXP.,TREE WORK CONTRACTORS,Invoice,BACS,None,16-Apr-19,2019,1,1668,A1010,SPA - CHANTRY WOOD,E5000,SPA ENDOWMENT EXP.
GUILDFORD BOROUGH COUNCIL,LEGAL SERVICES,CORNERSTONE BARRISTERS,44239,09-Apr-19,2054159,500.00 ,0,LEGAL EXPENSES,BARRISTERS,Invoice,BACS,None,01-Apr-19,2019,1,INVROW149,G4525,LEGAL SERVICES,D4457,LEGAL EXPENSES
GUILDFORD BOROUGH COUNCIL,LEGAL SERVICES,CORNERSTONE BARRISTERS,44239,02-Apr-19,2052896,"2,500.00 ",0,LEGAL EXPENSES,BARRISTERS,Invoice,BACS,None,20-Mar-19,2019,1,INVEG35,G4525,LEGAL SERVICES,D4457,LEGAL EXPENSES
GUILDFORD BOROUGH COUNCIL,PARKS & COUNTRYSIDE,COUNTRYSIDE CONTRACTS LTD,70524,25-Apr-19,2056238,480.00 ,0,HLS GENERAL,TREE WORK CONTRACTORS,Invoice,BACS,None,08-Apr-19,2019,1,1662,A1390,SHALFORD WATERMEADOWS,D5410,HLS GENERAL
GUILDFORD BOROUGH COUNCIL,LEGAL SERVICES,CORNERSTONE BARRISTERS,44239,02-Apr-19,2053085,"3,075.00 ",0,LEGAL EXPENSES,BARRISTERS,Invoice,BACS,None,26-Mar-19,2019,1,126560,G4525,LEGAL SERVICES,D4457,LEGAL EXPENSES
GUILDFORD BOROUGH COUNCIL,SPA AVOIDANCE STRATEGY,COUNTRYSIDE CONTRACTS LTD,71369,25-Apr-19,2055128,"1,200.00 ",0,CONTRACT PYTS-MAIN CONTRACTOR,TREE WORK CONTRACTORS,Invoice,BACS,None,08-Apr-19,2019,1,1658,P20001,PRE SANG COSTS,1233,CONTRACT PYTS-MAIN CONTRACTOR
GUILDFORD BOROUGH COUNCIL,DAY SERVICES,CONTRACT SECURITY SERVICES LTD,1466,11-Apr-19,2055062,64.08 ,0,CASH COLLECTION SERVICE,OTHER SECURITY SERVICE PROVIDERS,Invoice,BACS,None,21-Mar-19,2019,1,54077,C8189,CENTRAL HUB PARK BARN,D4441,CASH COLLECTION SERVICE
GUILDFORD BOROUGH COUNCIL,DAY SERVICES,CONTRACT SECURITY SERVICES LTD,1466,11-Apr-19,2055062,64.08 ,0,CASH COLLECTION SERVICE,OTHER SECURITY SERVICE PROVIDERS,Invoice,BACS,None,21-Mar-19,2019,1,54077,C8188,WEST HUB SHAWFIELD,D4441,CASH COLLECTION SERVICE
GUILDFORD BOROUGH COUNCIL,TOURIST INFORMATION CENTRE,CONTRACT SECURITY SERVICES LTD,1466,02-Apr-19,2049663,64.08 ,0,CASH COLLECTION SERVICE,OTHER SECURITY SERVICE PROVIDERS,Invoice,BACS,None,22-Feb-19,2019,1,53795,F5541,TOURIST INFORMATION CENTRE,D4441,CASH COLLECTION SERVICE
GUILDFORD BOROUGH COUNCIL,OFF STREET PARKING,CONTRACT SECURITY SERVICES LTD,1466,11-Apr-19,2055060,"10,125.76 ",0,CASH COLLECTION SERVICE,OTHER SECURITY SERVICE PROVIDERS,Invoice,BACS,None,21-Mar-19,2019,1,54075,B2111,CAR PARKS - ADMINISTRATION,D4441,CASH COLLECTION SERVICE
GUILDFORD BOROUGH COUNCIL,PARK & RIDE SERVICES,CONTRACT SECURITY SERVICES LTD,1466,11-Apr-19,2055060,44.56 ,0,CASH COLLECTION SERVICE,OTHER SECURITY SERVICE PROVIDERS,Invoice,BACS,None,21-Mar-19,2019,1,54075,B5201,ARTINGTON PARK & RIDE,D4441,CASH COLLECTION SERVICE
GUILDFORD BOROUGH COUNCIL,OFF STREET PARKING,CONTRACT SECURITY SERVICES LTD,1466,11-Apr-19,2055061,"13,510.20 ",0,CONTRACT SECURITY,OTHER SECURITY SERVICE PROVIDERS,Invoice,BACS,None,21-Mar-19,2019,1,54076,B2216,GENERAL UPKEEP- URBAN CAR PKS,D4479,CONTRACT SECURITY
GUILDFORD BOROUGH COUNCIL,ON STREET PARKING,CONTRACT SECURITY SERVICES LTD,1466,11-Apr-19,2055060,414.00 ,0,CASH COLLECTION SERVICE,OTHER SECURITY SERVICE PROVIDERS,Invoice,BACS,None,21-Mar-19,2019,1,54075,B2215,WAVERLEY ON-STREET,D4441,CASH COLLECTION SERVICE
GUILDFORD BOROUGH COUNCIL,LEGAL SERVICES,CORNERSTONE BARRISTERS,44239,09-Apr-19,2053356,"11,600.00 ",0,LEGAL EXPENSES,BARRISTERS,Invoice,BACS,None,27-Mar-19,2019,1,126560,G4525,LEGAL SERVICES,D4457,LEGAL EXPENSES
GUILDFORD BOROUGH COUNCIL,FLATS COMMUNAL SERVICES,CRANLEIGH AERIALS LIMITED,69899,23-Apr-19,2056216,5.00 ,0,R&M - DLO,AUDIO AND VISUAL EQUIPMENT SUPPLIERS,Invoice,BACS,None,08-Apr-19,2019,1,704538,M3511,WALNUT TREE CLOSE EQ. SHARE,B1227,R&M - DLO
GUILDFORD BOROUGH COUNCIL,BUSINESS & TOURISM,CRYSTAL DESIGN & MEDIA LTD,87603,18-Apr-19,2055835,295.00 ,0,VENUES GUIDES,DIGITAL MARKETING SERVICE PROVIDERS,Invoice,BACS,None,29-Mar-19,2019,1,VI10627,F5545,TOURISM,D9464,VENUES GUIDES
GUILDFORD BOROUGH COUNCIL,GRANTS TO VOLUNTARY ORGS: H&C,CRUSE BEREAVEMENT CARE,40235,30-Apr-19,2057066,"4,000.00 ",0,VOL ASSOC GRANT - PARTNERS,COUNSELLING SERVICE PROVIDERS,Invoice,BACS,None,12-Apr-19,2019,1,01/19,C3111,COMMUNITY GRANT SCHEME,D7487,VOL ASSOC GRANT - PARTNERS
GUILDFORD BOROUGH COUNCIL,BUSINESS & TOURISM,CREATIVE SPIRIT DESIGN LTD,93518,04-Apr-19,2053922,732.50 ,0,GENERAL MARKETING,GRAPHIC DESIGN AND CREATIVE AGENCIES,Invoice,BACS,None,01-Apr-19,2019,1,INNOVATE2019,F5542,GUILDFORD SCIENCE + ARTS FEST,D9569,GENERAL MARKETING
GUILDFORD BOROUGH COUNCIL,MAJOR PROJECTS,CREATE STREET LTD,96872,25-Apr-19,2056412,800.00 ,0,CONSULTANTS (ADVICE),THIRD PARTY SUPPLIER,Invoice,BACS,None,09-Apr-19,2019,1,090419-1,F5530,MAJOR PROJECTS,D4520,CONSULTANTS (ADVICE)
GUILDFORD BOROUGH COUNCIL,MAJOR PROJECTS,CREATE STREET LTD,96872,25-Apr-19,2056412,34.50 ,0,CONSULTANTS (ADVICE),THIRD PARTY SUPPLIER,Invoice,BACS,None,09-Apr-19,2019,1,090419-1,F5530,MAJOR PROJECTS,D4520,CONSULTANTS (ADVICE)
GUILDFORD BOROUGH COUNCIL,RESPONSIVE & PLANNED MAINTENAN,CRANLEIGH AERIALS LIMITED,69899,25-Apr-19,2056615,17.08 ,0,TV SYSTEM SERVICE & REPAIR,AUDIO AND VISUAL EQUIPMENT SUPPLIERS,Invoice,BACS,None,12-Apr-19,2019,1,704550,M5113,REPAIRS-RESPONSIVE (BHS),B1387,TV SYSTEM SERVICE & REPAIR
GUILDFORD BOROUGH COUNCIL,PARKS & COUNTRYSIDE,COUNTRYSIDE CONTRACTS LTD,70524,25-Apr-19,2056238,710.00 ,0,HLS GENERAL,TREE WORK CONTRACTORS,Invoice,BACS,None,08-Apr-19,2019,1,1662,A1390,SHALFORD WATERMEADOWS,D5410,HLS GENERAL
GUILDFORD BOROUGH COUNCIL,RESPONSIVE & PLANNED MAINTENAN,CRANLEIGH AERIALS LIMITED,69899,16-Apr-19,2055559,188.64 ,0,TV SYSTEM SERVICE & REPAIR,AUDIO AND VISUAL EQUIPMENT SUPPLIERS,Invoice,BACS,None,01-Apr-19,2019,1,704529,M5106,REPAIRS-SHELT-RESPONSIVE (BHS),B1387,TV SYSTEM SERVICE & REPAIR
GUILDFORD BOROUGH COUNCIL,DAY SERVICES,CONTRACT SECURITY SERVICES LTD,1466,02-Apr-19,2049663,85.00 ,0,CASH COLLECTION SERVICE,OTHER SECURITY SERVICE PROVIDERS,Invoice,BACS,None,22-Feb-19,2019,1,53795,C8189,CENTRAL HUB PARK BARN,D4441,CASH COLLECTION SERVICE
GUILDFORD BOROUGH COUNCIL,RESPONSIVE & PLANNED MAINTENAN,CRANLEIGH AERIALS LIMITED,69899,04-Apr-19,2054211,330.00 ,0,TV SYSTEM SERVICE & REPAIR,AUDIO AND VISUAL EQUIPMENT SUPPLIERS,Invoice,BACS,None,26-Mar-19,2019,1,704518,M5113,REPAIRS-RESPONSIVE (BHS),B1387,TV SYSTEM SERVICE & REPAIR
GUILDFORD BOROUGH COUNCIL,RESPONSIVE & PLANNED MAINTENAN,CRANLEIGH AERIALS LIMITED,69899,25-Apr-19,2056615,125.00 ,0,TV SYSTEM SERVICE & REPAIR,AUDIO AND VISUAL EQUIPMENT SUPPLIERS,Invoice,BACS,None,12-Apr-19,2019,1,704550,M5113,REPAIRS-RESPONSIVE (BHS),B1387,TV SYSTEM SERVICE & REPAIR
GUILDFORD BOROUGH COUNCIL,FLATS COMMUNAL SERVICES,CRANLEIGH AERIALS LIMITED,69899,23-Apr-19,2056216,125.00 ,0,R&M - DLO,AUDIO AND VISUAL EQUIPMENT SUPPLIERS,Invoice,BACS,None,08-Apr-19,2019,1,704538,M3511,WALNUT TREE CLOSE EQ. SHARE,B1227,R&M - DLO
GUILDFORD BOROUGH COUNCIL,FLATS COMMUNAL SERVICES,CRANLEIGH AERIALS LIMITED,69899,04-Apr-19,2054209,5.00 ,0,R&M - DLO,AUDIO AND VISUAL EQUIPMENT SUPPLIERS,Invoice,BACS,None,26-Mar-19,2019,1,704524,M2761,HOPTON COURT 1-8 (8),B1227,R&M - DLO
GUILDFORD BOROUGH COUNCIL,RESPONSIVE & PLANNED MAINTENAN,CRANLEIGH AERIALS LIMITED,69899,04-Apr-19,2054211,50.00 ,0,TV SYSTEM SERVICE & REPAIR,AUDIO AND VISUAL EQUIPMENT SUPPLIERS,Invoice,BACS,None,26-Mar-19,2019,1,704518,M5113,REPAIRS-RESPONSIVE (BHS),B1387,TV SYSTEM SERVICE & REPAIR
GUILDFORD BOROUGH COUNCIL,FLATS COMMUNAL SERVICES,CRANLEIGH AERIALS LIMITED,69899,04-Apr-19,2054209,75.00 ,0,R&M - DLO,AUDIO AND VISUAL EQUIPMENT SUPPLIERS,Invoice,BACS,None,26-Mar-19,2019,1,704524,M2761,HOPTON COURT 1-8 (8),B1227,R&M - DLO
GUILDFORD BOROUGH COUNCIL,RESPONSIVE & PLANNED MAINTENAN,CRANLEIGH AERIALS LIMITED,69899,16-Apr-19,2055559,125.00 ,0,TV SYSTEM SERVICE & REPAIR,AUDIO AND VISUAL EQUIPMENT SUPPLIERS,Invoice,BACS,None,01-Apr-19,2019,1,704529,M5106,REPAIRS-SHELT-RESPONSIVE (BHS),B1387,TV SYSTEM SERVICE & REPAIR
GUILDFORD BOROUGH COUNCIL,RESPONSIVE & PLANNED MAINTENAN,CRANLEIGH AERIALS LIMITED,69899,04-Apr-19,2054210,75.00 ,0,TV SYSTEM SERVICE & REPAIR,AUDIO AND VISUAL EQUIPMENT SUPPLIERS,Invoice,BACS,None,21-Mar-19,2019,1,704516,M5106,REPAIRS-SHELT-RESPONSIVE (BHS),B1387,TV SYSTEM SERVICE & REPAIR
GUILDFORD BOROUGH COUNCIL,FLATS COMMUNAL SERVICES,CONCRETE REPAIRS LTD,72288,04-Apr-19,2054219,87.36 ,0,R&M - GENERAL,"CONCRETE CUTTING, DRILLING AND MAINTENANCE CONTRACTORS",Invoice,BACS,None,28-Feb-19,2019,1,INV/014977,M2846,PURBECK COURT 1-12 (12),B1231,R&M - GENERAL
GUILDFORD BOROUGH COUNCIL,PUBLIC CONVENIENCES,CONCRETE REPAIRS LTD,72288,04-Apr-19,2054218,18.73 ,0,MECHANICAL/ELECTRICAL MNTCE AG,"CONCRETE CUTTING, DRILLING AND MAINTENANCE CONTRACTORS",Invoice,BACS,None,27-Mar-19,2019,1,INV/014856,K6549,FARNHAM ROAD MSCP PUB CON,B1221,MECHANICAL/ELECTRICAL MNTCE AG
GUILDFORD BOROUGH COUNCIL,PUBLIC CONVENIENCES,CONCRETE REPAIRS LTD,72288,04-Apr-19,2054218,18.73 ,0,MECHANICAL/ELECTRICAL MNTCE AG,"CONCRETE CUTTING, DRILLING AND MAINTENANCE CONTRACTORS",Invoice,BACS,None,27-Mar-19,2019,1,INV/014856,K6558,STOKE PRK TENNIS COURT PUB CON,B1221,MECHANICAL/ELECTRICAL MNTCE AG
GUILDFORD BOROUGH COUNCIL,FLATS COMMUNAL SERVICES,CONCRETE REPAIRS LTD,72288,04-Apr-19,2054218,18.73 ,0,R&M - GENERAL,"CONCRETE CUTTING, DRILLING AND MAINTENANCE CONTRACTORS",Invoice,BACS,None,27-Mar-19,2019,1,INV/014856,M2884,ROWAN CL 43 - 53 (6 ODD),B1231,R&M - GENERAL
GUILDFORD BOROUGH COUNCIL,RESPONSIVE & PLANNED MAINTENAN,CONCRETE REPAIRS LTD,72288,04-Apr-19,2054218,18.73 ,0,FIRE ALARMS  - SERVICE,"CONCRETE CUTTING, DRILLING AND MAINTENANCE CONTRACTORS",Invoice,BACS,None,27-Mar-19,2019,1,INV/014856,M5114,REPAIRS-CYCLICAL (BHS),B1339,FIRE ALARMS  - SERVICE
GUILDFORD BOROUGH COUNCIL,Investment Property,CONCRETE REPAIRS LTD,72288,04-Apr-19,2054218,18.73 ,0,MECHANICAL/ELECTRICAL MNTCE AG,"CONCRETE CUTTING, DRILLING AND MAINTENANCE CONTRACTORS",Invoice,BACS,None,27-Mar-19,2019,1,INV/014856,B6131,HAYDON PLACE 15 - 17,B1221,MECHANICAL/ELECTRICAL MNTCE AG
GUILDFORD BOROUGH COUNCIL,MUSEUM,CONCRETE REPAIRS LTD,72288,04-Apr-19,2054219,18.73 ,0,MECHANICAL/ELECTRICAL MNTCE AG,"CONCRETE CUTTING, DRILLING AND MAINTENANCE CONTRACTORS",Invoice,BACS,None,28-Feb-19,2019,1,INV/014977,A5551,WANBOROUGH BARNS,B1221,MECHANICAL/ELECTRICAL MNTCE AG
GUILDFORD BOROUGH COUNCIL,MUSEUM,CONTRACT SECURITY SERVICES LTD,1466,02-Apr-19,2049663,64.08 ,0,CASH COLLECTION SERVICE,OTHER SECURITY SERVICE PROVIDERS,Invoice,BACS,None,22-Feb-19,2019,1,53795,A5511,MUSEUM,D4441,CASH COLLECTION SERVICE
GUILDFORD BOROUGH COUNCIL,FLATS COMMUNAL SERVICES,CONCRETE REPAIRS LTD,72288,04-Apr-19,2054219,49.94 ,0,R&M - GENERAL,"CONCRETE CUTTING, DRILLING AND MAINTENANCE CONTRACTORS",Invoice,BACS,None,28-Feb-19,2019,1,INV/014977,M2646,BISHOPS COURT 1-40 (40),B1231,R&M - GENERAL
GUILDFORD BOROUGH COUNCIL,VEHICLE MAINTENANCE,CONNECTIONS UK,1450,02-Apr-19,2052230,314.85 ,0,CONSUMABLES,EVENT MANAGEMENT AGENCIES,Invoice,BACS,None,20-Mar-19,2019,1,3511,K5551,VEHICLE MAINTENANCE,D1587,CONSUMABLES
GUILDFORD BOROUGH COUNCIL,FLATS COMMUNAL SERVICES,CONCRETE REPAIRS LTD,72288,04-Apr-19,2054219,18.73 ,0,R&M - GENERAL,"CONCRETE CUTTING, DRILLING AND MAINTENANCE CONTRACTORS",Invoice,BACS,None,28-Feb-19,2019,1,INV/014977,M2904,SOUTHWAY COURT 13-24 (12),B1231,R&M - GENERAL
GUILDFORD BOROUGH COUNCIL,OFFICE SERVICES TEAM,CONCRETE REPAIRS LTD,72288,09-Apr-19,2054525,96.00 ,0,MECHANICAL/ELECTRICAL MNTCE AG,"CONCRETE CUTTING, DRILLING AND MAINTENANCE CONTRACTORS",Invoice,BACS,None,01-Feb-19,2019,1,INV/014979,G7511,MILLMEAD HOUSE,B1221,MECHANICAL/ELECTRICAL MNTCE AG
GUILDFORD BOROUGH COUNCIL,PARKS & COUNTRYSIDE,CONCRETE REPAIRS LTD,72288,30-Apr-19,2057231,18.73 ,0,MECHANICAL/ELECTRICAL MNTCE AG,"CONCRETE CUTTING, DRILLING AND MAINTENANCE CONTRACTORS",Invoice,BACS,None,31-Dec-18,2019,1,INV/014804,A1810,BURCHATTS FARM BARN,B1221,MECHANICAL/ELECTRICAL MNTCE AG
GUILDFORD BOROUGH COUNCIL,OFF STREET PARKING,CONCRETE REPAIRS LTD,72288,30-Apr-19,2057231,18.73 ,0,MECHANICAL/ELECTRICAL MNTCE AG,"CONCRETE CUTTING, DRILLING AND MAINTENANCE CONTRACTORS",Invoice,BACS,None,31-Dec-18,2019,1,INV/014804,B2216,GENERAL UPKEEP- URBAN CAR PKS,B1221,MECHANICAL/ELECTRICAL MNTCE AG
GUILDFORD BOROUGH COUNCIL,INDUSTRIAL ESTATES,CONCRETE REPAIRS LTD,72288,30-Apr-19,2057231,37.46 ,0,MECHANICAL/ELECTRICAL MNTCE AG,"CONCRETE CUTTING, DRILLING AND MAINTENANCE CONTRACTORS",Invoice,BACS,None,31-Dec-18,2019,1,INV/014804,B5341,MIDLETON INDUSTRIAL ESTATE,B1221,MECHANICAL/ELECTRICAL MNTCE AG
GUILDFORD BOROUGH COUNCIL,PUBLIC CONVENIENCES,CONCRETE REPAIRS LTD,72288,30-Apr-19,2057231,18.73 ,0,MECHANICAL/ELECTRICAL MNTCE AG,"CONCRETE CUTTING, DRILLING AND MAINTENANCE CONTRACTORS",Invoice,BACS,None,31-Dec-18,2019,1,INV/014804,K6549,FARNHAM ROAD MSCP PUB CON,B1221,MECHANICAL/ELECTRICAL MNTCE AG
GUILDFORD BOROUGH COUNCIL,FLATS COMMUNAL SERVICES,CONCRETE REPAIRS LTD,72288,30-Apr-19,2057231,49.94 ,0,R&M - GENERAL,"CONCRETE CUTTING, DRILLING AND MAINTENANCE CONTRACTORS",Invoice,BACS,None,31-Dec-18,2019,1,INV/014804,M2636,BEDFORD HOUSE (67),B1231,R&M - GENERAL
GUILDFORD BOROUGH COUNCIL,DAY SERVICES,CONCRETE REPAIRS LTD,72288,04-Apr-19,2054219,87.36 ,0,MECHANICAL/ELECTRICAL MNTCE AG,"CONCRETE CUTTING, DRILLING AND MAINTENANCE CONTRACTORS",Invoice,BACS,None,28-Feb-19,2019,1,INV/014977,C8188,WEST HUB SHAWFIELD,B1221,MECHANICAL/ELECTRICAL MNTCE AG
GUILDFORD BOROUGH COUNCIL,GUILDFORD HOUSE,CONTRACT SECURITY SERVICES LTD,1466,11-Apr-19,2055062,64.08 ,0,CASH COLLECTION SERVICE,OTHER SECURITY SERVICE PROVIDERS,Invoice,BACS,None,21-Mar-19,2019,1,54077,A4511,GUILDFORD HOUSE ADMINISTRATION,D4441,CASH COLLECTION SERVICE
GUILDFORD BOROUGH COUNCIL,TENANTS' SERVICES,EDF ENERGY,65619,09-Apr-19,2054586,-9.50 ,0,ELECTRICITY,MAINS ELECTRICITY SUPPLIERS,Invoice,BACS,None,30-Mar-19,2019,1,671119701159,M1151,TENANTS SERVICES (BHS),B2215,ELECTRICITY
GUILDFORD BOROUGH COUNCIL,OFF STREET PARKING,CONTRACT SECURITY SERVICES LTD,1466,11-Apr-19,2055062,14.78 ,0,CASH COLLECTION SERVICE,OTHER SECURITY SERVICE PROVIDERS,Invoice,BACS,None,21-Mar-19,2019,1,54077,B2115,PARKING OFFICE ACCOMM COSTS,D4441,CASH COLLECTION SERVICE
GUILDFORD BOROUGH COUNCIL,GUILDFORD HOUSE,CONTRACT SECURITY SERVICES LTD,1466,02-Apr-19,2049663,64.08 ,0,CASH COLLECTION SERVICE,OTHER SECURITY SERVICE PROVIDERS,Invoice,BACS,None,22-Feb-19,2019,1,53795,A4511,GUILDFORD HOUSE ADMINISTRATION,D4441,CASH COLLECTION SERVICE
GUILDFORD BOROUGH COUNCIL,DAY SERVICES,CONTRACT SECURITY SERVICES LTD,1466,02-Apr-19,2049663,64.08 ,0,CASH COLLECTION SERVICE,OTHER SECURITY SERVICE PROVIDERS,Invoice,BACS,None,22-Feb-19,2019,1,53795,C8189,CENTRAL HUB PARK BARN,D4441,CASH COLLECTION SERVICE
GUILDFORD BOROUGH COUNCIL,OFF STREET PARKING,CONTRACT SECURITY SERVICES LTD,1466,02-Apr-19,2049663,14.78 ,0,CASH COLLECTION SERVICE,OTHER SECURITY SERVICE PROVIDERS,Invoice,BACS,None,22-Feb-19,2019,1,53795,B2115,PARKING OFFICE ACCOMM COSTS,D4441,CASH COLLECTION SERVICE
GUILDFORD BOROUGH COUNCIL,ON STREET PARKING,CONTRACT SECURITY SERVICES LTD,1466,11-Apr-19,2055060,"2,462.44 ",0,CASH COLLECTION SERVICE,OTHER SECURITY SERVICE PROVIDERS,Invoice,BACS,None,21-Mar-19,2019,1,54075,B2217,GUILDFORD ON-STREET,D4441,CASH COLLECTION SERVICE
GUILDFORD BOROUGH COUNCIL,WOKING ROAD DEPOT,CONTRACT SECURITY SERVICES LTD,1466,11-Apr-19,2055062,14.78 ,0,CASH COLLECTION SERVICE,OTHER SECURITY SERVICE PROVIDERS,Invoice,BACS,None,21-Mar-19,2019,1,54077,B4452,WOKING ROAD DEPOT,D4441,CASH COLLECTION SERVICE
GUILDFORD BOROUGH COUNCIL,PARKS & COUNTRYSIDE,CONCRETE REPAIRS LTD,72288,04-Apr-19,2054218,18.73 ,0,MECHANICAL/ELECTRICAL MNTCE AG,"CONCRETE CUTTING, DRILLING AND MAINTENANCE CONTRACTORS",Invoice,BACS,None,27-Mar-19,2019,1,INV/014856,A1810,BURCHATTS FARM BARN,B1221,MECHANICAL/ELECTRICAL MNTCE AG
GUILDFORD BOROUGH COUNCIL,WOKING ROAD DEPOT,CONTRACT SECURITY SERVICES LTD,1466,02-Apr-19,2049663,14.78 ,0,CASH COLLECTION SERVICE,OTHER SECURITY SERVICE PROVIDERS,Invoice,BACS,None,22-Feb-19,2019,1,53795,B4452,WOKING ROAD DEPOT,D4441,CASH COLLECTION SERVICE
GUILDFORD BOROUGH COUNCIL,VEHICLE MAINTENANCE,CONNECTIONS UK,1450,18-Apr-19,2054725,206.65 ,0,CONSUMABLES,EVENT MANAGEMENT AGENCIES,Invoice,BACS,None,01-Apr-19,2019,1,3523,K5551,VEHICLE MAINTENANCE,D1587,CONSUMABLES
GUILDFORD BOROUGH COUNCIL,MUSEUM,CONTRACT SECURITY SERVICES LTD,1466,11-Apr-19,2055062,64.08 ,0,CASH COLLECTION SERVICE,OTHER SECURITY SERVICE PROVIDERS,Invoice,BACS,None,21-Mar-19,2019,1,54077,A5511,MUSEUM,D4441,CASH COLLECTION SERVICE
GUILDFORD BOROUGH COUNCIL,PUBLIC CONVENIENCES,CONTRACT SECURITY SERVICES LTD,1466,11-Apr-19,2055061,27.50 ,0,CONTRACT PAYMENTS,OTHER SECURITY SERVICE PROVIDERS,Invoice,BACS,None,21-Mar-19,2019,1,54076,K6545,PUBLIC CONVENIENCES,B9802,CONTRACT PAYMENTS
GUILDFORD BOROUGH COUNCIL,FLATS COMMUNAL SERVICES,CONTRACT CLEANING & FACILITIES LTD,9748,09-Apr-19,2054585,65.00 ,0,WINDOW CLEANING,COMMERCIAL CLEANERS,Invoice,BACS,None,31-Mar-19,2019,1,51766,M2617,STOKE PARK COURT FLATS,B6286,WINDOW CLEANING
GUILDFORD BOROUGH COUNCIL,CREMATORIUM,CONTRACT CLEANING & FACILITIES LTD,9748,04-Apr-19,2054073,303.33 ,0,CONTRACT CLEANING,COMMERCIAL CLEANERS,Invoice,BACS,None,31-Mar-19,2019,1,51743,A1500,GUILDFORD CREMATORIUM,B6241,CONTRACT CLEANING
GUILDFORD BOROUGH COUNCIL,PARKS & COUNTRYSIDE,CONTRACT CLEANING & FACILITIES LTD,9748,23-Apr-19,2054077,624.00 ,0,CONTRACT CLEANING,COMMERCIAL CLEANERS,Invoice,BACS,None,31-Mar-19,2019,1,51744,A1273,WOODBRIDGE RD PAVILION,B6241,CONTRACT CLEANING
GUILDFORD BOROUGH COUNCIL,PARKS & COUNTRYSIDE,CONTRACT CLEANING & FACILITIES LTD,9748,30-Apr-19,2055361,95.00 ,0,WINDOW CLEANING,COMMERCIAL CLEANERS,Invoice,BACS,None,04-Apr-19,2019,1,51936,A1273,WOODBRIDGE RD PAVILION,B6286,WINDOW CLEANING
GUILDFORD BOROUGH COUNCIL,DAY SERVICES,CONTRACT SECURITY SERVICES LTD,1466,02-Apr-19,2049663,64.08 ,0,CASH COLLECTION SERVICE,OTHER SECURITY SERVICE PROVIDERS,Invoice,BACS,None,22-Feb-19,2019,1,53795,C8188,WEST HUB SHAWFIELD,D4441,CASH COLLECTION SERVICE
GUILDFORD BOROUGH COUNCIL,TOURIST INFORMATION CENTRE,CONTRACT SECURITY SERVICES LTD,1466,11-Apr-19,2055062,64.08 ,0,CASH COLLECTION SERVICE,OTHER SECURITY SERVICE PROVIDERS,Invoice,BACS,None,21-Mar-19,2019,1,54077,F5541,TOURIST INFORMATION CENTRE,D4441,CASH COLLECTION SERVICE
GUILDFORD BOROUGH COUNCIL,CIVIC EXPENSES,GRANT PRITCHARD PHOTOGRAPHY LTD,2209,09-Apr-19,2053484,160.00 ,0,BOROUGH PROMOTIONAL EXPENSES,PHOTOGRAPHY SERVICE PROVIDERS,Invoice,BACS,None,29-Mar-19,2019,1,1785,F2131,CIVIC EXPENSES,D9421,BOROUGH PROMOTIONAL EXPENSES
GUILDFORD BOROUGH COUNCIL,FLATS COMMUNAL SERVICES,GLENCROSS CLEANING LIMITED,2179,09-Apr-19,2053402,246.59 ,0,CONTRACT CLEANING,THIRD PARTY SUPPLIER,Invoice,BACS,None,28-Mar-19,2019,1,23364,M3511,WALNUT TREE CLOSE EQ. SHARE,B6241,CONTRACT CLEANING
GUILDFORD BOROUGH COUNCIL,BUILDING CONTROL SUMMARY,GLOBAL KNOWLEDGE NETWORK TRAINING LIMNITED,93289,09-Apr-19,2054270,995.00 ,0,TRAINING,IT TRAINING PROVIDERS,Invoice,BACS,None,01-Apr-19,2019,1,314941,D5700,BUILDING CONTROL - FEE,A7161,TRAINING
GUILDFORD BOROUGH COUNCIL,WEBSITE,GOSS INTERACTIVE LTD,57732,09-Apr-19,2053975,"38,640.00 ",0,WEBSITE HOSTING COSTS,DIGITAL MARKETING SERVICE PROVIDERS,Invoice,BACS,None,02-Apr-19,2019,1,18721,F1141,INTERNET SITE ACCESS,D5457,WEBSITE HOSTING COSTS
GUILDFORD BOROUGH COUNCIL,ENVIRONMENTAL CONTROL,GRADKO INTERNATIONAL LIMITED,2200,02-Apr-19,2048092,25.20 ,0,ANALYSIS OF SAMPLES,THIRD PARTY SUPPLIER,Invoice,BACS,None,22-Feb-19,2019,1,185262,C1113,ENVIRONMENTAL CONTROL,D4411,ANALYSIS OF SAMPLES
GUILDFORD BOROUGH COUNCIL,STOCKS,GRAHAM,2204,23-Apr-19,2055345,"3,168.10 ",0,PURCHASES,"PLUMBING, HEATING AND AC (HVAC) EQUIPMENT SUPPLIERS",Invoice,BACS,None,31-Mar-19,2019,1,0357/00779106,I06001,STORES,2591,PURCHASES
GUILDFORD BOROUGH COUNCIL,HOMELESSNESS,FURNITURELINK,51884,04-Apr-19,2050970,250.00 ,0,TENANTS REMOVAL EXPENSES,OTHER FURNITURE SUPPLIERS,Invoice,BACS,None,15-Mar-19,2019,1,INV/19/02/07,C3311,HOMELESSNESS ADMINISTRATION,D9495,TENANTS REMOVAL EXPENSES
GUILDFORD BOROUGH COUNCIL,OFFICE SERVICES TEAM,FRONTLINE SECURITY SOLUTIONS LIMITED,2082,18-Apr-19,2055527,350.00 ,0,EQUIP. & TOOLS REPAIRS,OTHER SECURITY EQUIPMENT SUPPLIERS,Invoice,BACS,None,10-Apr-19,2019,1,71555,G7511,MILLMEAD HOUSE,D1429,EQUIP. & TOOLS REPAIRS
GUILDFORD BOROUGH COUNCIL,CIVIC EXPENSES,GREENERY HIRE T/A PALMBROKERS,96887,30-Apr-19,2056605,500.00 ,0,BOROUGH PROMOTIONAL EXPENSES,THIRD PARTY SUPPLIER,Invoice,BACS,None,24-Apr-19,2019,1,26040,F2131,CIVIC EXPENSES,D9421,BOROUGH PROMOTIONAL EXPENSES
GUILDFORD BOROUGH COUNCIL,OFFICE SERVICES TEAM,FRONTLINE SECURITY SOLUTIONS LIMITED,2082,30-Apr-19,2056597,720.00 ,0,PAYMENT TO CONTRACTORS,OTHER SECURITY EQUIPMENT SUPPLIERS,Invoice,BACS,None,07-Apr-19,2019,1,71755,G7511,MILLMEAD HOUSE,D4468,PAYMENT TO CONTRACTORS
GUILDFORD BOROUGH COUNCIL,GUILDFORD HOUSE,REDACTED,0,09-Apr-19,2054562,-39.90 ,0,COMMISSION ON CRAFTWORK SALES,,Invoice,BACS,None,03-Apr-19,2019,1,REDACTED,A4511,GUILDFORD HOUSE ADMINISTRATION,K5918,COMMISSION ON CRAFTWORK SALES
GUILDFORD BOROUGH COUNCIL,OFFICE SERVICES TEAM,FRONTLINE SECURITY SOLUTIONS LIMITED,2082,18-Apr-19,2055519,"1,651.60 ",0,EQUIP. & TOOLS REPAIRS,OTHER SECURITY EQUIPMENT SUPPLIERS,Invoice,BACS,None,10-Apr-19,2019,1,71575,G7511,MILLMEAD HOUSE,D1429,EQUIP. & TOOLS REPAIRS
GUILDFORD BOROUGH COUNCIL,BUSINESS & TOURISM,GRANT PRITCHARD PHOTOGRAPHY LTD,2209,11-Apr-19,2055079,150.00 ,0,PHOTOGRAPHY,PHOTOGRAPHY SERVICE PROVIDERS,Invoice,BACS,None,05-Apr-19,2019,1,1793,F5545,TOURISM,D1561,PHOTOGRAPHY
GUILDFORD BOROUGH COUNCIL,VEHICLE MAINTENANCE,FULLER TYRES LIMITED,88222,02-Apr-19,2052377,421.00 ,0,PURCHASE OF TYRES,OTHER VEHICLE EQUIPMENT PROVIDERS,Invoice,BACS,None,22-Mar-19,2019,1,FTI-16340,K5551,VEHICLE MAINTENANCE,D1591,PURCHASE OF TYRES
GUILDFORD BOROUGH COUNCIL,BUSINESS & TOURISM,GRANT PRITCHARD PHOTOGRAPHY LTD,2209,04-Apr-19,2053485,250.00 ,0,GENERAL MARKETING,PHOTOGRAPHY SERVICE PROVIDERS,Invoice,BACS,None,29-Mar-19,2019,1,1786,F5542,GUILDFORD SCIENCE + ARTS FEST,D9569,GENERAL MARKETING
GUILDFORD BOROUGH COUNCIL,VEHICLE MAINTENANCE,FRM TRUCK & TRAILER SPARES LTD,2081,18-Apr-19,2055045,317.48 ,0,SPARES FOR VEHICLES,CAR AND VAN PARTS SUPPLIERS,Invoice,BACS,None,05-Apr-19,2019,1,342043,K5551,VEHICLE MAINTENANCE,D1589,SPARES FOR VEHICLES
GUILDFORD BOROUGH COUNCIL,BUSINESS & TOURISM,GRANT PRITCHARD PHOTOGRAPHY LTD,2209,04-Apr-19,2054062,-20.00 ,0,PHOTOGRAPHY,PHOTOGRAPHY SERVICE PROVIDERS,Credit Note,,None,29-Mar-19,2019,1,1784,F5545,TOURISM,D1561,PHOTOGRAPHY
GUILDFORD BOROUGH COUNCIL,CORP SERVICES,GRANT THORNTON UK LLP,72635,02-Apr-19,2049649,"11,075.00 ",0,AUDIT FEE,MULTI-DISCIPLINE MANAGEMENT CONSULTANTS,Invoice,BACS,None,05-Mar-19,2019,1,8924137,F1111,CORPORATE SERVICES,D4416,AUDIT FEE
GUILDFORD BOROUGH COUNCIL,OFFICE SERVICES TEAM,FRONTLINE SECURITY SOLUTIONS LIMITED,2082,09-Apr-19,2053943,"4,240.00 ",0,MAINTENANCE AGREEMENTS,OTHER SECURITY EQUIPMENT SUPPLIERS,Invoice,BACS,None,01-Mar-19,2019,1,71179,G4585,OFFICE SERVICES,D1431,MAINTENANCE AGREEMENTS
GUILDFORD BOROUGH COUNCIL,OFF STREET PARKING,GIDDEN PLACE LTD,2159,04-Apr-19,2053978,150.00 ,0,EXTERNAL PRINTING & DESIGN,GRAPHIC DESIGN AND CREATIVE AGENCIES,Invoice,BACS,None,29-Mar-19,2019,1,82622,B2111,CAR PARKS - ADMINISTRATION,D3454,EXTERNAL PRINTING & DESIGN
GUILDFORD BOROUGH COUNCIL,INDUSTRIAL ESTATES,GB CARD & PARTNERS LTD,85243,02-Apr-19,2052526,"1,757.50 ",0,EMISSION MONITORING,THIRD PARTY SUPPLIER,Invoice,BACS,None,14-Mar-19,2019,1,GB18-000785,B5351,SLYFIELD INDUSTRIAL ESTATE,B1284,EMISSION MONITORING
GUILDFORD BOROUGH COUNCIL,VEHICLE MAINTENANCE,GEESINK NORBA LTD,2145,16-Apr-19,2054592,81.49 ,0,SPARES FOR VEHICLES,WASTE DISPOSAL EQUIPMENT SUPPLIERS,Invoice,BACS,None,01-Apr-19,2019,1,90019442,K5551,VEHICLE MAINTENANCE,D1589,SPARES FOR VEHICLES
GUILDFORD BOROUGH COUNCIL,POLICY,GAVIN STONHAM,96606,02-Apr-19,2053612,6.50 ,0,USE OF PUB TRANSP; OFFICERS,THIRD PARTY SUPPLIER,Invoice,BACS,None,25-Mar-19,2019,1,PARKING EXPS,D5400,LOCAL PLAN 2013,C5343,USE OF PUB TRANSP; OFFICERS
GUILDFORD BOROUGH COUNCIL,VEHICLE MAINTENANCE,GEESINK NORBA LTD,2145,02-Apr-19,2052537,692.10 ,0,SPARES FOR VEHICLES,WASTE DISPOSAL EQUIPMENT SUPPLIERS,Invoice,BACS,None,21-Mar-19,2019,1,90019300,K5551,VEHICLE MAINTENANCE,D1589,SPARES FOR VEHICLES
GUILDFORD BOROUGH COUNCIL,BUSINESS & TOURISM,GEEYOU,93038,30-Apr-19,2055874,315.00 ,0,GENERAL MARKETING,OTHER TRAINING PROVIDERS,Invoice,BACS,None,08-Apr-19,2019,1,GEEYOU003-19,F5542,GUILDFORD SCIENCE + ARTS FEST,D9569,GENERAL MARKETING
GUILDFORD BOROUGH COUNCIL,INDUSTRIAL ESTATES,GAS & ENVIRONMENTAL MONITORING SPECIALIST LTD,19990,02-Apr-19,2053516,590.00 ,0,EMISSION MONITORING,ENVIRONMENTAL CONSULTANTS,Invoice,BACS,None,29-Mar-19,2019,1,1509,B5376,SLYFIELD FOUND UNITS (RECH),B1284,EMISSION MONITORING
GUILDFORD BOROUGH COUNCIL,ORDNANCE SURVEY & MAPPING SER,GEOGRAPHERS' A-Z MAP COMPANY LTD,2156,02-Apr-19,2049650,240.29 ,0,SURVEY MAPPING DEVELOPMENT,THIRD PARTY SUPPLIER,Invoice,BACS,None,04-Mar-19,2019,1,1163423,B5911,SURVEYS AND MAPPING SERVICES,D9525,SURVEY MAPPING DEVELOPMENT
GUILDFORD BOROUGH COUNCIL,VOID PROPERTY MANAGEMENT,EDF ENERGY,65619,16-Apr-19,2055611,73.00 ,0,ELECTRICITY,MAINS ELECTRICITY SUPPLIERS,Invoice,BACS,None,15-Apr-19,2019,1,671108753846,M1141,VOID PROPERTY MGMT (SHS),B2215,ELECTRICITY
GUILDFORD BOROUGH COUNCIL,BUILDING MAINTENANCE,GHL LIFTRUCKS LTD,11179,23-Apr-19,2055327,"5,598.90 ",0,PAYMENT TO CONTRACTORS,FORK LIFT TRUCK SUPPLIERS,Invoice,BACS,None,08-Apr-19,2019,1,229738,K1515,BUILDING MAINTENANCE,D4468,PAYMENT TO CONTRACTORS
GUILDFORD BOROUGH COUNCIL,PARKS & COUNTRYSIDE,G B SPORT & LEISURE UK LTD,2094,30-Apr-19,2055869,790.96 ,0,GAMES & PLAYGROUND EQUIPMENT,PLAYGROUND EQUIPMENT SUPPLIERS,Invoice,BACS,None,11-Apr-19,2019,1,2784,A1210,STOUGHTON REC GROUND,D1455,GAMES & PLAYGROUND EQUIPMENT
